Workbook

Sheet inputs¦other
A10: =RIGHT(CELL("filename",A1),LEN(CELL("filename",A1))-FIND("]",CELL("filename",A1))) -> inputs¦other
A12: inflation | C12: 2012 | D12: 2013 | E12: 2014 | F12: 2015 | G12: 2016 | H12: 2017 | I12: 2018 | J12: 2019 | K12: 2020 | L12: 2021 | M12: 2022
A13: Inflation index | B13: Base 2016/17 | C13: =D13/(1+C15) -> 0.9088879049 | D13: =E13/(1+D15) -> 0.9232902033 | E13: =F13/(1+E15) -> 0.9463955638 | F13: =G13/(1+F15) -> 0.9741219963 | G13: =H13/(1+G15) -> 0.9870609982 | H13: 1 | I13: =H13*(1+I15) -> 1.023 | J13: =I13*(1+J15) -> 1.046529 | K13: =J13*(1+K15) -> 1.070599167 | L13: =K13*(1+L15) -> 1.095222948 | M13: =L13*(1+M15) -> 1.120413076
A14: Inflation index | B14: Base 2011/12 | C14: 1 | D14: =C14*(1+C15) -> 1.015846067 | E14: =D14*(1+D15) -> 1.04126764 | F14: 1.071773528 | G14: 1.086009609 | H14: =G14*(1+G15) -> 1.10024569
A15: CPI | C15: ='[2]Actual CPI'!$I$18 -> 0.01584606678 | D15: ='[3]input⁞inflation'!J18 -> 0.02502502503 | E15: ='[3]input⁞inflation'!K18 -> 0.029296875 | F15: ='[3]input⁞inflation'!L18 -> 0.01328273245 | G15: ='[3]input⁞inflation'!M18 -> 0.01310861423 | H15: 0.023 | I15: =H15 -> 0.023 | J15: =I15 -> 0.023 | K15: =J15 -> 0.023 | L15: =K15 -> 0.023 | M15: =L15 -> 0.023
A17: Asset Classes
A18: Original Pipeline
A19: Pipelines
A20: Lytton lateral
A21: Peat Lateral
A22: Compressors
A23: Regulators and meters
A24: Easements
A25: Communications
A26: Other
A27: Capitalised AA costs
A28: Group IT
A29: SIB Capex
A30: PMA
A32: AER's Forecast Capex
A33: Forecast Capex | B33: $m 2011/12 | D33: =[4]Input!G163 -> 3.9934 | E33: =[4]Input!H163 -> 4.4608 | F33: =[4]Input!I163 -> 3.330225 | G33: =[4]Input!J163 -> 3.543425 | H33: =[4]Input!K163 -> 2.983775
A34: Forecast capex | B34: $m 2016/17 | D34: =D33/$C$13 -> 4.393721138 | E34: =E33/$C$13 -> 4.907975974 | F34: =F33/$C$13 -> 3.664065703 | G34: =G33/$C$13 -> 3.898638084 | H34: =H33/$C$13 -> 3.282885584
A35: Forecast Capex | B35: $m nominal | D35: =D33*D14 -> 4.056679683 | E35: =E33*E14 -> 4.644886689 | F35: 3.569246997 | G35: 3.848193599 | H35: 3.282885584
A37: Historic Projects
A38: Aquarium Passage
A39: Flood Damage
A40: Bi direction
A41: Integrity Upgrade
A42: Clear SCADA
A43: RBP Looping
A44: FC and RTU upgrade
A45: Toowoomba Station Upgrade
A46: Access Arrangement
A48: Forecast Projects
A49: Urban Risk Reduction
A50: Pipeline Integrity Management
A51: Toowoomba Crossing
A52: Dalby Turbine Overhaul
A53: Applications and Renewals
A54: Infrastructure Renewals

Sheet Input¦Historic
J15: aa asset class
B16: 13 | C16: 14 | D16: 15 | E16: 16 | F16: Total | G16: Project | H16: Asset Type | I16: Original Pipeline | J16: Pipelines | K16: Compressors | L16: Regulators and meters | M16: Easements | N16: Communications | O16: Other | P16: Capitalised AA costs | Q16: Group IT | R16: SIB Capex | S16: PMA | T16: Total | U16: Dollars
A17: RBP11-SIB-18 REDBANK STN UPG | B17: 257390.48 | C17: 105462.91 | D17: 0 | E17: 0 | F17: =SUM(B17:E17) -> 362853.39 | G17: SIB | H17: Stay in Business | R17: 1 | T17: =SUM(I17:S17) -> 1 | U17: $2015/16
A18: RBP11-SIB-49 MV IMPACT MITIG | B18: -32218.95 | C18: 0 | D18: 0 | E18: 0 | F18: -32218.95 | G18: SIB | H18: Stay in Business | R18: 1 | T18: =SUM(I18:S18) -> 1 | U18: $2015/16
A19: RBP11-SIB-60 ALIGNMNT SHT/PI&D | B19: -2723 | C19: 0 | D19: 0 | E19: 0 | F19: -2723 | G19: SIB | H19: Stay in Business | R19: 1 | T19: 1 | U19: $2015/16
A20: RBP Access Arrangement Capex | B20: 70875.35 | C20: 0 | D20: 0 | E20: 0 | F20: 70875.35 | G20: Access Arrangement | H20: Stay in Business | P20: 1 | T20: 1 | U20: $2015/16
A21: RBP12-SIB-06 Upgrade Flow Comp | B21: 2166.3 | C21: -22172.8 | D21: 0 | E21: 0 | F21: -20006.5 | G21: SIB | H21: Stay in Business | R21: 1 | T21: 1 | U21: $2015/16
A22: RBP12-SIB-05 Upgrade Flow Comp | B22: 6498.9 | C22: -33013.4 | D22: 0 | E22: 0 | F22: -26514.5 | G22: SIB | H22: Stay in Business | R22: 1 | T22: 1 | U22: $2015/16
A23: RBP EXP - LOOPING STAGE 1 | B23: 1345832.28 | C23: 2363015.22 | D23: 18579.01 | E23: 0 | F23: 3727426.51 | G23: RBP Looping | H23: Expansion/Extension | J23: 1 | T23: 1 | U23: $2015/16
A24: RBP EXP - ELLENGROVE STATION | B24: 2611.42 | C24: 0 | D24: 0 | E24: 0 | F24: 2611.42 | G24: RBP Looping | H24: Expansion/Extension | J24: 1 | T24: 1 | U24: $2015/16
A25: RBP EXP - MAOP UPGRADE | B25: 588644.61 | C25: -615 | D25: 0 | E25: 0 | F25: 588029.61 | G25: RBP Looping | H25: Expansion/Extension | J25: 1 | T25: 1 | U25: $2015/16
A26: RBP Exp - Dalby Compressor St | B26: 143241.7 | C26: 23529.89 | D26: 0.01 | E26: 0 | F26: 166771.6 | G26: RBP Looping | H26: Expansion/Extension | K26: 1 | T26: 1 | U26: $2015/16
A27: RBP Coating Refurbishment | B27: 27525 | C27: 0 | D27: 0 | E27: 0 | F27: 27525 | G27: Pipeline Integrity Management | H27: Replacement | I27: 1 | T27: 1 | U27: $2015/16
A28: UMG SCADA Server Relocation | B28: -6286.35 | C28: 0 | D28: 0 | E28: 0 | F28: -6286.35 | G28: SIB | H28: Stay in Business | R28: 1 | T28: 1 | U28: $2015/16
A29: RBP11-SIB-47 ACQUIRE EASEMENTS | B29: -39743.07 | C29: 0 | D29: 0 | E29: 0 | F29: -39743.07 | G29: SIB | H29: Stay in Business | M29: 1 | T29: 1 | U29: $2015/16
A30: NAT13-SIB-01 IDMT PHASE 2 QLD | B30: 99351.99 | C30: -80329.54 | D30: 0 | E30: 0 | F30: 19022.45 | G30: Pipeline Integrity Management | H30: Stay in Business | R30: 1 | T30: 1 | U30: $2015/16
A31: RBP BLACKSTONE POWER STATION | B31: -63081.5 | C31: 0 | D31: 0 | E31: 0 | F31: -63081.5 | G31: SIB | H31: Stay in Business | R31: 1 | T31: 1 | U31: $2015/16
A32: ELLENGROVE FILTER DOOR UPGRADE | B32: 161 | C32: 0 | D32: 0 | E32: 0 | F32: 161 | G32: SIB | H32: Stay in Business | R32: 1 | T32: 1 | U32: $2015/16
A33: RBP13-SIB-08 RBP Coating Rfb | B33: 20344.4 | C33: -20344.4 | D33: 0 | E33: 0 | F33: =SUM(B33:E33) -> 0 | G33: Pipeline Integrity Management | H33: Replacement | I33: 1 | T33: 1 | U33: $2015/16
A34: RBP13-SIB-06 RTU Upgrades | B34: 26836 | C34: 442393.4 | D34: -2476.76 | E34: 0 | F34: 466752.64 | G34: FC and RTU upgrade | H34: Stay in Business | R34: 1 | T34: 1 | U34: $2015/16
A35: RBP13-SIB-04 UPDATE P&ID's | B35: 49208.9 | C35: 0 | D35: 0 | E35: 0 | F35: 49208.9 | G35: SIB | H35: Stay in Business | R35: 1 | T35: 1 | U35: $2015/16
A36: RBP13-SIB-17 TWMBA VEHC ENTRY | B36: 52271.32 | C36: 0 | D36: 0 | E36: 0 | F36: 52271.32 | G36: SIB | H36: Stay in Business | R36: 1 | T36: 1 | U36: $2015/16
A37: RBP13-SIB-03 VEHC MITIGATION | B37: 86009.38 | C37: 149504.91 | D37: 0 | E37: 0 | F37: 235514.29 | G37: SIB | H37: Stay in Business | R37: 1 | T37: 1 | U37: $2015/16
A38: RBP13-SIB-02 Haz Area Rect | B38: 98788.45 | C38: 335297.9 | D38: 74211.15 | E38: 93930.29 | F38: 602227.79 | G38: SIB | H38: Stay in Business | R38: 1 | T38: 1 | U38: $2015/16
A39: RBP14-SIB-62 TELEMETRY UPGRADE | B39: 0 | C39: 197333.05 | D39: -197333.05 | E39: 0 | F39: =SUM(B39:E39) -> 0 | G39: SIB | H39: Stay in Business | I39: 1 | T39: 1 | U39: $2015/16
A40: CONDAMINE BDF UPGRADE | B40: 0 | C40: 43537.43 | D40: 0 | E40: 0 | F40: 43537.43 | G40: SIB | H40: Stay in Business | R40: 1 | T40: 1 | U40: $2015/16
A41: QLD14-SIB-01 QLD Clear SCADA | B41: 0 | C41: 398043.28 | D41: 548753.95 | E41: 0 | F41: =SUM(B41:E41) -> 946797.23 | G41: Clear SCADA | H41: Stay in Business | R41: 1 | T41: 1 | U41: $2015/16
A42: RBP14-SIB-82 MG MAOP SEP | B42: 0 | C42: 13929.34 | D42: 4403 | E42: -18332.34 | F42: =SUM(B42:E42) -> 0 | G42: SIB | H42: Stay in Business | R42: 1 | T42: 1 | U42: $2015/16
A43: RBP14-SIB-90 Murarrie Erosion | B43: 0 | C43: 7364 | D43: -6591 | E43: -773 | F43: =SUM(B43:E43) -> 0 | G43: SIB | H43: Stay in Business | R43: 1 | T43: 1 | U43: $2015/16
A44: RBP15-SIB-04 FIRE SUP FEED | B44: 0 | C44: 0 | D44: 4949.3 | E44: 48634.47 | F44: 53583.77 | G44: SIB | H44: Stay in Business | R44: 1 | T44: 1 | U44: $2015/16
A45: RBP15-SIB-03 AS4853 UPGRADE | B45: 0 | C45: 0 | D45: 3979.9 | E45: -3979.9 | F45: =SUM(B45:E45) -> 0 | G45: SIB | H45: Stay in Business | R45: 1 | T45: 1 | U45: $2015/16
A46: RBP15-SIB-07 CP Telemetry | B46: 0 | C46: 0 | D46: 287636.65 | E46: 243228.77 | F46: 530865.42 | G46: Pipeline Integrity Management | H46: Replacement | I46: 1 | T46: 1 | U46: $2015/16
A47: RBP15-SIB-61 WEST MINOR ASSETS | B47: 0 | C47: 0 | D47: 14696.49 | E47: 4422.95 | F47: 19119.44 | G47: SIB | H47: Stay in Business | R47: 1 | T47: 1 | U47: $2015/16
A48: RBP15-SIB-24 SANDY CK MODS | B48: 0 | C48: 0 | D48: 28018.2 | E48: 1380.6 | F48: 29398.8 | G48: SIB | H48: Stay in Business | R48: 1 | T48: 1 | U48: $2015/16
A49: RBP15-SIB-25 PV Upgrade Prog | B49: 0 | C49: 0 | D49: 76698.18 | E49: 74763.65 | F49: 151461.83 | G49: SIB | H49: Stay in Business | R49: 1 | T49: 1 | U49: $2015/16
A50: RBP15-SIB-82 3P Risk Reduct | B50: 0 | C50: 0 | D50: 89229.4 | E50: -60247.6 | F50: 28981.8 | G50: SIB | H50: Stay in Business | R50: 1 | T50: 1 | U50: $2015/16
A51: RBP15-SIB-61 EAST MINOR ASSETS | B51: 0 | C51: 0 | D51: 12816.4 | E51: 4400.95 | F51: 17217.35 | G51: SIB | H51: Stay in Business | R51: 1 | T51: 1 | U51: $2015/16
A52: RBP15-SIB-27 RBP Type B Gas Co | B52: 0 | C52: 0 | D52: 31198.88 | E52: 0 | F52: 31198.88 | G52: SIB | H52: Stay in Business | R52: 1 | T52: 1 | U52: $2015/16
A53: RBP15-SIB-61 CNTRL MINOR ASSET | B53: 0 | C53: 0 | D53: 39948.16 | E53: 0 | F53: 39948.16 | G53: SIB | H53: Stay in Business | R53: 1 | T53: 1 | U53: $2015/16
A54: RBP15-SIB-41 DN250 INTEG PROG | B54: 0 | C54: 0 | D54: 23686.4 | E54: -5.5 | F54: 23680.9 | G54: Pipeline Integrity Management | H54: Replacement | I54: 1 | T54: 1 | U54: $2015/16
A55: East Coast Clear SCADA License | B55: 0 | C55: 0 | D55: 20260.24 | E55: 0 | F55: 20260.24 | G55: SIB | H55: Stay in Business | R55: 1 | T55: 1 | U55: $2015/16
A56: RBP16-SIB-28 SWNBANK MLV STUDY | B56: 0 | C56: 0 | D56: 0 | E56: 594657.32 | F56: 594657.32 | G56: SIB | H56: Stay in Business | R56: 1 | T56: 1 | U56: $2015/16
A57: RBP METRO ISOLATION FEED | B57: 0 | C57: 0 | D57: 0 | E57: 14263.26 | F57: 14263.26 | G57: SIB | H57: Stay in Business | I57: 1 | T57: 1 | U57: $2015/16
A58: RBP16-SIB-47 DN300 EMAT ILI | B58: 0 | C58: 0 | D58: 0 | E58: 823889.76 | F58: 823889.76 | G58: Pipeline Integrity Management | H58: Stay in Business | I58: 1 | T58: 1 | U58: $2015/16
A59: QLD 3D LASER PL SCANNER | B59: 0 | C59: 0 | D59: 0 | E59: 141023.41 | F59: 141023.41 | G59: Pipeline Integrity Management | H59: Stay in Business | I59: 1 | T59: 1 | U59: $2015/16
A60: RBP16-SIB-22 SCOTIA/WR VENT EX | B60: 0 | C60: 0 | D60: 0 | E60: 12768.91 | F60: 12768.91 | G60: SIB | H60: Stay in Business | R60: 1 | T60: 1 | U60: $2015/16
A61: RBP16-SIB RISK MITIGATION FEED | B61: 0 | C61: 0 | D61: 0 | E61: 240096.01 | F61: 240096.01 | G61: SIB | H61: Stay in Business | I61: 1 | T61: 1 | U61: $2015/16
A62: RBP Emergency Pipe Storage | B62: 0 | C62: 0 | D62: 0 | E62: 138117 | F62: 138117 | G62: SIB | H62: Stay in Business | R62: 1 | T62: 1 | U62: $2015/16
A63: RBP13-SIB-05 RBP 10' ILI | B63: 106611.85 | C63: 836870.81 | D63: 746612.08 | E63: 13164.16 | F63: 1703258.9 | G63: Pipeline Integrity Management | H63: Stay in Business | I63: 1 | T63: 1 | U63: $2015/16
A64: RBP16-SIB-49 VEHICLE MITIGATE | B64: 0 | C64: 47701.04 | D64: 35668.92 | E64: 419628.54 | F64: 502998.5 | G64: SIB | H64: Stay in Business | R64: 1 | T64: 1 | U64: $2015/16
A65: RBP11-SIB-17 TWMBA STN UPGRADE | B65: 56110.01 | C65: 409980.34 | D65: 830888.95 | E65: 0 | F65: 1296979.3 | G65: Toowoomba station upgrade | H65: Stay in Business | R65: 1 | T65: 1 | U65: $2015/16
A66: RBP13-SIB-01 RBP CP UPGRADES | B66: 90490.44 | C66: 550 | D66: 0 | E66: 0 | F66: 91040.44 | G66: Pipeline Integrity Management | H66: Replacement | I66: 1 | T66: 1 | U66: $2015/16
A67: RBP14-SIB-08 COATING REFURB | B67: 0 | C67: 399638.97 | D67: -1840 | E67: 0 | F67: 397798.97 | G67: Pipeline Integrity Management | H67: Replacement | I67: 1 | T67: 1 | U67: $2015/16
A68: RBP14-SIB-61 RBP CP UPGRADES | B68: 0 | C68: 931641.84 | D68: -1789.97 | E68: -466160.99 | F68: 463690.88 | G68: Pipeline Integrity Management | H68: Replacement | I68: 1 | T68: 1 | U68: $2015/16
A69: RBP15-SIB-01 FC & RTU UPGRADE | B69: 0 | C69: 0 | D69: 533992.57 | E69: 102168.29 | F69: 636160.86 | G69: FC and RTU upgrade | H69: Stay in Business | R69: 1 | T69: 1 | U69: $2015/16
A70: RBP15-SIB-29 TWMBA DN250 MLV | B70: 0 | C70: 0 | D70: 383747.1 | E70: -2225.6 | F70: 381521.5 | G70: SIB | H70: Stay in Business | I70: 1 | T70: 1 | U70: $2015/16
A71: RBP15-SIB-42 RBP CP UPGRADES | B71: 0 | C71: 0 | D71: 147597.06 | E71: 937211.03 | F71: 1084808.09 | G71: Pipeline Integrity Management | H71: Replacement | I71: 1 | T71: 1 | U71: $2015/16
A72: TWMBA Escarpment Geo Testing | B72: 0 | C72: 0 | D72: 10829.22 | E72: 186018.18 | F72: 196847.4 | G72: SIB | H72: Stay in Business | R72: 1 | T72: 1 | U72: $2015/16
A73: RBP Murarrie MS Sea Wall | B73: 0 | C73: 0 | D73: 293579.22 | E73: 168083.28 | F73: 461662.5 | G73: SIB | H73: Stay in Business | R73: 1 | T73: 1 | U73: $2015/16
A74: RBP METRO LOOPING STAGE 2 | B74: 842856.25 | C74: 17091.56 | D74: 0 | E74: 0 | F74: 859947.81 | G74: RBP Looping | H74: Expansion/Extension | J74: 1 | T74: 1 | U74: $2015/16
A75: RBP MINOR TOOLS & EQUIP FY13 | B75: 147011.79 | C75: -6139 | D75: 0 | E75: 0 | F75: 140872.79 | G75: SIB | H75: Stay in Business | R75: 1 | T75: 1 | U75: $2015/16
A76: RBP13-SIB-14 EASEMENT ACQ | B76: 71954.3 | C76: 4679.07 | D76: 612 | E76: 0 | F76: 77245.37 | G76: Pipeline Integrity Management | H76: Replacement | M76: 1 | T76: 1 | U76: $2015/16
A77: RBP AQUARIUM PASSAGE | B77: 203407.42 | C77: 606152.13 | D77: 1120198.13 | E77: 0 | F77: 1929757.68 | G77: ='inputs¦other'!A38 -> Aquarium Passage | H77: Replacement | R77: 1 | T77: 1 | U77: $2015/16
A78: RBP EAST MINOR TOOLS FY14 | B78: 0 | C78: 58187.67 | D78: 0 | E78: 0 | F78: 58187.67 | G78: SIB | H78: Stay in Business | R78: 1 | T78: 1 | U78: $2015/16
A79: RBP CENTRAL MINOR TOOLS FY14 | B79: 0 | C79: 55531.93 | D79: 0 | E79: 0 | F79: 55531.93 | G79: SIB | H79: Stay in Business | R79: 1 | T79: 1 | U79: $2015/16
A80: RBP14-SIB-63 LOOP CNTRL UPG | B80: 0 | C80: 64165.76 | D80: 0 | E80: 0 | F80: 64165.76 | G80: SIB | H80: Stay in Business | J80: 1 | T80: 1 | U80: $2015/16
A81: RBP14-SIB-14 YULEBA LAND | B81: 0 | C81: 5066.65 | D81: 0 | E81: 0 | F81: 5066.65 | G81: SIB | H81: Stay in Business | M81: 1 | T81: 1 | U81: $2015/16
A82: RBP WEST MINOR TOOLS FY14 | B82: 0 | C82: 18043 | D82: 0 | E82: 0 | F82: 18043 | G82: SIB | H82: Stay in Business | R82: 1 | T82: =SUM(I82:S82) -> 1 | U82: $2015/16
A83: RBP Integrity Upgrade Project | B83: 0 | C83: 0 | D83: 1080254.66 | E83: 0 | F83: 1080254.66 | G83: Pipeline Integrity Management | H83: Replacement | I83: 1 | T83: 1 | U83: $2015/16
A84: RBP Bi-Directional Flow | B84: 0 | C84: 0 | D84: 7545195.78 | E84: 614017.58 | F84: 8159213.36 | G84: Bi direction | H84: Stay in Business | J84: 1 | T84: 1 | U84: $2015/16
A85: Roma to Brisbane Digups Stag1 | B85: 0 | C85: 0 | D85: 0 | E85: 3701897.67 | F85: 3701897.67 | G85: Pipeline Integrity Management | H85: Replacement | I85: 1 | T85: 1 | U85: $2015/16
A86: RBP16-SIB-84 AB EASEMENT ACQ | B86: 0 | C86: 0 | D86: 0 | E86: 74928.14 | F86: 74928.14 | G86: SIB | H86: Stay in Business | M86: 1 | T86: 1 | U86: $2015/16
A87: RBP Access Arrangement FY17 | B87: 0 | C87: 0 | D87: 0 | E87: 58008.08 | F87: 58008.08 | G87: Access Arrangement | H87: Stay in Business | P87: 1 | T87: 1 | U87: $2015/16
A88: RBP16-SIB CP DATA COLLECTION | B88: 0 | C88: 0 | D88: 0 | E88: 50946.05 | F88: 50946.05 | G88: SIB | H88: Stay in Business | R88: 1 | T88: 1 | U88: $2015/16
A89: Marburg Range | B89: 0 | C89: 0 | D89: 2848142.64 | E89: 0 | F89: 2848142.64 | G89: Flood Damage | H89: Stay in Business | I89: 0.5 | J89: 0.5 | T89: 1 | U89: $2015/16
A90: Flood damage | B90: 98026.84 | C90: 0 | D90: 0 | E90: 0 | F90: 98026.84 | G90: Flood Damage | H90: Stay in Business | J90: 0.6266931587 | R90: 0.3733068413 | T90: =SUM(I90:S90) -> 1 | U90: $2015/16
A91: Flood Damage | B91: 0 | C91: 1763964.737 | D91: 32709.61 | E91: 0 | F91: 1796674.347 | G91: Flood Damage | H91: Stay in Business | I91: 0.5 | J91: 0.5 | T91: 1 | U91: $2015/16
A92: Toowoomba Escarpment | B92: 0 | C92: 30577.51 | D92: 2803439.24 | E92: 0 | F92: 2834016.75 | G92: Flood Damage | H92: Stay in Business | I92: 0.5 | J92: 0.5 | T92: 1 | U92: $2015/16
A93: Corporate Assets | B93: 1292236.067 | C93: 1146777.46 | D93: 2284029.771 | E93: 1571910.78 | F93: 6294954.077 | G93: SIB | H93: Stay in Business | Q93: 1 | T93: 1 | U93: $2015/16
A94: Major Excavations | B94: 237675.49 | C94: 207537.05 | D94: 1225644.88 | E94: 14455 | F94: 1685312.42 | G94: Pipeline Integrity Management | H94: Replacement | I94: 1 | T94: 1 | U94: $2015/16
A95: Capitalised to other entitites | B95: -2000 | C95: 0 | D95: 0 | E95: 0 | F95: -2000 | G95: SIB | H95: Stay in Business | O95: 0 | R95: 1 | T95: 1 | U95: $2015/16
A96: Other | B96: 0 | C96: 0 | D96: 0 | E96: 96402.62 | F96: 96402.62 | G96: SIB | H96: Stay in Business | R96: 1 | T96: 1 | U96: $2015/16
A97: Clear SCADA licence | B97: 0 | C97: 0 | D97: 0 | E97: -20260.24 | F97: -20260.24 | G97: SIB | H97: Stay in Business | R97: 1 | T97: 1 | U97: $2015/16
A98: Capital Contribution | B98: 0 | D98: 0 | E98: 0 | F98: -95218.24 | G98: SIB | H98: Stay in Business | I98: 1 | T98: 1 | U98: $2015/16
A101: Total | B101: =SUM(B17:B100) -> 5878085.067 | C101: =SUM(C17:C100) -> 10520954.72 | D101: =SUM(D17:D100) -> 22992176.37 | E101: =SUM(E17:E100) -> 9872431.58 | F101: =SUM(F17:F100) -> 49168429.49

Sheet Input¦Forecast
L15: aa asset class
B16: 17 | C16: 18 | D16: 19 | E16: 20 | F16: 21 | G16: 22 | H16: Total | I16: Driver | J16: Project | K16: Original Pipeline | L16: Pipelines | M16: Compressors | N16: Regulators and meters | O16: Easements | P16: Communications | Q16: Other | R16: Capitalised AA costs | S16: Group IT | T16: SIB Capex | U16: PMA | V16: Total | W16: Dollars
A17: ALARM RATIONALISATION | B17: 28.54574563 | C17: 0 | D17: 0 | E17: 0 | F17: 0 | G17: 0 | H17: =SUM(B17:G17) -> 28.54574563 | I17: Stay in Business | J17: Stay in business | T17: 1 | V17: 1 | W17: $2016/17
A18: ANODE BED EASEMENTS PROGRAM | B18: 214.83 | C18: 219.945 | D18: 225.06 | E18: 230.175 | F18: 235.29 | G18: 240.405 | H18: =SUM(B18:G18) -> 1365.705 | I18: Replacement | J18: ='inputs¦other'!A50 -> Pipeline Integrity Management | K18: 0.5 | L18: 0.5 | V18: 1 | W18: $2015/16
A19: Condamine River Strain Excavation | B19: 0 | C19: 204.6 | D19: 0 | E19: 0 | F19: 0 | G19: 0 | H19: 204.6 | I19: Stay in Business | J19: Stay in business | K19: 1 | V19: 1 | W19: $2015/16
A20: DN250 INTEGRITY UPGRADE PROGRAM | B20: 5012.7 | C20: 5414.739 | D20: 6107.31 | E20: 4071.54 | F20: 3764.64 | G20: 4328.313 | H20: 28699.242 | I20: Replacement | J20: ='inputs¦other'!A50 -> Pipeline Integrity Management | K20: 1 | V20: 1 | W20: $2015/16
A21: Gas Measurement Upgrade - including shades | B21: 0 | C21: 0 | D21: 0 | E21: 51.15 | F21: 51.15 | G21: 0 | H21: 102.3 | I21: Stay in Business | J21: Stay in business | T21: 1 | V21: 1 | W21: $2015/16
A22: GIBSON ISLAND E/I REVIEW FEED | B22: 10.23 | C22: 0 | D22: 0 | E22: 0 | F22: 0 | G22: 0 | H22: 10.23 | I22: Stay in Business | J22: Stay in business | T22: 1 | V22: 1 | W22: $2015/16
A23: Gibson Island Pressure Vessel platforms | B23: 0 | C23: 0 | D23: 0 | E23: 81.84 | F23: 0 | G23: 0 | H23: 81.84 | I23: Stay in Business | J23: Stay in business | N23: 1 | V23: 1 | W23: $2015/16
A24: Laser Scanner for Feature Assessment | B24: 0 | C24: 0 | D24: 0 | E24: 0 | F24: 153.45 | G24: 0 | H24: 153.45 | I24: Replacement | J24: ='inputs¦other'!A50 -> Pipeline Integrity Management | K24: 0.5 | L24: 0.5 | V24: 1 | W24: $2015/16
A25: LOSS OF SUPPLY DESIGN REVIEW | B25: 8.563723688 | C25: 0 | D25: 0 | E25: 0 | F25: 0 | G25: 0 | H25: 8.563723688 | I25: Stay in Business | J25: Stay in business | T25: 1 | V25: 1 | W25: $2015/16
A26: METER PERFORMANCE PROGRAM FEED | B26: 0 | C26: 5.709149125 | D26: 0 | E26: 0 | F26: 0 | G26: 0 | H26: 5.709149125 | I26: Stay in Business | J26: Stay in business | N26: 1 | V26: 1 | W26: $2015/16
A27: PEAT lateral cleaning pigging | B27: 15.345 | C27: 0 | D27: 0 | E27: 0 | F27: 0 | G27: 0 | H27: 15.345 | I27: Stay in Business | J27: Stay in business | T27: 1 | V27: 1 | W27: $2015/16
A28: PEAT LATERAL ILI - DN250 | B28: 0 | C28: 0 | D28: 0 | E28: 143.22 | F28: 0 | G28: 0 | H28: 143.22 | I28: Replacement | J28: ='inputs¦other'!A50 -> Pipeline Integrity Management | L28: 1 | V28: 1 | W28: $2015/16
A29: PEAT LATERAL LIQUIDS REMOVAL | B29: 0 | C29: 306.9 | D29: 0 | E29: 0 | F29: 0 | G29: 0 | H29: 306.9 | I29: Stay in Business | J29: Stay in business | L29: 1 | V29: 1 | W29: $2015/16
A30: PIPELINE REPAIR & EXCAVATION PROGRAM (unplanned) | B30: 102.3 | C30: 102.3 | D30: 102.3 | E30: 102.3 | F30: 102.3 | G30: 0 | H30: 511.5 | I30: Stay in Business | J30: Stay in business | T30: 1 | V30: 1 | W30: $2015/16
A31: Portable Slug Catcher - DN400 | B31: 228.365965 | C31: 0 | D31: 0 | E31: 0 | F31: 0 | G31: 0 | H31: 228.365965 | I31: Stay in Business | J31: Stay in business | L31: 1 | V31: 1 | W31: $2015/16
A32: QLD OPERATIONS SIB FUNDING | B32: 119.8921316 | C32: 114.1829825 | D32: 114.1829825 | E32: 114.1829825 | F32: 114.1829825 | G32: 114.1829825 | H32: 690.8070442 | I32: Stay in Business | J32: Stay in business | T32: 1 | V32: 1 | W32: $2015/16
A33: RBP - Station painting program | B33: 81.84 | C33: 81.84 | D33: 81.84 | E33: 81.84 | F33: 81.84 | G33: 81.84 | H33: 491.04 | I33: Stay in Business | J33: Stay in business | T33: 1 | V33: 1 | W33: $2015/16
A34: RBP - TYPE B GAS COMPLIANCE UPGRADES | B34: 25.575 | C34: 112.53 | D34: 112.53 | E34: 0 | F34: 0 | G34: 0 | H34: 250.635 | I34: Stay in Business | J34: Stay in business | T34: 1 | V34: 1 | W34: $2015/16
A35: RBP & PEAT ISOLATION PLAN UPGRADES | B35: 102.3 | C35: 102.3 | D35: 102.3 | E35: 0 | F35: 0 | G35: 0 | H35: 306.9 | I35: Stay in Business | J35: Stay in business | T35: 1 | V35: 1 | W35: $2015/16
A36: RBP- AS4853 ELECTRICAL HAZARD UPGRADES | B36: 0 | C36: 122.76 | D36: 0 | E36: 0 | F36: 0 | G36: 0 | H36: 122.76 | I36: Stay in Business | J36: Stay in business | T36: 1 | V36: 1 | W36: $2015/16
A37: RBP CE Lateral ILI - DN400 | B37: 0 | C37: 0 | D37: 10.23 | E37: 194.37 | F37: 0 | G37: 0 | H37: 204.6 | I37: Replacement | J37: ='inputs¦other'!A50 -> Pipeline Integrity Management | L37: 1 | V37: 1 | W37: $2015/16
A38: RBP Cleaning Program (DN400) | B38: 16.368 | C38: 0 | D38: 0 | E38: 0 | F38: 0 | G38: 0 | H38: 16.368 | I38: Stay in Business | J38: Stay in business | T38: 1 | V38: 1 | W38: $2015/16
A39: RBP CP TELEMETRY UPGRADE | B39: 153.45 | C39: 153.45 | D39: 153.45 | E39: 153.45 | F39: 153.45 | G39: 0 | H39: 767.25 | I39: Replacement | J39: ='inputs¦other'!A50 -> Pipeline Integrity Management | K39: 0.5 | L39: 0.5 | V39: 1 | W39: $2015/16
A40: RBP CP UPGRADE PROGRAM | B40: 643.467 | C40: 656.766 | D40: 662.904 | E40: 662.904 | F40: 662.904 | G40: 662.904 | H40: 3951.849 | I40: Replacement | J40: ='inputs¦other'!A50 -> Pipeline Integrity Management | K40: 0.5 | L40: 0.5 | V40: 1 | W40: $2015/16
A41: RBP DN400 Supply Offtakes | B41: 0 | C41: 0 | D41: 255.75 | E41: 0 | F41: 102.3 | G41: 0 | H41: 358.05 | I41: Stay in Business | J41: Stay in business | T41: 1 | V41: 1 | W41: $2015/16
A42: RBP HA RECTIFICATION | B42: 153.45 | C42: 51.15 | D42: 0 | E42: 0 | F42: 0 | G42: 102.3 | H42: 306.9 | I42: Stay in Business | J42: Stay in business | T42: 1 | V42: 1 | W42: $2015/16
A43: RBP LOOPING ILI - DN400 | B43: 0 | C43: 0 | D43: 0 | E43: 0 | F43: 1841.4 | G43: 0 | H43: 1841.4 | I43: Replacement | J43: ='inputs¦other'!A50 -> Pipeline Integrity Management | L43: 1 | V43: 1 | W43: $2015/16
A44: RBP LYTTON LATERAL ILI - DN200 | B44: 5.115 | C44: 143.22 | D44: 0 | E44: 0 | F44: 0 | G44: 0 | H44: 148.335 | I44: Replacement | J44: ='inputs¦other'!A50 -> Pipeline Integrity Management | L44: 1 | V44: 1 | W44: $2015/16
A45: RBP MAINLINE ILI PROGRAM - DN250 | B45: 0 | C45: 0 | D45: 1534.5 | E45: 0 | F45: 0 | G45: 0 | H45: 1534.5 | I45: Replacement | J45: ='inputs¦other'!A50 -> Pipeline Integrity Management | K45: 1 | V45: 1 | W45: $2015/16
A46: RBP METRO (ORIGINAL) ILI - DN200 | B46: 0 | C46: 61.38 | D46: 0 | E46: 0 | F46: 0 | G46: 0 | H46: 61.38 | I46: Replacement | J46: ='inputs¦other'!A50 -> Pipeline Integrity Management | K46: 1 | V46: 1 | W46: $2015/16
A47: RBP METRO ILI - DN300 | B47: 225.06 | C47: 0 | D47: 0 | E47: 0 | F47: 0 | G47: 225.06 | H47: 450.12 | I47: Replacement | J47: ='inputs¦other'!A50 -> Pipeline Integrity Management | K47: 1 | V47: 1 | W47: $2015/16
A48: RBP METRO LOOP ILI - DN400 | B48: 0 | C48: 0 | D48: 122.76 | E48: 0 | F48: 0 | G48: 0 | H48: 122.76 | I48: Replacement | J48: ='inputs¦other'!A50 -> Pipeline Integrity Management | L48: 1 | V48: 1 | W48: $2015/16
A49: RBP REPLACEMENT SPOOLS FOR DN250 CHECK VALVES | B49: 10.23 | C49: 0 | D49: 0 | E49: 0 | F49: 0 | G49: 0 | H49: 10.23 | I49: Stay in Business | J49: Stay in business | T49: 1 | V49: 1 | W49: $2015/16
A50: RBP RISK MITIGATION - FEED and IMPLEMENTATION | B50: 8184 | C50: 1687.95 | D50: 306.9 | E50: 306.9 | F50: 306.9 | G50: 306.9 | H50: 11099.55 | I50: Stay in Business | J50: ='inputs¦other'!A49 -> Urban Risk Reduction | K50: 1 | V50: 1 | W50: $2015/16
A51: RBP S20 Decommissioned Compressor Removal | B51: 0 | C51: 102.3 | D51: 102.3 | E51: 0 | F51: 0 | G51: 0 | H51: 204.6 | I51: Stay in Business | J51: Stay in business | M51: 1 | V51: 1 | W51: $2015/16
A52: RBP SCC EMAT ILI - DN300 | B52: 0 | C52: 0 | D52: 0 | E52: 0 | F52: 0 | G52: 920.7 | H52: 920.7 | I52: Replacement | J52: ='inputs¦other'!A50 -> Pipeline Integrity Management | K52: 1 | V52: 1 | W52: $2015/16
A53: RBP SCCMP EMAT ILI - DN250 | B53: 0 | C53: 1841.4 | D53: 1227.6 | E53: 0 | F53: 0 | G53: 0 | H53: 3069 | I53: Replacement | J53: ='inputs¦other'!A50 -> Pipeline Integrity Management | K53: 1 | V53: 1 | W53: $2015/16
A54: RBP SCRAPER TRAP MODIFICATIONS | B54: 0 | C54: 204.6 | D54: 204.6 | E54: 0 | F54: 0 | G54: 0 | H54: 409.2 | I54: Replacement | J54: ='inputs¦other'!A50 -> Pipeline Integrity Management | K54: 0.5 | L54: 0.5 | V54: 1 | W54: $2015/16
A55: RBP STATION FIRE SUPRESSION UPGRADES - BELLBIRD PARK | B55: 0 | C55: 0 | D55: 0 | E55: 76.725 | F55: 0 | G55: 0 | H55: 76.725 | I55: Stay in Business | J55: Stay in business | T55: 1 | V55: 1 | W55: $2015/16
A56: RBP STATION UPGRADES - HAZOP & Other | B56: 163.68 | C56: 312.015 | D56: 312.015 | E56: 102.3 | F56: 102.3 | G56: 0 | H56: 992.31 | I56: Stay in Business | J56: Stay in business | T56: 1 | V56: 1 | W56: $2015/16
A57: SCOTIA / WOODROYD VENT EXTENSION | B57: 0 | C57: 30.69 | D57: 0 | E57: 0 | F57: 0 | G57: 0 | H57: 30.69 | I57: Stay in Business | J57: Stay in business | K57: 1 | V57: 1 | W57: $2015/16
A58: SIS demand/test tracking system | B58: 0 | C58: 28.54574563 | D58: 0 | E58: 0 | F58: 0 | G58: 0 | H58: 28.54574563 | I58: Stay in Business | J58: Stay in business | T58: 1 | V58: 1 | W58: $2015/16
A59: SIS improvement program FEED and Implementation | B59: 28.54574563 | C59: 0 | D59: 0 | E59: 0 | F59: 0 | G59: 0 | H59: 28.54574563 | I59: Stay in Business | J59: Stay in business | T59: 1 | V59: 1 | W59: $2015/16
A60: SMS Reviews - QLD | B60: 5.709149125 | C60: 0 | D60: 0 | E60: 0 | F60: 0 | G60: 0 | H60: 5.709149125 | I60: Stay in Business | J60: Stay in business | T60: 1 | V60: 1 | W60: $2015/16
A61: SWANBANK ISOLATION VALVE | B61: 51.15 | C61: 0 | D61: 0 | E61: 0 | F61: 0 | G61: 0 | H61: 51.15 | I61: Stay in Business | J61: Stay in business | T61: 1 | V61: 1 | W61: $2015/16
A62: TOOWOOMBA DN250 RAIL CROSSING | B62: 0 | C62: 11253 | D62: 3580.5 | E62: 0 | F62: 0 | G62: 0 | H62: 14833.5 | I62: Stay in Business | J62: ='inputs¦other'!A51 -> Toowoomba Crossing | K62: 0.5 | L62: 0.5 | V62: 1 | W62: $2015/16
A63: TOOWOOMBA RANGE SLOPE MONITORING WORKS | B63: 306.9 | C63: 664.95 | D63: 0 | E63: 0 | F63: 0 | G63: 0 | H63: 971.85 | I63: Stay in Business | J63: ='inputs¦other'!A51 -> Toowoomba Crossing | K63: 0.5 | L63: 0.5 | V63: 1 | W63: $2015/16
A64: Toowoomba Slope Management | B64: 0 | C64: 0 | D64: 0 | E64: 0 | F64: 0 | G64: 0 | H64: 0 | I64: Stay in Business | J64: Stay in business | K64: 0.5 | L64: 0.5 | V64: 1 | W64: $2015/16
A65: TOOWOOMBA STATION HEATER INSTALLATION | B65: 0 | C65: 255.75 | D65: 0 | E65: 0 | F65: 0 | G65: 0 | H65: 255.75 | I65: Stay in Business | J65: Stay in business | N65: 1 | V65: 1 | W65: $2015/16
A66: Turbine overhauls - Dalby | B66: 0 | C66: 0 | D66: 0 | E66: 0 | F66: 0 | G66: 1329.9 | H66: 1329.9 | I66: Stay in Business | J66: ='inputs¦other'!A52 -> Dalby Turbine Overhaul | M66: 1 | V66: 1 | W66: $2015/16
A67: Applications and Renewals | B67: 0 | C67: 425.728837 | D67: 531.8525471 | E67: 425.728837 | F67: 531.8525471 | G67: 425.728837 | H67: 2340.891605 | I67: Stay in Business | J67: Applications and Renewals | S67: 1 | V67: 1 | W67: $2014/15
A68: Infrastructure Renewals | B68: 0 | C68: 138.8246208 | D68: 46.27487359 | E68: 46.27487359 | F68: 46.27487359 | G68: 0 | H68: 277.6492415 | I68: Stay in Business | J68: Infrastructure Renewals | S68: 1 | V68: 1 | W68: $2014/15
A69: AA Costs | B69: 911.856697 | C69: 72.50548305 | D69: 0 | E69: 0 | F69: 59.34226584 | G69: 911.856697 | H69: 1955.561143 | I69: Stay in Business | J69: Access Arrangement | R69: 1 | V69: 1 | W69: $2015/16
A70: Remote Vehicle Comms - Journey Management | B70: 1.810130338 | C70: 0 | D70: 0 | E70: 0 | F70: 0 | G70: 0 | H70: 1.810130338 | I70: Stay in Business | J70: Stay in business | S70: 1 | V70: 1 | W70: $2015/16
A71: Satellite Strategy | B71: 97.00597542 | C71: 0 | D71: 0 | E71: 0 | F71: 0 | G71: 0 | H71: 97.00597542 | I71: Stay in Business | J71: Stay in business | S71: 1 | V71: 1 | W71: $2015/16
A72: Enterprise Content Management | B72: 290.264327 | C72: 0 | D72: 0 | E72: 0 | F72: 0 | G72: 0 | H72: 290.264327 | I72: Stay in Business | J72: Stay in business | S72: 1 | V72: 1 | W72: $2015/16
A73: APA Grid - Energy Components Upgrade | B73: 155.1809735 | C73: 0 | D73: 0 | E73: 0 | F73: 0 | G73: 0 | H73: 155.1809735 | I73: Stay in Business | J73: Stay in business | S73: 1 | V73: 1 | W73: $2015/16
A74: Hyperion Upgrade to v 11-1-2-4 | B74: 42.65522595 | C74: 0 | D74: 0 | E74: 0 | F74: 0 | G74: 0 | H74: 42.65522595 | I74: Stay in Business | J74: Stay in business | S74: 1 | V74: 1 | W74: $2015/16
A75: APA Grid Services Initiatives Program | B75: 50.80077426 | C75: 0 | D75: 0 | E75: 0 | F75: 0 | G75: 0 | H75: 50.80077426 | I75: Stay in Business | J75: Stay in business | S75: 1 | V75: 1 | W75: $2015/16
A76: APA Grid Extend | B76: 487.0510788 | C76: 108.1047808 | D76: 0 | E76: 0 | F76: 0 | G76: 0 | H76: 595.1558596 | I76: Stay in Business | J76: Stay in business | S76: 1 | V76: 1 | W76: $2015/16
A77: BI - Transmission Dashboard | B77: 59.53282413 | C77: 0 | D77: 0 | E77: 0 | F77: 0 | G77: 0 | H77: 59.53282413 | I77: Stay in Business | J77: Stay in business | S77: 1 | V77: 1 | W77: $2015/16
A78: HR Systems Refresh | B78: 53.62864042 | C78: 283.7966408 | D78: 3.566732725 | E78: 0 | F78: 0 | G78: 0 | H78: 340.992014 | I78: Stay in Business | J78: Stay in business | S78: 1 | V78: 1 | W78: $2015/16
A79: SharePoint Upgrade | B79: 63.7289976 | C79: 42.46786638 | D79: 0 | E79: 0 | F79: 0 | G79: 0 | H79: 106.196864 | I79: Stay in Business | J79: Stay in business | S79: 1 | V79: 1 | W79: $2015/16
A80: SQL Server Upgrade | B80: 56.64354062 | C80: 3.710756647 | D80: 0 | E80: 0 | F80: 0 | G80: 0 | H80: 60.35429727 | I80: Stay in Business | J80: Stay in business | S80: 1 | V80: 1 | W80: $2015/16
A81: Upgrade Enterprise OSI PI Historian | B81: 14.7624742 | C81: 0.200414647 | D81: 0 | E81: 0 | F81: 0 | G81: 0 | H81: 14.96288885 | I81: Stay in Business | J81: Stay in business | S81: 1 | V81: 1 | W81: $2015/16
A82: Hazardous Area Platform | B82: 16.40143094 | C82: 94.84112208 | D82: 0 | E82: 0 | F82: 0 | G82: 0 | H82: =SUM(B82:G82) -> 111.242553 | I82: Stay in Business | J82: Stay in business | S82: 1 | V82: 1 | W82: $2015/16
A83: Form Digitisation Project | B83: 10.27603143 | C83: 77.75513396 | D83: 0 | E83: 0 | F83: 0 | G83: 0 | H83: 88.03116538 | I83: Stay in Business | J83: Stay in business | S83: 1 | V83: 1 | W83: $2015/16
A84: Enterprise Asset Management Upgrade FY18 | B84: 8.109880209 | C84: 166.190606 | D84: 0 | E84: 0 | F84: 0 | G84: 0 | H84: 174.3004862 | I84: Stay in Business | J84: Stay in business | S84: 1 | V84: 1 | W84: $2015/16
A85: PPM Refresh | B85: 1.457981843 | C85: 51.107897 | D85: 0 | E85: 0 | F85: 0 | G85: 0 | H85: 52.56587884 | I85: Stay in Business | J85: Stay in business | S85: 1 | V85: 1 | W85: $2015/16
A86: BizTalk System Upgrade FY18 | B86: 0 | C86: 48.19203685 | D86: 0 | E86: 0 | F86: 0 | G86: 0 | H86: 48.19203685 | I86: Stay in Business | J86: Stay in business | S86: 1 | V86: 1 | W86: $2015/16
A87: Automated Testing Tool | B87: 0 | C87: 25.66815403 | D87: 0 | E87: 0 | F87: 0 | G87: 0 | H87: 25.66815403 | I87: Stay in Business | J87: Stay in business | S87: 1 | V87: 1 | W87: $2015/16
A88: Oracle eBS Upgrade to v12 2 | B88: 0 | C88: 55.84659843 | D88: 0 | E88: 0 | F88: 0 | G88: 0 | H88: 55.84659843 | I88: Stay in Business | J88: Stay in business | S88: 1 | V88: 1 | W88: $2015/16
A89: CRM Upgrade | B89: 0 | C89: 40.91905045 | D89: 0 | E89: 0 | F89: 0 | G89: 0 | H89: 40.91905045 | I89: Stay in Business | J89: Stay in business | S89: 1 | V89: 1 | W89: $2015/16
A90: X-Info Aware Version 2 | B90: 0 | C90: 18.62552923 | D90: 0 | E90: 0 | F90: 0 | G90: 0 | H90: 18.62552923 | I90: Stay in Business | J90: Stay in business | S90: 1 | V90: 1 | W90: $2015/16
A91: ID Procurement Data | B91: 0 | C91: 17.64693964 | D91: 0.9574080772 | E91: 0 | F91: 0 | G91: 0 | H91: 18.60434771 | I91: Stay in Business | J91: Stay in business | S91: 1 | V91: 1 | W91: $2015/16
A92: Upgrade Enterprise OSI PI Historian 2017 | B92: 1.079369416 | C92: 7.818948343 | D92: 0 | E92: 0 | F92: 0 | G92: 0 | H92: 8.898317759 | I92: Stay in Business | J92: Stay in business | S92: 1 | V92: 1 | W92: $2015/16
A93: Supplier Qualification and Compliance | B93: 0 | C93: 6.825279514 | D93: 7.533719835 | E93: 0 | F93: 0 | G93: 0 | H93: 14.35899935 | I93: Stay in Business | J93: Stay in business | S93: 1 | V93: 1 | W93: $2015/16
A94: BizTalk System Upgrade FY20 | B94: 0 | C94: 0 | D94: 0 | E94: 12.24420558 | F94: 0 | G94: 0 | H94: 12.24420558 | I94: Stay in Business | J94: Stay in business | S94: 1 | V94: 1 | W94: $2015/16
A95: Enterprise Asset Management Upgrade FY21 | B95: 0 | C95: 0 | D95: 0 | E95: 7.143156909 | F95: 57.2347211 | G95: 0 | H95: 64.377878 | I95: Stay in Business | J95: Stay in business | S95: 1 | V95: 1 | W95: $2015/16
A99: Total | B99: =SUM(B17:B95) -> 18219.85881 | C99: =SUM(C17:C95) -> 25921.74957 | D99: =SUM(D17:D95) -> 15909.21726 | E99: 6864.288056 | F99: 8366.81139 | G99: 9650.090516 | H99: 84932.01561

Sheet Outputs│Tables
A10: =RIGHT(CELL("filename",A1),LEN(CELL("filename",A1))-FIND("]",CELL("filename",A1))) -> Outputs│Tables
AA12: Gross Capex
A13: Capex by project ($m nominal) | N13: Capex by project ($m real 2016/17) | AA13: Proposal ($2016/17)
A14: Project name | C14: 2013 | D14: 2014 | E14: 2015 | F14: 2016 | G14: 2017 | H14: 2018 | I14: 2019 | J14: 2020 | K14: 2021 | L14: 2022 | N14: Project name | P14: 2013 | Q14: 2014 | R14: 2015 | S14: 2016 | T14: 2017 | U14: 2018 | V14: 2019 | W14: 2020 | X14: 2021 | Y14: 2022 | AA14: Current | AB14: Forecast
A15: ='inputs¦other'!A38 -> Aquarium Passage | B15: $m nominal | C15: =SUMIF('Input¦Historic'!$G$17:$G$98,$A15,'Input¦Historic'!B$17:B$98)/1000000 -> 0.20340742 | D15: =SUMIF('Input¦Historic'!$G$17:$G$98,$A15,'Input¦Historic'!C$17:C$98)/1000000 -> 0.60615213 | E15: =SUMIF('Input¦Historic'!$G$17:$G$98,$A15,'Input¦Historic'!D$17:D$98)/1000000 -> 1.12019813 | F15: =SUMIF('Input¦Historic'!$G$17:$G$98,$A15,'Input¦Historic'!E$17:E$98)/1000000 -> 0 | G15: =SUMIF('Input¦Forecast'!$J$17:$J$95,$A15,'Input¦Forecast'!B$17:B$95)/1000*'inputs¦other'!H$13 -> 0 | H15: =SUMIF('Input¦Forecast'!$J$17:$J$95,$A15,'Input¦Forecast'!C$17:C$95)/1000*'inputs¦other'!I$13 -> 0 | I15: =SUMIF('Input¦Forecast'!$J$17:$J$95,$A15,'Input¦Forecast'!D$17:D$95)/1000*'inputs¦other'!J$13 -> 0 | J15: =SUMIF('Input¦Forecast'!$J$17:$J$95,$A15,'Input¦Forecast'!E$17:E$95)/1000*'inputs¦other'!K$13 -> 0 | K15: =SUMIF('Input¦Forecast'!$J$17:$J$95,$A15,'Input¦Forecast'!F$17:F$95)/1000*'inputs¦other'!L$13 -> 0 | L15: =SUMIF('Input¦Forecast'!$J$17:$J$95,$A15,'Input¦Forecast'!G$17:G$95)/1000*'inputs¦other'!M$13 -> 0 | N15: =A15 -> Aquarium Passage | O15: $m real 2016/17 | P15: =C15/'inputs¦other'!D$13 -> 0.2203071356 | Q15: =D15/'inputs¦other'!E$13 -> 0.6404849655 | R15: =E15/'inputs¦other'!F$13 -> 1.149956714 | S15: =F15/'inputs¦other'!G$13 -> 0 | T15: =G15/'inputs¦other'!H$13 -> 0 | U15: =H15/'inputs¦other'!I$13 -> 0 | V15: =I15/'inputs¦other'!J$13 -> 0 | W15: =J15/'inputs¦other'!K$13 -> 0 | X15: =K15/'inputs¦other'!L$13 -> 0 | Y15: =L15/'inputs¦other'!M$13 -> 0 | AA15: =SUM(P15:T15) -> 2.010748815 | AB15: =SUM(U15:Y15) -> 0
A16: ='inputs¦other'!A39 -> Flood Damage | B16: $m nominal | C16: =SUMIF('Input¦Historic'!$G$17:$G$98,$A16,'Input¦Historic'!B$17:B$98)/1000000 -> 0.09802684 | D16: =SUMIF('Input¦Historic'!$G$17:$G$98,$A16,'Input¦Historic'!C$17:C$98)/1000000 -> 1.794542247 | E16: =SUMIF('Input¦Historic'!$G$17:$G$98,$A16,'Input¦Historic'!D$17:D$98)/1000000 -> 5.68429149 | F16: =SUMIF('Input¦Historic'!$G$17:$G$98,$A16,'Input¦Historic'!E$17:E$98)/1000000 -> 0 | G16: =SUMIF('Input¦Forecast'!$J$17:$J$95,$A16,'Input¦Forecast'!B$17:B$95)/1000*'inputs¦other'!H$13 -> 0 | H16: =SUMIF('Input¦Forecast'!$J$17:$J$95,$A16,'Input¦Forecast'!C$17:C$95)/1000*'inputs¦other'!I$13 -> 0 | I16: =SUMIF('Input¦Forecast'!$J$17:$J$95,$A16,'Input¦Forecast'!D$17:D$95)/1000*'inputs¦other'!J$13 -> 0 | J16: =SUMIF('Input¦Forecast'!$J$17:$J$95,$A16,'Input¦Forecast'!E$17:E$95)/1000*'inputs¦other'!K$13 -> 0 | K16: =SUMIF('Input¦Forecast'!$J$17:$J$95,$A16,'Input¦Forecast'!F$17:F$95)/1000*'inputs¦other'!L$13 -> 0 | L16: =SUMIF('Input¦Forecast'!$J$17:$J$95,$A16,'Input¦Forecast'!G$17:G$95)/1000*'inputs¦other'!M$13 -> 0 | N16: =A16 -> Flood Damage | O16: $m real 2016/17 | P16: =C16/'inputs¦other'!D$13 -> 0.1061712121 | Q16: =D16/'inputs¦other'!E$13 -> 1.896186241 | R16: =E16/'inputs¦other'!F$13 -> 5.835297336 | S16: =F16/'inputs¦other'!G$13 -> 0 | T16: =G16/'inputs¦other'!H$13 -> 0 | U16: =H16/'inputs¦other'!I$13 -> 0 | V16: =I16/'inputs¦other'!J$13 -> 0 | W16: =J16/'inputs¦other'!K$13 -> 0 | X16: =K16/'inputs¦other'!L$13 -> 0 | Y16: =L16/'inputs¦other'!M$13 -> 0 | AA16: =SUM(P16:T16) -> 7.837654789 | AB16: =SUM(U16:Y16) -> 0
A17: ='inputs¦other'!A40 -> Bi direction | B17: $m nominal | C17: =SUMIF('Input¦Historic'!$G$17:$G$98,$A17,'Input¦Historic'!B$17:B$98)/1000000 -> 0 | D17: =SUMIF('Input¦Historic'!$G$17:$G$98,$A17,'Input¦Historic'!C$17:C$98)/1000000 -> 0 | E17: =SUMIF('Input¦Historic'!$G$17:$G$98,$A17,'Input¦Historic'!D$17:D$98)/1000000 -> 7.54519578 | F17: =SUMIF('Input¦Historic'!$G$17:$G$98,$A17,'Input¦Historic'!E$17:E$98)/1000000 -> 0.61401758 | G17: =SUMIF('Input¦Forecast'!$J$17:$J$95,$A17,'Input¦Forecast'!B$17:B$95)/1000*'inputs¦other'!H$13 -> 0 | H17: =SUMIF('Input¦Forecast'!$J$17:$J$95,$A17,'Input¦Forecast'!C$17:C$95)/1000*'inputs¦other'!I$13 -> 0 | I17: =SUMIF('Input¦Forecast'!$J$17:$J$95,$A17,'Input¦Forecast'!D$17:D$95)/1000*'inputs¦other'!J$13 -> 0 | J17: =SUMIF('Input¦Forecast'!$J$17:$J$95,$A17,'Input¦Forecast'!E$17:E$95)/1000*'inputs¦other'!K$13 -> 0 | K17: =SUMIF('Input¦Forecast'!$J$17:$J$95,$A17,'Input¦Forecast'!F$17:F$95)/1000*'inputs¦other'!L$13 -> 0 | L17: =SUMIF('Input¦Forecast'!$J$17:$J$95,$A17,'Input¦Forecast'!G$17:G$95)/1000*'inputs¦other'!M$13 -> 0 | N17: Bi direction | O17: $m real 2016/17 | P17: =C17/'inputs¦other'!D$13 -> 0 | Q17: =D17/'inputs¦other'!E$13 -> 0 | R17: =E17/'inputs¦other'!F$13 -> 7.745637414 | S17: =F17/'inputs¦other'!G$13 -> 0.6220664996 | T17: =G17/'inputs¦other'!H$13 -> 0 | U17: =H17/'inputs¦other'!I$13 -> 0 | V17: =I17/'inputs¦other'!J$13 -> 0 | W17: =J17/'inputs¦other'!K$13 -> 0 | X17: =K17/'inputs¦other'!L$13 -> 0 | Y17: =L17/'inputs¦other'!M$13 -> 0 | AA17: 8.367703913 | AB17: 0
A18: ='inputs¦other'!A42 -> Clear SCADA | B18: $m nominal | C18: =SUMIF('Input¦Historic'!$G$17:$G$98,$A18,'Input¦Historic'!B$17:B$98)/1000000 -> 0 | D18: =SUMIF('Input¦Historic'!$G$17:$G$98,$A18,'Input¦Historic'!C$17:C$98)/1000000 -> 0.39804328 | E18: =SUMIF('Input¦Historic'!$G$17:$G$98,$A18,'Input¦Historic'!D$17:D$98)/1000000 -> 0.54875395 | F18: =SUMIF('Input¦Historic'!$G$17:$G$98,$A18,'Input¦Historic'!E$17:E$98)/1000000 -> 0 | G18: =SUMIF('Input¦Forecast'!$J$17:$J$95,$A18,'Input¦Forecast'!B$17:B$95)/1000*'inputs¦other'!H$13 -> 0 | H18: =SUMIF('Input¦Forecast'!$J$17:$J$95,$A18,'Input¦Forecast'!C$17:C$95)/1000*'inputs¦other'!I$13 -> 0 | I18: =SUMIF('Input¦Forecast'!$J$17:$J$95,$A18,'Input¦Forecast'!D$17:D$95)/1000*'inputs¦other'!J$13 -> 0 | J18: =SUMIF('Input¦Forecast'!$J$17:$J$95,$A18,'Input¦Forecast'!E$17:E$95)/1000*'inputs¦other'!K$13 -> 0 | K18: =SUMIF('Input¦Forecast'!$J$17:$J$95,$A18,'Input¦Forecast'!F$17:F$95)/1000*'inputs¦other'!L$13 -> 0 | L18: =SUMIF('Input¦Forecast'!$J$17:$J$95,$A18,'Input¦Forecast'!G$17:G$95)/1000*'inputs¦other'!M$13 -> 0 | N18: Clear SCADA | O18: $m real 2016/17 | P18: =C18/'inputs¦other'!D$13 -> 0 | Q18: =D18/'inputs¦other'!E$13 -> 0.4205887002 | R18: =E18/'inputs¦other'!F$13 -> 0.5633318538 | S18: =F18/'inputs¦other'!G$13 -> 0 | T18: =G18/'inputs¦other'!H$13 -> 0 | U18: =H18/'inputs¦other'!I$13 -> 0 | V18: =I18/'inputs¦other'!J$13 -> 0 | W18: =J18/'inputs¦other'!K$13 -> 0 | X18: =K18/'inputs¦other'!L$13 -> 0 | Y18: =L18/'inputs¦other'!M$13 -> 0 | AA18: 0.983920554 | AB18: 0
A19: ='inputs¦other'!A43 -> RBP Looping | B19: $m nominal | C19: =SUMIF('Input¦Historic'!$G$17:$G$98,$A19,'Input¦Historic'!B$17:B$98)/1000000 -> 2.92318626 | D19: =SUMIF('Input¦Historic'!$G$17:$G$98,$A19,'Input¦Historic'!C$17:C$98)/1000000 -> 2.40302167 | E19: =SUMIF('Input¦Historic'!$G$17:$G$98,$A19,'Input¦Historic'!D$17:D$98)/1000000 -> 0.01857902 | F19: =SUMIF('Input¦Historic'!$G$17:$G$98,$A19,'Input¦Historic'!E$17:E$98)/1000000 -> 0 | G19: =SUMIF('Input¦Forecast'!$J$17:$J$95,$A19,'Input¦Forecast'!B$17:B$95)/1000*'inputs¦other'!H$13 -> 0 | H19: =SUMIF('Input¦Forecast'!$J$17:$J$95,$A19,'Input¦Forecast'!C$17:C$95)/1000*'inputs¦other'!I$13 -> 0 | I19: =SUMIF('Input¦Forecast'!$J$17:$J$95,$A19,'Input¦Forecast'!D$17:D$95)/1000*'inputs¦other'!J$13 -> 0 | J19: =SUMIF('Input¦Forecast'!$J$17:$J$95,$A19,'Input¦Forecast'!E$17:E$95)/1000*'inputs¦other'!K$13 -> 0 | K19: =SUMIF('Input¦Forecast'!$J$17:$J$95,$A19,'Input¦Forecast'!F$17:F$95)/1000*'inputs¦other'!L$13 -> 0 | L19: =SUMIF('Input¦Forecast'!$J$17:$J$95,$A19,'Input¦Forecast'!G$17:G$95)/1000*'inputs¦other'!M$13 -> 0 | N19: RBP Looping | O19: $m real 2016/17 | P19: =C19/'inputs¦other'!D$13 -> 3.166053587 | Q19: =D19/'inputs¦other'!E$13 -> 2.539130319 | R19: =E19/'inputs¦other'!F$13 -> 0.0190725803 | S19: =F19/'inputs¦other'!G$13 -> 0 | T19: =G19/'inputs¦other'!H$13 -> 0 | U19: =H19/'inputs¦other'!I$13 -> 0 | V19: =I19/'inputs¦other'!J$13 -> 0 | W19: =J19/'inputs¦other'!K$13 -> 0 | X19: =K19/'inputs¦other'!L$13 -> 0 | Y19: =L19/'inputs¦other'!M$13 -> 0 | AA19: 5.724256486 | AB19: 0
A20: ='inputs¦other'!A44 -> FC and RTU upgrade | B20: $m nominal | C20: =SUMIF('Input¦Historic'!$G$17:$G$98,$A20,'Input¦Historic'!B$17:B$98)/1000000 -> 0.026836 | D20: =SUMIF('Input¦Historic'!$G$17:$G$98,$A20,'Input¦Historic'!C$17:C$98)/1000000 -> 0.4423934 | E20: =SUMIF('Input¦Historic'!$G$17:$G$98,$A20,'Input¦Historic'!D$17:D$98)/1000000 -> 0.53151581 | F20: =SUMIF('Input¦Historic'!$G$17:$G$98,$A20,'Input¦Historic'!E$17:E$98)/1000000 -> 0.10216829 | G20: =SUMIF('Input¦Forecast'!$J$17:$J$95,$A20,'Input¦Forecast'!B$17:B$95)/1000*'inputs¦other'!H$13 -> 0 | H20: =SUMIF('Input¦Forecast'!$J$17:$J$95,$A20,'Input¦Forecast'!C$17:C$95)/1000*'inputs¦other'!I$13 -> 0 | I20: =SUMIF('Input¦Forecast'!$J$17:$J$95,$A20,'Input¦Forecast'!D$17:D$95)/1000*'inputs¦other'!J$13 -> 0 | J20: =SUMIF('Input¦Forecast'!$J$17:$J$95,$A20,'Input¦Forecast'!E$17:E$95)/1000*'inputs¦other'!K$13 -> 0 | K20: =SUMIF('Input¦Forecast'!$J$17:$J$95,$A20,'Input¦Forecast'!F$17:F$95)/1000*'inputs¦other'!L$13 -> 0 | L20: =SUMIF('Input¦Forecast'!$J$17:$J$95,$A20,'Input¦Forecast'!G$17:G$95)/1000*'inputs¦other'!M$13 -> 0 | N20: FC and RTU upgrade | O20: $m real 2016/17 | P20: =C20/'inputs¦other'!D$13 -> 0.02906561762 | Q20: =D20/'inputs¦other'!E$13 -> 0.4674508387 | R20: =E20/'inputs¦other'!F$13 -> 0.5456357746 | S20: =F20/'inputs¦other'!G$13 -> 0.1035075747 | T20: =G20/'inputs¦other'!H$13 -> 0 | U20: =H20/'inputs¦other'!I$13 -> 0 | V20: =I20/'inputs¦other'!J$13 -> 0 | W20: =J20/'inputs¦other'!K$13 -> 0 | X20: =K20/'inputs¦other'!L$13 -> 0 | Y20: =L20/'inputs¦other'!M$13 -> 0 | AA20: 1.145659806 | AB20: 0
A21: ='inputs¦other'!A45 -> Toowoomba Station Upgrade | B21: $m nominal | C21: =SUMIF('Input¦Historic'!$G$17:$G$98,$A21,'Input¦Historic'!B$17:B$98)/1000000 -> 0.05611001 | D21: =SUMIF('Input¦Historic'!$G$17:$G$98,$A21,'Input¦Historic'!C$17:C$98)/1000000 -> 0.40998034 | E21: =SUMIF('Input¦Historic'!$G$17:$G$98,$A21,'Input¦Historic'!D$17:D$98)/1000000 -> 0.83088895 | F21: =SUMIF('Input¦Historic'!$G$17:$G$98,$A21,'Input¦Historic'!E$17:E$98)/1000000 -> 0 | G21: =SUMIF('Input¦Forecast'!$J$17:$J$95,$A21,'Input¦Forecast'!B$17:B$95)/1000*'inputs¦other'!H$13 -> 0 | H21: =SUMIF('Input¦Forecast'!$J$17:$J$95,$A21,'Input¦Forecast'!C$17:C$95)/1000*'inputs¦other'!I$13 -> 0 | I21: =SUMIF('Input¦Forecast'!$J$17:$J$95,$A21,'Input¦Forecast'!D$17:D$95)/1000*'inputs¦other'!J$13 -> 0 | J21: =SUMIF('Input¦Forecast'!$J$17:$J$95,$A21,'Input¦Forecast'!E$17:E$95)/1000*'inputs¦other'!K$13 -> 0 | K21: =SUMIF('Input¦Forecast'!$J$17:$J$95,$A21,'Input¦Forecast'!F$17:F$95)/1000*'inputs¦other'!L$13 -> 0 | L21: =SUMIF('Input¦Forecast'!$J$17:$J$95,$A21,'Input¦Forecast'!G$17:G$95)/1000*'inputs¦other'!M$13 -> 0 | N21: Toowoomba Station Upgrade | O21: $m real 2016/17 | P21: =C21/'inputs¦other'!D$13 -> 0.06077180262 | Q21: =D21/'inputs¦other'!E$13 -> 0.4332018827 | R21: =E21/'inputs¦other'!F$13 -> 0.8529619012 | S21: =F21/'inputs¦other'!G$13 -> 0 | T21: =G21/'inputs¦other'!H$13 -> 0 | U21: =H21/'inputs¦other'!I$13 -> 0 | V21: =I21/'inputs¦other'!J$13 -> 0 | W21: =J21/'inputs¦other'!K$13 -> 0 | X21: =K21/'inputs¦other'!L$13 -> 0 | Y21: =L21/'inputs¦other'!M$13 -> 0 | AA21: 1.346935587 | AB21: 0
A22: ='inputs¦other'!A46 -> Access Arrangement | B22: $m nominal | C22: =SUMIF('Input¦Historic'!$G$17:$G$98,$A22,'Input¦Historic'!B$17:B$98)/1000000 -> 0.07087535 | D22: =SUMIF('Input¦Historic'!$G$17:$G$98,$A22,'Input¦Historic'!C$17:C$98)/1000000 -> 0 | E22: =SUMIF('Input¦Historic'!$G$17:$G$98,$A22,'Input¦Historic'!D$17:D$98)/1000000 -> 0 | F22: =SUMIF('Input¦Historic'!$G$17:$G$98,$A22,'Input¦Historic'!E$17:E$98)/1000000 -> 0.05800808 | G22: =SUMIF('Input¦Forecast'!$J$17:$J$95,$A22,'Input¦Forecast'!B$17:B$95)/1000*'inputs¦other'!H$13 -> 0.911856697 | H22: =SUMIF('Input¦Forecast'!$J$17:$J$95,$A22,'Input¦Forecast'!C$17:C$95)/1000*'inputs¦other'!I$13 -> 0.07417310916 | I22: =SUMIF('Input¦Forecast'!$J$17:$J$95,$A22,'Input¦Forecast'!D$17:D$95)/1000*'inputs¦other'!J$13 -> 0 | J22: =SUMIF('Input¦Forecast'!$J$17:$J$95,$A22,'Input¦Forecast'!E$17:E$95)/1000*'inputs¦other'!K$13 -> 0 | K22: =SUMIF('Input¦Forecast'!$J$17:$J$95,$A22,'Input¦Forecast'!F$17:F$95)/1000*'inputs¦other'!L$13 -> 0.06499301132 | L22: =SUMIF('Input¦Forecast'!$J$17:$J$95,$A22,'Input¦Forecast'!G$17:G$95)/1000*'inputs¦other'!M$13 -> 1.021656166 | N22: Access Arrangement | O22: $m real 2016/17 | P22: =C22/'inputs¦other'!D$13 -> 0.07676389259 | Q22: =D22/'inputs¦other'!E$13 -> 0 | R22: =E22/'inputs¦other'!F$13 -> 0 | S22: =F22/'inputs¦other'!G$13 -> 0.05876848554 | T22: =G22/'inputs¦other'!H$13 -> 0.911856697 | U22: =H22/'inputs¦other'!I$13 -> 0.07250548305 | V22: =I22/'inputs¦other'!J$13 -> 0 | W22: =J22/'inputs¦other'!K$13 -> 0 | X22: =K22/'inputs¦other'!L$13 -> 0.05934226584 | Y22: =L22/'inputs¦other'!M$13 -> 0.911856697 | AA22: 1.047389075 | AB22: 1.043704446
A23: Stay in business | B23: $m nominal | C23: =SUMIF('Input¦Historic'!$G$17:$G$98,"SIB",'Input¦Historic'!B$17:B$98)/1000000 -> 1.845689717 | D23: =SUMIF('Input¦Historic'!$G$17:$G$98,"SIB",'Input¦Historic'!C$17:C$98)/1000000 -> 2.18657785 | E23: =SUMIF('Input¦Historic'!$G$17:$G$98,"SIB",'Input¦Historic'!D$17:D$98)/1000000 -> 3.204339481 | F23: =SUMIF('Input¦Historic'!$G$17:$G$98,"SIB",'Input¦Historic'!E$17:E$98)/1000000 -> 3.68953432 | G23: =SUMIF('Input¦Forecast'!$J$17:$J$95,$A23,'Input¦Forecast'!B$17:B$95)/1000*'inputs¦other'!H$13 -> 2.562480117 | H23: =SUMIF('Input¦Forecast'!$J$17:$J$95,$A23,'Input¦Forecast'!C$17:C$95)/1000*'inputs¦other'!I$13 -> 3.051906317 | I23: =SUMIF('Input¦Forecast'!$J$17:$J$95,$A23,'Input¦Forecast'!D$17:D$95)/1000*'inputs¦other'!J$13 -> 1.250890833 | J23: =SUMIF('Input¦Forecast'!$J$17:$J$95,$A23,'Input¦Forecast'!E$17:E$95)/1000*'inputs¦other'!K$13 -> 0.6741834298 | K23: =SUMIF('Input¦Forecast'!$J$17:$J$95,$A23,'Input¦Forecast'!F$17:F$95)/1000*'inputs¦other'!L$13 -> 0.6695182252 | L23: =SUMIF('Input¦Forecast'!$J$17:$J$95,$A23,'Input¦Forecast'!G$17:G$95)/1000*'inputs¦other'!M$13 -> 0.3342449704 | N23: Stay in business | O23: $m real 2016/17 | P23: =C23/'inputs¦other'!D$13 -> 1.999035309 | Q23: =D23/'inputs¦other'!E$13 -> 2.310426986 | R23: =E23/'inputs¦other'!F$13 -> 3.289464249 | S23: =F23/'inputs¦other'!G$13 -> 3.737899002 | T23: =G23/'inputs¦other'!H$13 -> 2.562480117 | U23: =H23/'inputs¦other'!I$13 -> 2.983290632 | V23: =I23/'inputs¦other'!J$13 -> 1.195275843 | W23: =J23/'inputs¦other'!K$13 -> 0.629725345 | X23: =K23/'inputs¦other'!L$13 -> 0.6113077036 | Y23: =L23/'inputs¦other'!M$13 -> 0.2983229825 | AA23: 13.89930566 | AB23: 5.717922506
A24: ='inputs¦other'!A49 -> Urban Risk Reduction | B24: $m nominal | C24: 0 | D24: 0 | E24: 0 | F24: 0 | G24: =SUMIF('Input¦Forecast'!$J$17:$J$95,$A24,'Input¦Forecast'!B$17:B$95)/1000*'inputs¦other'!H$13 -> 8.184 | H24: =SUMIF('Input¦Forecast'!$J$17:$J$95,$A24,'Input¦Forecast'!C$17:C$95)/1000*'inputs¦other'!I$13 -> 1.72677285 | I24: =SUMIF('Input¦Forecast'!$J$17:$J$95,$A24,'Input¦Forecast'!D$17:D$95)/1000*'inputs¦other'!J$13 -> 0.3211797501 | J24: =SUMIF('Input¦Forecast'!$J$17:$J$95,$A24,'Input¦Forecast'!E$17:E$95)/1000*'inputs¦other'!K$13 -> 0.3285668844 | K24: =SUMIF('Input¦Forecast'!$J$17:$J$95,$A24,'Input¦Forecast'!F$17:F$95)/1000*'inputs¦other'!L$13 -> 0.3361239227 | L24: =SUMIF('Input¦Forecast'!$J$17:$J$95,$A24,'Input¦Forecast'!G$17:G$95)/1000*'inputs¦other'!M$13 -> 0.3438547729 | N24: Urban Risk Reduction | O24: $m real 2016/17 | P24: =C24/'inputs¦other'!D$13 -> 0 | Q24: =D24/'inputs¦other'!E$13 -> 0 | R24: =E24/'inputs¦other'!F$13 -> 0 | S24: =F24/'inputs¦other'!G$13 -> 0 | T24: =G24/'inputs¦other'!H$13 -> 8.184 | U24: =H24/'inputs¦other'!I$13 -> 1.68795 | V24: =I24/'inputs¦other'!J$13 -> 0.3069 | W24: =J24/'inputs¦other'!K$13 -> 0.3069 | X24: =K24/'inputs¦other'!L$13 -> 0.3069 | Y24: =L24/'inputs¦other'!M$13 -> 0.3069 | AA24: 8.184 | AB24: 2.91555
A25: ='inputs¦other'!A50 -> Pipeline Integrity Management | B25: $m nominal | C25: =SUMIF('Input¦Historic'!$G$17:$G$98,$A25,'Input¦Historic'!B$17:B$98)/1000000 -> 0.65395347 | D25: =SUMIF('Input¦Historic'!$G$17:$G$98,$A25,'Input¦Historic'!C$17:C$98)/1000000 -> 2.2802438 | E25: =SUMIF('Input¦Historic'!$G$17:$G$98,$A25,'Input¦Historic'!D$17:D$98)/1000000 -> 3.50841376 | F25: =SUMIF('Input¦Historic'!$G$17:$G$98,$A25,'Input¦Historic'!E$17:E$98)/1000000 -> 5.40870331 | G25: =SUMIF('Input¦Forecast'!$J$17:$J$95,$A25,'Input¦Forecast'!B$17:B$95)/1000*'inputs¦other'!H$13 -> 6.254622 | H25: =SUMIF('Input¦Forecast'!$J$17:$J$95,$A25,'Input¦Forecast'!C$17:C$95)/1000*'inputs¦other'!I$13 -> 8.8954965 | I25: =SUMIF('Input¦Forecast'!$J$17:$J$95,$A25,'Input¦Forecast'!D$17:D$95)/1000*'inputs¦other'!J$13 -> 10.72526246 | J25: =SUMIF('Input¦Forecast'!$J$17:$J$95,$A25,'Input¦Forecast'!E$17:E$95)/1000*'inputs¦other'!K$13 -> 5.840823981 | K25: =SUMIF('Input¦Forecast'!$J$17:$J$95,$A25,'Input¦Forecast'!F$17:F$95)/1000*'inputs¦other'!L$13 -> 7.459710258 | L25: =SUMIF('Input¦Forecast'!$J$17:$J$95,$A25,'Input¦Forecast'!G$17:G$95)/1000*'inputs¦other'!M$13 -> 7.145302181 | N25: Pipeline Integrity Management | O25: $m real 2016/17 | P25: =C25/'inputs¦other'!D$13 -> 0.7082859405 | Q25: =D25/'inputs¦other'!E$13 -> 2.409398234 | R25: =E25/'inputs¦other'!F$13 -> 3.601616403 | S25: =F25/'inputs¦other'!G$13 -> 5.479603915 | T25: =G25/'inputs¦other'!H$13 -> 6.254622 | U25: =H25/'inputs¦other'!I$13 -> 8.6955 | V25: =I25/'inputs¦other'!J$13 -> 10.248414 | W25: =J25/'inputs¦other'!K$13 -> 5.455659 | X25: =K25/'inputs¦other'!L$13 -> 6.811134 | Y25: =L25/'inputs¦other'!M$13 -> 6.377382 | AA25: 18.45352649 | AB25: 37.588089
A26: ='inputs¦other'!A51 -> Toowoomba Crossing | B26: $m nominal | C26: 0 | D26: 0 | E26: 0 | F26: 0 | G26: =SUMIF('Input¦Forecast'!$J$17:$J$95,$A26,'Input¦Forecast'!B$17:B$95)/1000*'inputs¦other'!H$13 -> 0.3069 | H26: =SUMIF('Input¦Forecast'!$J$17:$J$95,$A26,'Input¦Forecast'!C$17:C$95)/1000*'inputs¦other'!I$13 -> 12.19206285 | I26: =SUMIF('Input¦Forecast'!$J$17:$J$95,$A26,'Input¦Forecast'!D$17:D$95)/1000*'inputs¦other'!J$13 -> 3.747097084 | J26: =SUMIF('Input¦Forecast'!$J$17:$J$95,$A26,'Input¦Forecast'!E$17:E$95)/1000*'inputs¦other'!K$13 -> 0 | K26: =SUMIF('Input¦Forecast'!$J$17:$J$95,$A26,'Input¦Forecast'!F$17:F$95)/1000*'inputs¦other'!L$13 -> 0 | L26: =SUMIF('Input¦Forecast'!$J$17:$J$95,$A26,'Input¦Forecast'!G$17:G$95)/1000*'inputs¦other'!M$13 -> 0 | N26: Toowoomba Crossing | O26: $m real 2016/17 | P26: =C26/'inputs¦other'!D$13 -> 0 | Q26: =D26/'inputs¦other'!E$13 -> 0 | R26: =E26/'inputs¦other'!F$13 -> 0 | S26: =F26/'inputs¦other'!G$13 -> 0 | T26: =G26/'inputs¦other'!H$13 -> 0.3069 | U26: =H26/'inputs¦other'!I$13 -> 11.91795 | V26: =I26/'inputs¦other'!J$13 -> 3.5805 | W26: =J26/'inputs¦other'!K$13 -> 0 | X26: =K26/'inputs¦other'!L$13 -> 0 | Y26: =L26/'inputs¦other'!M$13 -> 0 | AA26: 0.3069 | AB26: 15.49845
A27: ='inputs¦other'!A52 -> Dalby Turbine Overhaul | B27: $m nominal | C27: 0 | D27: 0 | E27: 0 | F27: 0 | G27: =SUMIF('Input¦Forecast'!$J$17:$J$95,$A27,'Input¦Forecast'!B$17:B$95)/1000*'inputs¦other'!H$13 -> 0 | H27: =SUMIF('Input¦Forecast'!$J$17:$J$95,$A27,'Input¦Forecast'!C$17:C$95)/1000*'inputs¦other'!I$13 -> 0 | I27: =SUMIF('Input¦Forecast'!$J$17:$J$95,$A27,'Input¦Forecast'!D$17:D$95)/1000*'inputs¦other'!J$13 -> 0 | J27: =SUMIF('Input¦Forecast'!$J$17:$J$95,$A27,'Input¦Forecast'!E$17:E$95)/1000*'inputs¦other'!K$13 -> 0 | K27: =SUMIF('Input¦Forecast'!$J$17:$J$95,$A27,'Input¦Forecast'!F$17:F$95)/1000*'inputs¦other'!L$13 -> 0 | L27: =SUMIF('Input¦Forecast'!$J$17:$J$95,$A27,'Input¦Forecast'!G$17:G$95)/1000*'inputs¦other'!M$13 -> 1.490037349 | N27: Dalby Turbine Overhaul | O27: $m real 2016/17 | P27: =C27/'inputs¦other'!D$13 -> 0 | Q27: =D27/'inputs¦other'!E$13 -> 0 | R27: =E27/'inputs¦other'!F$13 -> 0 | S27: =F27/'inputs¦other'!G$13 -> 0 | T27: =G27/'inputs¦other'!H$13 -> 0 | U27: =H27/'inputs¦other'!I$13 -> 0 | V27: =I27/'inputs¦other'!J$13 -> 0 | W27: =J27/'inputs¦other'!K$13 -> 0 | X27: =K27/'inputs¦other'!L$13 -> 0 | Y27: =L27/'inputs¦other'!M$13 -> 1.3299 | AA27: 0 | AB27: 1.3299
A28: ='inputs¦other'!A53 -> Applications and Renewals | B28: $m nominal | C28: 0 | D28: 0 | E28: 0 | F28: 0 | G28: =SUMIF('Input¦Forecast'!$J$17:$J$95,$A28,'Input¦Forecast'!B$17:B$95)/1000*'inputs¦other'!H$13 -> 0 | H28: =SUMIF('Input¦Forecast'!$J$17:$J$95,$A28,'Input¦Forecast'!C$17:C$95)/1000*'inputs¦other'!I$13 -> 0.4355206003 | I28: =SUMIF('Input¦Forecast'!$J$17:$J$95,$A28,'Input¦Forecast'!D$17:D$95)/1000*'inputs¦other'!J$13 -> 0.5565991143 | J28: =SUMIF('Input¦Forecast'!$J$17:$J$95,$A28,'Input¦Forecast'!E$17:E$95)/1000*'inputs¦other'!K$13 -> 0.4557849383 | K28: =SUMIF('Input¦Forecast'!$J$17:$J$95,$A28,'Input¦Forecast'!F$17:F$95)/1000*'inputs¦other'!L$13 -> 0.5824971145 | L28: =SUMIF('Input¦Forecast'!$J$17:$J$95,$A28,'Input¦Forecast'!G$17:G$95)/1000*'inputs¦other'!M$13 -> 0.4769921557 | N28: Applications and Renewals | O28: $m real 2016/17 | P28: =C28/'inputs¦other'!D$13 -> 0 | Q28: =D28/'inputs¦other'!E$13 -> 0 | R28: =E28/'inputs¦other'!F$13 -> 0 | S28: =F28/'inputs¦other'!G$13 -> 0 | T28: =G28/'inputs¦other'!H$13 -> 0 | U28: =H28/'inputs¦other'!I$13 -> 0.425728837 | V28: =I28/'inputs¦other'!J$13 -> 0.5318525471 | W28: =J28/'inputs¦other'!K$13 -> 0.425728837 | X28: =K28/'inputs¦other'!L$13 -> 0.5318525471 | Y28: =L28/'inputs¦other'!M$13 -> 0.425728837 | AA28: 0 | AB28: 2.340891605
A29: ='inputs¦other'!A54 -> Infrastructure Renewals | B29: $m nominal | C29: 0 | D29: 0 | E29: 0 | F29: 0 | G29: =SUMIF('Input¦Forecast'!$J$17:$J$95,$A29,'Input¦Forecast'!B$17:B$95)/1000*'inputs¦other'!H$13 -> 0 | H29: =SUMIF('Input¦Forecast'!$J$17:$J$95,$A29,'Input¦Forecast'!C$17:C$95)/1000*'inputs¦other'!I$13 -> 0.142017587 | I29: =SUMIF('Input¦Forecast'!$J$17:$J$95,$A29,'Input¦Forecast'!D$17:D$95)/1000*'inputs¦other'!J$13 -> 0.04842799718 | J29: =SUMIF('Input¦Forecast'!$J$17:$J$95,$A29,'Input¦Forecast'!E$17:E$95)/1000*'inputs¦other'!K$13 -> 0.04954184112 | K29: =SUMIF('Input¦Forecast'!$J$17:$J$95,$A29,'Input¦Forecast'!F$17:F$95)/1000*'inputs¦other'!L$13 -> 0.05068130346 | L29: =SUMIF('Input¦Forecast'!$J$17:$J$95,$A29,'Input¦Forecast'!G$17:G$95)/1000*'inputs¦other'!M$13 -> 0 | N29: Infrastructure Renewals | O29: $m real 2016/17 | P29: =C29/'inputs¦other'!D$13 -> 0 | Q29: =D29/'inputs¦other'!E$13 -> 0 | R29: =E29/'inputs¦other'!F$13 -> 0 | S29: =F29/'inputs¦other'!G$13 -> 0 | T29: =G29/'inputs¦other'!H$13 -> 0 | U29: =H29/'inputs¦other'!I$13 -> 0.1388246208 | V29: =I29/'inputs¦other'!J$13 -> 0.04627487359 | W29: =J29/'inputs¦other'!K$13 -> 0.04627487359 | X29: =K29/'inputs¦other'!L$13 -> 0.04627487359 | Y29: =L29/'inputs¦other'!M$13 -> 0 | AA29: 0 | AB29: 0.2776492415
A30: Total | B30: $m nominal | C30: =SUM(C15:C29) -> 5.878085067 | D30: 10.52095472 | E30: 22.99217637 | F30: 9.87243158 | G30: 18.21985881 | H30: 26.51794981 | I30: 16.64945723 | J30: 7.348901074 | K30: 9.163523835 | L30: 10.8120876 | N30: Total | P30: =SUM(P15:P29) -> 6.366454496 | Q30: 11.11686817 | R30: 23.60297423 | S30: 10.00184548 | T30: 18.21985881 | U30: 25.92174957 | V30: 15.90921726 | W30: 6.864288056 | X30: 8.36681139 | Y30: 9.650090516 | AA30: =SUM(AA15:AA29) -> 69.30800118 | AB30: =SUM(AB15:AB29) -> 66.7121568
A32: Total Inputs | C32: ='Input¦Historic'!B101/1000000 -> 5.878085067 | D32: ='Input¦Historic'!C101/1000000 -> 10.52095472 | E32: ='Input¦Historic'!D101/1000000 -> 22.99217637 | F32: ='Input¦Historic'!E101/1000000 -> 9.87243158 | G32: ='Input¦Forecast'!B99/1000*'inputs¦other'!H$13 -> 18.21985881 | H32: ='Input¦Forecast'!C99/1000*'inputs¦other'!I$13 -> 26.51794981 | I32: ='Input¦Forecast'!D99/1000*'inputs¦other'!J$13 -> 16.64945723 | J32: ='Input¦Forecast'!E99/1000*'inputs¦other'!K$13 -> 7.348901074 | K32: ='Input¦Forecast'!F99/1000*'inputs¦other'!L$13 -> 9.163523835 | L32: ='Input¦Forecast'!G99/1000*'inputs¦other'!M$13 -> 10.8120876 | N32: Total Inputs | P32: ='Input¦Historic'!B101/'inputs¦other'!D13/1000000 -> 6.366454496 | Q32: ='Input¦Historic'!C101/'inputs¦other'!E13/1000000 -> 11.11686817 | R32: ='Input¦Historic'!D101/'inputs¦other'!F13/1000000 -> 23.60297423 | S32: ='Input¦Historic'!E101/'inputs¦other'!G13/1000000 -> 10.00184548 | T32: ='Input¦Forecast'!B99/1000 -> 18.21985881 | U32: ='Input¦Forecast'!C99/1000 -> 25.92174957 | V32: ='Input¦Forecast'!D99/1000 -> 15.90921726 | W32: ='Input¦Forecast'!E99/1000 -> 6.864288056 | X32: ='Input¦Forecast'!F99/1000 -> 8.36681139 | Y32: ='Input¦Forecast'!G99/1000 -> 9.650090516
A33: Difference | C33: =C30-C32 -> 0 | D33: =D30-D32 -> 0 | E33: 0 | F33: 0 | G33: 0 | H33: 0 | I33: 0 | J33: 0 | K33: 0 | L33: 0 | N33: Difference | P33: =P30-P32 -> 0 | Q33: =Q30-Q32 -> 0 | R33: =R30-R32 -> 0 | S33: =S30-S32 -> 0 | T33: =T30-T32 -> 0 | U33: =U30-U32 -> 0 | V33: =V30-V32 -> 0 | W33: =W30-W32 -> 0 | X33: =X30-X32 -> 0 | Y33: =Y30-Y32 -> 0 | AA33: Gross Capex
AA34: Proposal ($2016/17)
A35: Asset Class | C35: =C14 -> 2013 | D35: 2014 | E35: 2015 | F35: 2016 | G35: 2017 | H35: 2018 | I35: 2019 | J35: 2020 | K35: 2021 | L35: 2022 | N35: Asset Class | P35: =P14 -> 2013 | Q35: 2014 | R35: 2015 | S35: 2016 | T35: 2017 | U35: 2018 | V35: 2019 | W35: 2020 | X35: 2021 | Y35: 2022 | AA35: Current | AB35: Forecast
A36: Original Pipeline | B36: =B30 -> $m nominal | C36: =SUMPRODUCT('Input¦Historic'!$I$17:$I$98,'Input¦Historic'!B$17:B$98)/1000000 -> 0.48264718 | D36: =SUMPRODUCT('Input¦Historic'!$I$17:$I$98,'Input¦Historic'!C$17:C$98)/1000000 -> 3.450498443 | E36: =SUMPRODUCT('Input¦Historic'!$I$17:$I$98,'Input¦Historic'!D$17:D$98)/1000000 -> 6.536361555 | F36: =SUMPRODUCT('Input¦Historic'!$I$17:$I$98,'Input¦Historic'!E$17:E$98)/1000000 -> 5.66083698 | G36: =SUMPRODUCT('Input¦Forecast'!B$17:B$95,'Input¦Forecast'!$K$17:$K$95)/1000*'inputs¦other'!H13 -> 14.0810835 | H36: =SUMPRODUCT('Input¦Forecast'!C$17:C$95,'Input¦Forecast'!$K$17:$K$95)/1000*'inputs¦other'!I13 -> 16.18090813 | I36: =SUMPRODUCT('Input¦Forecast'!D$17:D$95,'Input¦Forecast'!$K$17:$K$95)/1000*'inputs¦other'!J13 -> 12.12881796 | J36: =SUMPRODUCT('Input¦Forecast'!E$17:E$95,'Input¦Forecast'!$K$17:$K$95)/1000*'inputs¦other'!K13 -> 5.247760755 | K36: =SUMPRODUCT('Input¦Forecast'!F$17:F$95,'Input¦Forecast'!$K$17:$K$95)/1000*'inputs¦other'!L13 -> 5.119167343 | L36: =SUMPRODUCT('Input¦Forecast'!G$17:G$95,'Input¦Forecast'!$K$17:$K$95)/1000*'inputs¦other'!M13 -> 6.983117347 | N36: Original Pipeline | O36: =O29 -> $m real 2016/17 | P36: =C36/'inputs¦other'!D$13 -> 0.5227469958 | Q36: =D36/'inputs¦other'!E$13 -> 3.645936832 | R36: =E36/'inputs¦other'!F$13 -> 6.710003038 | S36: =F36/'inputs¦other'!G$13 -> 5.735042708 | T36: =G36/'inputs¦other'!H$13 -> 14.0810835 | U36: =H36/'inputs¦other'!I$13 -> 15.8171145 | V36: =I36/'inputs¦other'!J$13 -> 11.589567 | W36: =J36/'inputs¦other'!K$13 -> 4.9017045 | X36: =K36/'inputs¦other'!L$13 -> 4.674087 | Y36: =L36/'inputs¦other'!M$13 -> 6.2326275 | AA36: =SUM(P36:T36) -> 30.69481307 | AB36: =SUM(U36:Y36) -> 43.2151005
A37: Pipelines | B37: =B36 -> $m nominal | C37: =SUMPRODUCT('Input¦Historic'!$J$17:$J$98,'Input¦Historic'!B$17:B$98)/1000000 -> 2.84137731 | D37: =SUMPRODUCT('Input¦Historic'!$J$17:$J$98,'Input¦Historic'!C$17:C$98)/1000000 -> 3.340928663 | E37: =SUMPRODUCT('Input¦Historic'!$J$17:$J$98,'Input¦Historic'!D$17:D$98)/1000000 -> 10.40592053 | F37: =SUMPRODUCT('Input¦Historic'!$J$17:$J$98,'Input¦Historic'!E$17:E$98)/1000000 -> 0.61401758 | G37: =SUMPRODUCT('Input¦Forecast'!B$17:B$95,'Input¦Forecast'!$L$17:$L$95)/1000*'inputs¦other'!H13 -> 0.892804465 | H37: =SUMPRODUCT('Input¦Forecast'!C$17:C$95,'Input¦Forecast'!$L$17:$L$95)/1000*'inputs¦other'!I13 -> 7.188084436 | I37: =SUMPRODUCT('Input¦Forecast'!D$17:D$95,'Input¦Forecast'!$L$17:$L$95)/1000*'inputs¦other'!J13 -> 2.664721327 | J37: =SUMPRODUCT('Input¦Forecast'!E$17:E$95,'Input¦Forecast'!$L$17:$L$95)/1000*'inputs¦other'!K13 -> 0.9216301106 | K37: =SUMPRODUCT('Input¦Forecast'!F$17:F$95,'Input¦Forecast'!$L$17:$L$95)/1000*'inputs¦other'!L13 -> 2.676666838 | L37: =SUMPRODUCT('Input¦Forecast'!G$17:G$95,'Input¦Forecast'!$L$17:$L$95)/1000*'inputs¦other'!M13 -> 0.5060396075 | N37: Pipelines | O37: =O36 -> $m real 2016/17 | P37: =C37/'inputs¦other'!D$13 -> 3.077447697 | Q37: =D37/'inputs¦other'!E$13 -> 3.530160951 | R37: =E37/'inputs¦other'!F$13 -> 10.68235865 | S37: =F37/'inputs¦other'!G$13 -> 0.6220664996 | T37: =G37/'inputs¦other'!H$13 -> 0.892804465 | U37: =H37/'inputs¦other'!I$13 -> 7.0264755 | V37: =I37/'inputs¦other'!J$13 -> 2.546247 | W37: =J37/'inputs¦other'!K$13 -> 0.8608545 | X37: =K37/'inputs¦other'!L$13 -> 2.443947 | Y37: =L37/'inputs¦other'!M$13 -> 0.4516545 | AA37: =SUM(P37:T37) -> 18.80483826 | AB37: =SUM(U37:Y37) -> 13.3291785
A38: Compressors | B38: =B37 -> $m nominal | C38: =SUMPRODUCT('Input¦Historic'!$K$17:$K$98,'Input¦Historic'!B$17:B$98)/1000000 -> 0.1432417 | D38: =SUMPRODUCT('Input¦Historic'!$K$17:$K$98,'Input¦Historic'!C$17:C$98)/1000000 -> 0.02352989 | E38: =SUMPRODUCT('Input¦Historic'!$K$17:$K$98,'Input¦Historic'!D$17:D$98)/1000000 -> 1e-08 | F38: =SUMPRODUCT('Input¦Historic'!$K$17:$K$98,'Input¦Historic'!E$17:E$98)/1000000 -> 0 | G38: =SUMPRODUCT('Input¦Forecast'!B$17:B$95,'Input¦Forecast'!$M$17:$M$95)/1000*'inputs¦other'!H13 -> 0 | H38: =SUMPRODUCT('Input¦Forecast'!C$17:C$95,'Input¦Forecast'!$M$17:$M$95)/1000*'inputs¦other'!I13 -> 0.1046529 | I38: =SUMPRODUCT('Input¦Forecast'!D$17:D$95,'Input¦Forecast'!$M$17:$M$95)/1000*'inputs¦other'!J13 -> 0.1070599167 | J38: =SUMPRODUCT('Input¦Forecast'!E$17:E$95,'Input¦Forecast'!$M$17:$M$95)/1000*'inputs¦other'!K13 -> 0 | K38: =SUMPRODUCT('Input¦Forecast'!F$17:F$95,'Input¦Forecast'!$M$17:$M$95)/1000*'inputs¦other'!L13 -> 0 | L38: =SUMPRODUCT('Input¦Forecast'!G$17:G$95,'Input¦Forecast'!$M$17:$M$95)/1000*'inputs¦other'!M13 -> 1.490037349 | N38: Compressors | O38: =O37 -> $m real 2016/17 | P38: =C38/'inputs¦other'!D$13 -> 0.1551426621 | Q38: =D38/'inputs¦other'!E$13 -> 0.02486263768 | R38: =E38/'inputs¦other'!F$13 -> 1.026565465e-08 | S38: =F38/'inputs¦other'!G$13 -> 0 | T38: =G38/'inputs¦other'!H$13 -> 0 | U38: =H38/'inputs¦other'!I$13 -> 0.1023 | V38: =I38/'inputs¦other'!J$13 -> 0.1023 | W38: =J38/'inputs¦other'!K$13 -> 0 | X38: =K38/'inputs¦other'!L$13 -> 0 | Y38: =L38/'inputs¦other'!M$13 -> 1.3299 | AA38: 0.18000531 | AB38: 1.5345
A39: Regulators and meters | B39: $m nominal | C39: =SUMPRODUCT('Input¦Historic'!$L$17:$L$98,'Input¦Historic'!B$17:B$98)/1000000 -> 0 | D39: =SUMPRODUCT('Input¦Historic'!$L$17:$L$98,'Input¦Historic'!C$17:C$98)/1000000 -> 0 | E39: =SUMPRODUCT('Input¦Historic'!$L$17:$L$98,'Input¦Historic'!D$17:D$98)/1000000 -> 0 | F39: =SUMPRODUCT('Input¦Historic'!$L$17:$L$98,'Input¦Historic'!E$17:E$98)/1000000 -> 0 | G39: =SUMPRODUCT('Input¦Forecast'!B$17:B$95,'Input¦Forecast'!$N$17:$N$95)/1000*'inputs¦other'!H13 -> 0 | H39: =SUMPRODUCT('Input¦Forecast'!C$17:C$95,'Input¦Forecast'!$N$17:$N$95)/1000*'inputs¦other'!I13 -> 0.2674727096 | I39: =SUMPRODUCT('Input¦Forecast'!D$17:D$95,'Input¦Forecast'!$N$17:$N$95)/1000*'inputs¦other'!J13 -> 0 | J39: =SUMPRODUCT('Input¦Forecast'!E$17:E$95,'Input¦Forecast'!$N$17:$N$95)/1000*'inputs¦other'!K13 -> 0.08761783583 | K39: =SUMPRODUCT('Input¦Forecast'!F$17:F$95,'Input¦Forecast'!$N$17:$N$95)/1000*'inputs¦other'!L13 -> 0 | L39: =SUMPRODUCT('Input¦Forecast'!G$17:G$95,'Input¦Forecast'!$N$17:$N$95)/1000*'inputs¦other'!M13 -> 0 | N39: Regulators and meters | O39: $m real 2016/17 | P39: =C39/'inputs¦other'!D$13 -> 0 | Q39: =D39/'inputs¦other'!E$13 -> 0 | R39: =E39/'inputs¦other'!F$13 -> 0 | S39: =F39/'inputs¦other'!G$13 -> 0 | T39: =G39/'inputs¦other'!H$13 -> 0 | U39: =H39/'inputs¦other'!I$13 -> 0.2614591491 | V39: =I39/'inputs¦other'!J$13 -> 0 | W39: =J39/'inputs¦other'!K$13 -> 0.08184 | X39: =K39/'inputs¦other'!L$13 -> 0 | Y39: =L39/'inputs¦other'!M$13 -> 0 | AA39: 0 | AB39: 0.3432991491
A40: Easements | B40: $m nominal | C40: =SUMPRODUCT('Input¦Historic'!$M$17:$M$98,'Input¦Historic'!B$17:B$98)/1000000 -> 0.03221123 | D40: =SUMPRODUCT('Input¦Historic'!$M$17:$M$98,'Input¦Historic'!C$17:C$98)/1000000 -> 0.00974572 | E40: =SUMPRODUCT('Input¦Historic'!$M$17:$M$98,'Input¦Historic'!D$17:D$98)/1000000 -> 0.000612 | F40: =SUMPRODUCT('Input¦Historic'!$M$17:$M$98,'Input¦Historic'!E$17:E$98)/1000000 -> 0.07492814 | G40: =SUMPRODUCT('Input¦Forecast'!B$17:B$95,'Input¦Forecast'!$O$17:$O$95)/1000*'inputs¦other'!H13 -> 0 | H40: =SUMPRODUCT('Input¦Forecast'!C$17:C$95,'Input¦Forecast'!$O$17:$O$95)/1000*'inputs¦other'!I13 -> 0 | I40: =SUMPRODUCT('Input¦Forecast'!D$17:D$95,'Input¦Forecast'!$O$17:$O$95)/1000*'inputs¦other'!J13 -> 0 | J40: =SUMPRODUCT('Input¦Forecast'!E$17:E$95,'Input¦Forecast'!$O$17:$O$95)/1000*'inputs¦other'!K13 -> 0 | K40: =SUMPRODUCT('Input¦Forecast'!F$17:F$95,'Input¦Forecast'!$O$17:$O$95)/1000*'inputs¦other'!L13 -> 0 | L40: =SUMPRODUCT('Input¦Forecast'!G$17:G$95,'Input¦Forecast'!$O$17:$O$95)/1000*'inputs¦other'!M13 -> 0 | N40: Easements | O40: $m real 2016/17 | P40: =C40/'inputs¦other'!D$13 -> 0.0348874383 | Q40: =D40/'inputs¦other'!E$13 -> 0.01029772367 | R40: =E40/'inputs¦other'!F$13 -> 0.0006282580645 | S40: =F40/'inputs¦other'!G$13 -> 0.07591034408 | T40: =G40/'inputs¦other'!H$13 -> 0 | U40: =H40/'inputs¦other'!I$13 -> 0 | V40: =I40/'inputs¦other'!J$13 -> 0 | W40: =J40/'inputs¦other'!K$13 -> 0 | X40: =K40/'inputs¦other'!L$13 -> 0 | Y40: =L40/'inputs¦other'!M$13 -> 0 | AA40: 0.1217237641 | AB40: 0
A41: Communications | B41: $m nominal | C41: =SUMPRODUCT('Input¦Historic'!$N$17:$N$98,'Input¦Historic'!B$17:B$98)/1000000 -> 0 | D41: =SUMPRODUCT('Input¦Historic'!$N$17:$N$98,'Input¦Historic'!C$17:C$98)/1000000 -> 0 | E41: =SUMPRODUCT('Input¦Historic'!$N$17:$N$98,'Input¦Historic'!D$17:D$98)/1000000 -> 0 | F41: =SUMPRODUCT('Input¦Historic'!$N$17:$N$98,'Input¦Historic'!E$17:E$98)/1000000 -> 0 | G41: =SUMPRODUCT('Input¦Forecast'!B$17:B$95,'Input¦Forecast'!$P$17:$P$95)/1000*'inputs¦other'!H13 -> 0 | H41: =SUMPRODUCT('Input¦Forecast'!C$17:C$95,'Input¦Forecast'!$P$17:$P$95)/1000*'inputs¦other'!I13 -> 0 | I41: =SUMPRODUCT('Input¦Forecast'!D$17:D$95,'Input¦Forecast'!$P$17:$P$95)/1000*'inputs¦other'!J13 -> 0 | J41: =SUMPRODUCT('Input¦Forecast'!E$17:E$95,'Input¦Forecast'!$P$17:$P$95)/1000*'inputs¦other'!K13 -> 0 | K41: =SUMPRODUCT('Input¦Forecast'!F$17:F$95,'Input¦Forecast'!$P$17:$P$95)/1000*'inputs¦other'!L13 -> 0 | L41: =SUMPRODUCT('Input¦Forecast'!G$17:G$95,'Input¦Forecast'!$P$17:$P$95)/1000*'inputs¦other'!M13 -> 0 | N41: Communications | O41: $m real 2016/17 | P41: =C41/'inputs¦other'!D$13 -> 0 | Q41: =D41/'inputs¦other'!E$13 -> 0 | R41: =E41/'inputs¦other'!F$13 -> 0 | S41: =F41/'inputs¦other'!G$13 -> 0 | T41: =G41/'inputs¦other'!H$13 -> 0 | U41: =H41/'inputs¦other'!I$13 -> 0 | V41: =I41/'inputs¦other'!J$13 -> 0 | W41: =J41/'inputs¦other'!K$13 -> 0 | X41: =K41/'inputs¦other'!L$13 -> 0 | Y41: =L41/'inputs¦other'!M$13 -> 0 | AA41: 0 | AB41: 0
A42: Other | B42: $m nominal | C42: =SUMPRODUCT('Input¦Historic'!$O$17:$O$98,'Input¦Historic'!B$17:B$98)/1000000 -> 0 | D42: =SUMPRODUCT('Input¦Historic'!$O$17:$O$98,'Input¦Historic'!C$17:C$98)/1000000 -> 0 | E42: =SUMPRODUCT('Input¦Historic'!$O$17:$O$98,'Input¦Historic'!D$17:D$98)/1000000 -> 0 | F42: =SUMPRODUCT('Input¦Historic'!$O$17:$O$98,'Input¦Historic'!E$17:E$98)/1000000 -> 0 | G42: =SUMPRODUCT('Input¦Forecast'!B$17:B$95,'Input¦Forecast'!$Q$17:$Q$95)/1000*'inputs¦other'!H13 -> 0 | H42: =SUMPRODUCT('Input¦Forecast'!C$17:C$95,'Input¦Forecast'!$Q$17:$Q$95)/1000*'inputs¦other'!I13 -> 0 | I42: =SUMPRODUCT('Input¦Forecast'!D$17:D$95,'Input¦Forecast'!$Q$17:$Q$95)/1000*'inputs¦other'!J13 -> 0 | J42: =SUMPRODUCT('Input¦Forecast'!E$17:E$95,'Input¦Forecast'!$Q$17:$Q$95)/1000*'inputs¦other'!K13 -> 0 | K42: =SUMPRODUCT('Input¦Forecast'!F$17:F$95,'Input¦Forecast'!$Q$17:$Q$95)/1000*'inputs¦other'!L13 -> 0 | L42: =SUMPRODUCT('Input¦Forecast'!G$17:G$95,'Input¦Forecast'!$Q$17:$Q$95)/1000*'inputs¦other'!M13 -> 0 | N42: Other | O42: $m real 2016/17 | P42: =C42/'inputs¦other'!D$13 -> 0 | Q42: =D42/'inputs¦other'!E$13 -> 0 | R42: =E42/'inputs¦other'!F$13 -> 0 | S42: =F42/'inputs¦other'!G$13 -> 0 | T42: =G42/'inputs¦other'!H$13 -> 0 | U42: =H42/'inputs¦other'!I$13 -> 0 | V42: =I42/'inputs¦other'!J$13 -> 0 | W42: =J42/'inputs¦other'!K$13 -> 0 | X42: =K42/'inputs¦other'!L$13 -> 0 | Y42: =L42/'inputs¦other'!M$13 -> 0 | AA42: 0 | AB42: 0
A43: Capitalised AA costs | B43: $m nominal | C43: =SUMPRODUCT('Input¦Historic'!$P$17:$P$98,'Input¦Historic'!B$17:B$98)/1000000 -> 0.07087535 | D43: =SUMPRODUCT('Input¦Historic'!$P$17:$P$98,'Input¦Historic'!C$17:C$98)/1000000 -> 0 | E43: =SUMPRODUCT('Input¦Historic'!$P$17:$P$98,'Input¦Historic'!D$17:D$98)/1000000 -> 0 | F43: =SUMPRODUCT('Input¦Historic'!$P$17:$P$98,'Input¦Historic'!E$17:E$98)/1000000 -> 0.05800808 | G43: =SUMPRODUCT('Input¦Forecast'!B$17:B$95,'Input¦Forecast'!$R$17:$R$95)/1000*'inputs¦other'!H13 -> 0.911856697 | H43: =SUMPRODUCT('Input¦Forecast'!C$17:C$95,'Input¦Forecast'!$R$17:$R$95)/1000*'inputs¦other'!I13 -> 0.07417310916 | I43: =SUMPRODUCT('Input¦Forecast'!D$17:D$95,'Input¦Forecast'!$R$17:$R$95)/1000*'inputs¦other'!J13 -> 0 | J43: =SUMPRODUCT('Input¦Forecast'!E$17:E$95,'Input¦Forecast'!$R$17:$R$95)/1000*'inputs¦other'!K13 -> 0 | K43: =SUMPRODUCT('Input¦Forecast'!F$17:F$95,'Input¦Forecast'!$R$17:$R$95)/1000*'inputs¦other'!L13 -> 0.06499301132 | L43: =SUMPRODUCT('Input¦Forecast'!G$17:G$95,'Input¦Forecast'!$R$17:$R$95)/1000*'inputs¦other'!M13 -> 1.021656166 | N43: Capitalised AA costs | O43: $m real 2016/17 | P43: =C43/'inputs¦other'!D$13 -> 0.07676389259 | Q43: =D43/'inputs¦other'!E$13 -> 0 | R43: =E43/'inputs¦other'!F$13 -> 0 | S43: =F43/'inputs¦other'!G$13 -> 0.05876848554 | T43: =G43/'inputs¦other'!H$13 -> 0.911856697 | U43: =H43/'inputs¦other'!I$13 -> 0.07250548305 | V43: =I43/'inputs¦other'!J$13 -> 0 | W43: =J43/'inputs¦other'!K$13 -> 0 | X43: =K43/'inputs¦other'!L$13 -> 0.05934226584 | Y43: =L43/'inputs¦other'!M$13 -> 0.911856697 | AA43: 1.047389075 | AB43: 1.043704446
A44: Group IT | B44: $m nominal | C44: =SUMPRODUCT('Input¦Historic'!$Q$17:$Q$98,'Input¦Historic'!B$17:B$98)/1000000 -> 1.292236067 | D44: =SUMPRODUCT('Input¦Historic'!$Q$17:$Q$98,'Input¦Historic'!C$17:C$98)/1000000 -> 1.14677746 | E44: =SUMPRODUCT('Input¦Historic'!$Q$17:$Q$98,'Input¦Historic'!D$17:D$98)/1000000 -> 2.284029771 | F44: =SUMPRODUCT('Input¦Historic'!$Q$17:$Q$98,'Input¦Historic'!E$17:E$98)/1000000 -> 1.57191078 | G44: =SUMPRODUCT('Input¦Forecast'!B$17:B$95,'Input¦Forecast'!$S$17:$S$95)/1000*'inputs¦other'!H13 -> 1.410389656 | H44: =SUMPRODUCT('Input¦Forecast'!C$17:C$95,'Input¦Forecast'!$S$17:$S$95)/1000*'inputs¦other'!I13 -> 1.651399451 | I44: =SUMPRODUCT('Input¦Forecast'!D$17:D$95,'Input¦Forecast'!$S$17:$S$95)/1000*'inputs¦other'!J13 -> 0.6176460123 | J44: =SUMPRODUCT('Input¦Forecast'!E$17:E$95,'Input¦Forecast'!$S$17:$S$95)/1000*'inputs¦other'!K13 -> 0.5260828735 | K44: =SUMPRODUCT('Input¦Forecast'!F$17:F$95,'Input¦Forecast'!$S$17:$S$95)/1000*'inputs¦other'!L13 -> 0.6958631979 | L44: =SUMPRODUCT('Input¦Forecast'!G$17:G$95,'Input¦Forecast'!$S$17:$S$95)/1000*'inputs¦other'!M13 -> 0.4769921557 | N44: Group IT | O44: $m real 2016/17 | P44: =C44/'inputs¦other'!D$13 -> 1.399599023 | Q44: =D44/'inputs¦other'!E$13 -> 1.211731652 | R44: =E44/'inputs¦other'!F$13 -> 2.344706084 | S44: =F44/'inputs¦other'!G$13 -> 1.592516352 | T44: =G44/'inputs¦other'!H$13 -> 1.410389656 | U44: =H44/'inputs¦other'!I$13 -> 1.614271213 | V44: =I44/'inputs¦other'!J$13 -> 0.5901852813 | W44: =J44/'inputs¦other'!K$13 -> 0.4913910731 | X44: =K44/'inputs¦other'!L$13 -> 0.6353621418 | Y44: =L44/'inputs¦other'!M$13 -> 0.425728837 | AA44: 7.958942767 | AB44: 3.756938546
A45: SIB Capex | B45: $m nominal | C45: =SUMPRODUCT('Input¦Historic'!$R$17:$R$98,'Input¦Historic'!B$17:B$98)/1000000 -> 1.01549623 | D45: =SUMPRODUCT('Input¦Historic'!$R$17:$R$98,'Input¦Historic'!C$17:C$98)/1000000 -> 2.54947454 | E45: =SUMPRODUCT('Input¦Historic'!$R$17:$R$98,'Input¦Historic'!D$17:D$98)/1000000 -> 3.7652525 | F45: =SUMPRODUCT('Input¦Historic'!$R$17:$R$98,'Input¦Historic'!E$17:E$98)/1000000 -> 1.89273002 | G45: =SUMPRODUCT('Input¦Forecast'!B$17:B$95,'Input¦Forecast'!$T$17:$T$95)/1000*'inputs¦other'!H13 -> 0.9237244957 | H45: =SUMPRODUCT('Input¦Forecast'!C$17:C$95,'Input¦Forecast'!$T$17:$T$95)/1000*'inputs¦other'!I13 -> 1.051259074 | I45: =SUMPRODUCT('Input¦Forecast'!D$17:D$95,'Input¦Forecast'!$T$17:$T$95)/1000*'inputs¦other'!J13 -> 1.131212015 | J45: =SUMPRODUCT('Input¦Forecast'!E$17:E$95,'Input¦Forecast'!$T$17:$T$95)/1000*'inputs¦other'!K13 -> 0.5658094998 | K45: =SUMPRODUCT('Input¦Forecast'!F$17:F$95,'Input¦Forecast'!$T$17:$T$95)/1000*'inputs¦other'!L13 -> 0.6068334452 | L45: =SUMPRODUCT('Input¦Forecast'!G$17:G$95,'Input¦Forecast'!$T$17:$T$95)/1000*'inputs¦other'!M13 -> 0.3342449704 | N45: SIB Capex | O45: $m real 2016/17 | P45: =C45/'inputs¦other'!D$13 -> 1.099866788 | Q45: =D45/'inputs¦other'!E$13 -> 2.693878371 | R45: =E45/'inputs¦other'!F$13 -> 3.865278183 | S45: =F45/'inputs¦other'!G$13 -> 1.917541088 | T45: =G45/'inputs¦other'!H$13 -> 0.9237244957 | U45: =H45/'inputs¦other'!I$13 -> 1.027623728 | V45: =I45/'inputs¦other'!J$13 -> 1.080917983 | W45: =J45/'inputs¦other'!K$13 -> 0.5284979825 | X45: =K45/'inputs¦other'!L$13 -> 0.5540729825 | Y45: =L45/'inputs¦other'!M$13 -> 0.2983229825 | AA45: 10.50028893 | AB45: 3.489435658
A46: PMA | B46: $m nominal | C46: =SUMPRODUCT('Input¦Historic'!$S$17:$S$98,'Input¦Historic'!B$17:B$98)/1000000 -> 0 | D46: =SUMPRODUCT('Input¦Historic'!$S$17:$S$98,'Input¦Historic'!C$17:C$98)/1000000 -> 0 | E46: =SUMPRODUCT('Input¦Historic'!$S$17:$S$98,'Input¦Historic'!D$17:D$98)/1000000 -> 0 | F46: =SUMPRODUCT('Input¦Historic'!$S$17:$S$98,'Input¦Historic'!E$17:E$98)/1000000 -> 0 | G46: =SUMPRODUCT('Input¦Forecast'!B$17:B$95,'Input¦Forecast'!$U$17:$U$95)/1000*'inputs¦other'!H13 -> 0 | H46: =SUMPRODUCT('Input¦Forecast'!C$17:C$95,'Input¦Forecast'!$U$17:$U$95)/1000*'inputs¦other'!I13 -> 0 | I46: =SUMPRODUCT('Input¦Forecast'!D$17:D$95,'Input¦Forecast'!$U$17:$U$95)/1000*'inputs¦other'!J13 -> 0 | J46: =SUMPRODUCT('Input¦Forecast'!E$17:E$95,'Input¦Forecast'!$U$17:$U$95)/1000*'inputs¦other'!K13 -> 0 | K46: =SUMPRODUCT('Input¦Forecast'!F$17:F$95,'Input¦Forecast'!$U$17:$U$95)/1000*'inputs¦other'!L13 -> 0 | L46: =SUMPRODUCT('Input¦Forecast'!G$17:G$95,'Input¦Forecast'!$U$17:$U$95)/1000*'inputs¦other'!M13 -> 0 | N46: PMA | O46: $m real 2016/17 | P46: =C46/'inputs¦other'!D$13 -> 0 | Q46: =D46/'inputs¦other'!E$13 -> 0 | R46: =E46/'inputs¦other'!F$13 -> 0 | S46: =F46/'inputs¦other'!G$13 -> 0 | T46: =G46/'inputs¦other'!H$13 -> 0 | U46: =H46/'inputs¦other'!I$13 -> 0 | V46: =I46/'inputs¦other'!J$13 -> 0 | W46: =J46/'inputs¦other'!K$13 -> 0 | X46: =K46/'inputs¦other'!L$13 -> 0 | Y46: =L46/'inputs¦other'!M$13 -> 0 | AA46: 0 | AB46: 0
A47: Total | B47: $m nominal | C47: =SUM(C36:C46) -> 5.878085067 | D47: =SUM(D36:D46) -> 10.52095472 | E47: 22.99217637 | F47: 9.87243158 | G47: 18.21985881 | H47: 26.51794981 | I47: 16.64945723 | J47: 7.348901074 | K47: 9.163523835 | L47: 10.8120876 | N47: Total | O47: $m real 2016/17 | P47: =SUM(P36:P46) -> 6.366454496 | Q47: =SUM(Q36:Q46) -> 11.11686817 | R47: =SUM(R36:R46) -> 23.60297423 | S47: =SUM(S36:S46) -> 10.00184548 | T47: =SUM(T36:T46) -> 18.21985881 | U47: =SUM(U36:U46) -> 25.92174957 | V47: =SUM(V36:V46) -> 15.90921726 | W47: =SUM(W36:W46) -> 6.864288056 | X47: =SUM(X36:X46) -> 8.36681139 | Y47: =SUM(Y36:Y46) -> 9.650090516 | AA47: =SUM(AA36:AA46) -> 69.30800118 | AB47: =SUM(AB36:AB46) -> 66.7121568
A49: Check | C49: =C47=C30 -> TRUE | D49: TRUE | E49: TRUE | F49: TRUE | G49: =G47=G30 -> TRUE | H49: =H47=H30 -> TRUE | I49: TRUE | J49: TRUE | K49: TRUE | L49: TRUE | N49: Check | P49: =P47=P32 -> TRUE | Q49: =Q47=Q32 -> TRUE | R49: TRUE | S49: TRUE | T49: TRUE | U49: TRUE | V49: TRUE | W49: FALSE | X49: TRUE | Y49: TRUE | AA49: Gross Capex
AA50: Proposal ($2016/17)
A51: Driver | C51: =C35 -> 2013 | D51: =D35 -> 2014 | E51: 2015 | F51: 2016 | G51: 2017 | H51: 2018 | I51: 2019 | J51: 2020 | K51: 2021 | L51: 2022 | N51: Driver | P51: =P35 -> 2013 | Q51: =Q35 -> 2014 | R51: 2015 | S51: 2016 | T51: 2017 | U51: 2018 | V51: 2019 | W51: 2020 | X51: 2021 | Y51: 2022 | AA51: Current | AB51: Forecast
A52: Expansion/Extension | B52: =B47 -> $m nominal | C52: =SUMIF('Input¦Historic'!$H$17:$H$98,$A52,'Input¦Historic'!B$17:B$98)/1000000 -> 2.92318626 | D52: =SUMIF('Input¦Historic'!$H$17:$H$98,$A52,'Input¦Historic'!C$17:C$98)/1000000 -> 2.40302167 | E52: =SUMIF('Input¦Historic'!$H$17:$H$98,$A52,'Input¦Historic'!D$17:D$98)/1000000 -> 0.01857902 | F52: =SUMIF('Input¦Historic'!$H$17:$H$98,$A52,'Input¦Historic'!E$17:E$98)/1000000 -> 0 | G52: =SUMIF('Input¦Forecast'!$I$17:$I$95,$A52,'Input¦Forecast'!B$17:B$95)/1000*'inputs¦other'!H$13 -> 0 | H52: =SUMIF('Input¦Forecast'!$I$17:$I$95,$A52,'Input¦Forecast'!C$17:C$95)/1000*'inputs¦other'!I$13 -> 0 | I52: =SUMIF('Input¦Forecast'!$I$17:$I$95,$A52,'Input¦Forecast'!D$17:D$95)/1000*'inputs¦other'!J$13 -> 0 | J52: =SUMIF('Input¦Forecast'!$I$17:$I$95,$A52,'Input¦Forecast'!E$17:E$95)/1000*'inputs¦other'!K$13 -> 0 | K52: =SUMIF('Input¦Forecast'!$I$17:$I$95,$A52,'Input¦Forecast'!F$17:F$95)/1000*'inputs¦other'!L$13 -> 0 | L52: =SUMIF('Input¦Forecast'!$I$17:$I$95,$A52,'Input¦Forecast'!G$17:G$95)/1000*'inputs¦other'!M$13 -> 0 | N52: Expansion/Extension | O52: =O47 -> $m real 2016/17 | P52: =SUMIF('Input¦Historic'!$H$17:$H$98,$N52,'Input¦Historic'!B$17:B$98)/1000000/'inputs¦other'!D$13 -> 3.166053587 | Q52: =SUMIF('Input¦Historic'!$H$17:$H$98,$N52,'Input¦Historic'!C$17:C$98)/1000000/'inputs¦other'!E$13 -> 2.539130319 | R52: =SUMIF('Input¦Historic'!$H$17:$H$98,$N52,'Input¦Historic'!D$17:D$98)/1000000/'inputs¦other'!F$13 -> 0.0190725803 | S52: =SUMIF('Input¦Historic'!$H$17:$H$98,$N52,'Input¦Historic'!E$17:E$98)/1000000/'inputs¦other'!G$13 -> 0 | T52: =T19 -> 0 | U52: 0 | V52: 0 | W52: 0 | X52: 0 | Y52: 0 | AA52: =SUM(P52:T52) -> 5.724256486 | AB52: =SUM(U52:Y52) -> 0
A53: Replacement | B53: =B52 -> $m nominal | C53: =SUMIF('Input¦Historic'!$H$17:$H$98,$A53,'Input¦Historic'!B$17:B$98)/1000000 -> 0.65139705 | D53: =SUMIF('Input¦Historic'!$H$17:$H$98,$A53,'Input¦Historic'!C$17:C$98)/1000000 -> 2.12985466 | E53: =SUMIF('Input¦Historic'!$H$17:$H$98,$A53,'Input¦Historic'!D$17:D$98)/1000000 -> 3.88199981 | F53: =SUMIF('Input¦Historic'!$H$17:$H$98,$A53,'Input¦Historic'!E$17:E$98)/1000000 -> 4.43062598 | G53: =SUMIF('Input¦Forecast'!$I$17:$I$95,$A53,'Input¦Forecast'!B$17:B$95)/1000*'inputs¦other'!H$13 -> 6.254622 | H53: =SUMIF('Input¦Forecast'!$I$17:$I$95,$A53,'Input¦Forecast'!C$17:C$95)/1000*'inputs¦other'!I$13 -> 8.8954965 | I53: =SUMIF('Input¦Forecast'!$I$17:$I$95,$A53,'Input¦Forecast'!D$17:D$95)/1000*'inputs¦other'!J$13 -> 10.72526246 | J53: =SUMIF('Input¦Forecast'!$I$17:$I$95,$A53,'Input¦Forecast'!E$17:E$95)/1000*'inputs¦other'!K$13 -> 5.840823981 | K53: =SUMIF('Input¦Forecast'!$I$17:$I$95,$A53,'Input¦Forecast'!F$17:F$95)/1000*'inputs¦other'!L$13 -> 7.459710258 | L53: =SUMIF('Input¦Forecast'!$I$17:$I$95,$A53,'Input¦Forecast'!G$17:G$95)/1000*'inputs¦other'!M$13 -> 7.145302181 | N53: Replacement | O53: =O52 -> $m real 2016/17 | P53: =SUMIF('Input¦Historic'!$H$17:$H$98,$N53,'Input¦Historic'!B$17:B$98)/1000000/'inputs¦other'!D$13 -> 0.7055171252 | Q53: =SUMIF('Input¦Historic'!$H$17:$H$98,$N53,'Input¦Historic'!C$17:C$98)/1000000/'inputs¦other'!E$13 -> 2.250490959 | R53: =SUMIF('Input¦Historic'!$H$17:$H$98,$N53,'Input¦Historic'!D$17:D$98)/1000000/'inputs¦other'!F$13 -> 3.98512694 | S53: =SUMIF('Input¦Historic'!$H$17:$H$98,$N53,'Input¦Historic'!E$17:E$98)/1000000/'inputs¦other'!G$13 -> 4.488705347 | T53: =T25 -> 6.254622 | U53: =U25 -> 8.6955 | V53: =V25 -> 10.248414 | W53: 5.455659 | X53: 6.811134 | Y53: 6.377382 | AA53: =SUM(P53:T53) -> 17.68446237 | AB53: =SUM(U53:Y53) -> 37.588089
A54: Stay in business | B54: =B53 -> $m nominal | C54: =SUMIF('Input¦Historic'!$H$17:$H$98,$A54,'Input¦Historic'!B$17:B$98)/1000000 -> 2.303501757 | D54: =SUMIF('Input¦Historic'!$H$17:$H$98,$A54,'Input¦Historic'!C$17:C$98)/1000000 -> 5.988078387 | E54: =SUMIF('Input¦Historic'!$H$17:$H$98,$A54,'Input¦Historic'!D$17:D$98)/1000000 -> 19.09159754 | F54: =SUMIF('Input¦Historic'!$H$17:$H$98,$A54,'Input¦Historic'!E$17:E$98)/1000000 -> 5.4418056 | G54: =SUMIF('Input¦Forecast'!$I$17:$I$95,$A54,'Input¦Forecast'!B$17:B$95)/1000*'inputs¦other'!H$13 -> 11.96523681 | H54: =SUMIF('Input¦Forecast'!$I$17:$I$95,$A54,'Input¦Forecast'!C$17:C$95)/1000*'inputs¦other'!I$13 -> 17.62245331 | I54: =SUMIF('Input¦Forecast'!$I$17:$I$95,$A54,'Input¦Forecast'!D$17:D$95)/1000*'inputs¦other'!J$13 -> 5.924194779 | J54: =SUMIF('Input¦Forecast'!$I$17:$I$95,$A54,'Input¦Forecast'!E$17:E$95)/1000*'inputs¦other'!K$13 -> 1.508077094 | K54: =SUMIF('Input¦Forecast'!$I$17:$I$95,$A54,'Input¦Forecast'!F$17:F$95)/1000*'inputs¦other'!L$13 -> 1.703813577 | L54: =SUMIF('Input¦Forecast'!$I$17:$I$95,$A54,'Input¦Forecast'!G$17:G$95)/1000*'inputs¦other'!M$13 -> 3.666785415 | N54: Stay in business | O54: =O53 -> $m real 2016/17 | P54: =SUMIF('Input¦Historic'!$H$17:$H$98,$N54,'Input¦Historic'!B$17:B$98)/1000000/'inputs¦other'!D$13 -> 2.494883784 | Q54: =SUMIF('Input¦Historic'!$H$17:$H$98,$N54,'Input¦Historic'!C$17:C$98)/1000000/'inputs¦other'!E$13 -> 6.327246889 | R54: =SUMIF('Input¦Historic'!$H$17:$H$98,$N54,'Input¦Historic'!D$17:D$98)/1000000/'inputs¦other'!F$13 -> 19.59877471 | S54: =SUMIF('Input¦Historic'!$H$17:$H$98,$N54,'Input¦Historic'!E$17:E$98)/1000000/'inputs¦other'!G$13 -> 5.51314013 | T54: =T47-SUM(T52:T53) -> 11.96523681 | U54: =U47-SUM(U52:U53) -> 17.22624957 | V54: 5.660803264 | W54: 1.408629056 | X54: 1.55567739 | Y54: 3.272708516 | AA54: =SUM(P54:T54) -> 45.89928232 | AB54: =SUM(U54:Y54) -> 29.1240678
A55: Total | B55: =B54 -> $m nominal | C55: =SUM(C52:C54) -> 5.878085067 | D55: =SUM(D52:D54) -> 10.52095472 | E55: 22.99217637 | F55: 9.87243158 | G55: =SUM(G52:G54) -> 18.21985881 | H55: =SUM(H52:H54) -> 26.51794981 | I55: 16.64945723 | J55: 7.348901074 | K55: 9.163523835 | L55: 10.8120876 | N55: Total | O55: =O54 -> $m real 2016/17 | P55: =SUM(P52:P54) -> 6.366454496 | Q55: =SUM(Q52:Q54) -> 11.11686817 | R55: =SUM(R52:R54) -> 23.60297423 | S55: =SUM(S52:S54) -> 10.00184548 | T55: =SUM(T52:T54) -> 18.21985881 | U55: =SUM(U52:U54) -> 25.92174957 | V55: =SUM(V52:V54) -> 15.90921726 | W55: =SUM(W52:W54) -> 6.864288056 | X55: =SUM(X52:X54) -> 8.36681139 | Y55: =SUM(Y52:Y54) -> 9.650090516 | AA55: =SUM(AA52:AA54) -> 69.30800118 | AB55: =SUM(AB52:AB54) -> 66.7121568
A57: Check | C57: =C55=C47 -> TRUE | D57: TRUE | E57: TRUE | F57: TRUE | G57: TRUE | H57: TRUE | I57: TRUE | J57: TRUE | K57: TRUE | L57: TRUE | N57: Check | P57: =P55=P47 -> TRUE | Q57: TRUE | R57: TRUE | S57: TRUE | T57: TRUE | U57: TRUE | V57: TRUE | W57: TRUE | X57: TRUE | Y57: TRUE
A59: AER Forecast by Driver | C59: =C51 -> 2013 | D59: =D51 -> 2014 | E59: 2015 | F59: 2016 | G59: 2017 | N59: =A59 -> AER Forecast by Driver | P59: =P51 -> 2013 | Q59: =Q51 -> 2014 | R59: 2015 | S59: 2016 | T59: 2017
A60: =A52 -> Expansion/Extension | B60: =B52 -> $m nominal | C60: 0 | D60: 0 | E60: 0 | F60: 0 | G60: 0 | N60: =N52 -> Expansion/Extension | O60: =O52 -> $m real 2016/17 | P60: 0 | Q60: 0 | R60: 0 | S60: 0 | T60: 0
A61: =A53 -> Replacement | B61: =B53 -> $m nominal | C61: 0 | D61: 0 | E61: 0 | F61: 0 | G61: 0 | N61: =N53 -> Replacement | O61: =O53 -> $m real 2016/17 | P61: 0 | Q61: 0 | R61: 0 | S61: 0 | T61: 0
A62: =A54 -> Stay in business | B62: $m nominal | C62: ='inputs¦other'!D35 -> 4.056679683 | D62: ='inputs¦other'!E35 -> 4.644886689 | E62: ='inputs¦other'!F35 -> 3.569246997 | F62: ='inputs¦other'!G35 -> 3.848193599 | G62: ='inputs¦other'!H35 -> 3.282885584 | N62: =N54 -> Stay in business | O62: $m real 2016/17 | P62: ='inputs¦other'!D34 -> 4.393721138 | Q62: ='inputs¦other'!E34 -> 4.907975974 | R62: ='inputs¦other'!F34 -> 3.664065703 | S62: ='inputs¦other'!G34 -> 3.898638084 | T62: ='inputs¦other'!H34 -> 3.282885584
A63: =A55 -> Total | B63: $m nominal | C63: =SUM(C60:C62) -> 4.056679683 | D63: =SUM(D60:D62) -> 4.644886689 | E63: =SUM(E60:E62) -> 3.569246997 | F63: =SUM(F60:F62) -> 3.848193599 | G63: =SUM(G60:G62) -> 3.282885584 | N63: =N55 -> Total | O63: $m real 2016/17 | P63: =SUM(P60:P62) -> 4.393721138 | Q63: =SUM(Q60:Q62) -> 4.907975974 | R63: 3.664065703 | S63: 3.898638084 | T63: 3.282885584
A65: Difference | C65: =C59 -> 2013 | D65: =D59 -> 2014 | E65: 2015 | F65: 2016 | G65: 2017 | N65: Difference | P65: =P59 -> 2013 | Q65: =Q59 -> 2014 | R65: 2015 | S65: 2016 | T65: 2017
A66: =A60 -> Expansion/Extension | B66: =B60 -> $m nominal | C66: =C52-C60 -> 2.92318626 | D66: =D52-D60 -> 2.40302167 | E66: 0.01857902 | F66: 0 | G66: 0 | N66: =N60 -> Expansion/Extension | O66: =O60 -> $m real 2016/17 | P66: =P52-P60 -> 3.166053587 | Q66: =Q52-Q60 -> 2.539130319 | R66: 0.0190725803 | S66: 0 | T66: 0
A67: =A61 -> Replacement | B67: $m nominal | C67: =C53-C61 -> 0.65139705 | D67: 2.12985466 | E67: 3.88199981 | F67: 4.43062598 | G67: 6.254622 | N67: =N61 -> Replacement | O67: $m real 2016/17 | P67: =P53-P61 -> 0.7055171252 | Q67: 2.250490959 | R67: 3.98512694 | S67: 4.488705347 | T67: 6.254622
A68: =A62 -> Stay in business | B68: $m nominal | C68: =C54-C62 -> -1.753177927 | D68: 1.343191698 | E68: 15.52235054 | F68: 1.593612001 | G68: 8.68235123 | N68: =N62 -> Stay in business | O68: $m real 2016/17 | P68: -1.898837354 | Q68: 1.419270915 | R68: 15.934709 | S68: 1.614502046 | T68: 8.68235123
A69: =A63 -> Total | B69: $m nominal | C69: =SUM(C66:C68) -> 1.821405383 | D69: =SUM(D66:D68) -> 5.876068028 | E69: =SUM(E66:E68) -> 19.42292937 | F69: =SUM(F66:F68) -> 6.024237981 | G69: =SUM(G66:G68) -> 14.93697323 | N69: =N63 -> Total | O69: $m real 2016/17 | P69: =SUM(P66:P68) -> 1.972733358 | Q69: =SUM(Q66:Q68) -> 6.208892194 | R69: 19.93890852 | S69: 6.103207393 | T69: 14.93697323
AA75: Net Capex
AA76: Proposal ($2016/17)
A77: Asset disposals | C77: 2013 | D77: 2014 | E77: 2015 | F77: 2016 | G77: 2017 | H77: 2018 | I77: 2019 | J77: 2020 | K77: 2021 | L77: 2022 | N77: Asset disposals | P77: 2013 | Q77: 2014 | R77: 2015 | S77: 2016 | T77: 2017 | U77: 2018 | V77: 2019 | W77: 2020 | X77: 2021 | Y77: 2022 | AA77: Current | AB77: Forecast
A78: Motor vehicle disposals | B78: =B73 -> 0 | C78: 0.10868118 | D78: 0.06679468 | E78: 0.04084031 | F78: 0 | G78: 0 | N78: Motor vehicle disposals | O78: =O73 -> 0 | P78: =C78/'inputs¦other'!D13 -> 0.1177107475 | Q78: =D78/'inputs¦other'!E13 -> 0.07057797242 | R78: =E78/'inputs¦other'!F13 -> 0.04192525182 | S78: =F78/'inputs¦other'!G13 -> 0 | T78: =G78/'inputs¦other'!H13 -> 0 | AA78: =SUM(P78:T78) -> 0.2302139718 | AB78: =SUM(U78:Y78) -> 0
A80: Contributions | C80: 2013 | D80: 2014 | E80: 2015 | F80: 2016 | G80: 2017 | H80: 2018 | I80: 2019 | J80: 2020 | K80: 2021 | L80: 2022 | N80: Contributions | P80: 2013 | Q80: 2014 | R80: 2015 | S80: 2016 | T80: 2017 | U80: 2018 | V80: 2019 | W80: 2020 | X80: 2021 | Y80: 2022 | AA80: Current | AB80: Forecast
A81: Capital contributions | B81: $m nominal | D81: =95218.24/1000000 -> 0.09521824 | N81: Capital contributions | O81: $m nominal | P81: =C81/'inputs¦other'!D13 -> 0 | Q81: =D81/'inputs¦other'!E13 -> 0.1006114606 | R81: =E81/'inputs¦other'!F13 -> 0 | S81: =F81/'inputs¦other'!G13 -> 0 | T81: =G81/'inputs¦other'!H13 -> 0 | AA81: =SUM(P81:T81) -> 0.1006114606 | AB81: =SUM(U81:Y81) -> 0
A83: Total net capex | C83: 2013 | D83: 2014 | E83: 2015 | F83: 2016 | G83: 2017 | H83: 2018 | I83: 2019 | J83: 2020 | K83: 2021 | L83: 2022 | N83: Total net capex | P83: 2013 | Q83: 2014 | R83: 2015 | S83: 2016 | T83: 2017 | U83: 2018 | V83: 2019 | W83: 2020 | X83: 2021 | Y83: 2022 | AA83: Current | AB83: Forecast
A84: Total net capex | B84: $m nominal | C84: =C55-C78-C81 -> 5.769403887 | D84: =D55-D78-D81 -> 10.3589418 | E84: 22.95133606 | F84: 9.87243158 | G84: 18.21985881 | H84: =H59-H78-H81 -> 0 | I84: 0 | J84: 0 | K84: 0 | L84: 0 | N84: Total net capex | O84: $m nominal | P84: =P55-P78-P81 -> 6.248743749 | Q84: =Q55-Q78-Q81 -> 10.94567873 | R84: 23.56104897 | S84: 10.00184548 | T84: =T55-T78-T81 -> 18.21985881 | U84: =U55-U78-U81 -> 25.92174957 | V84: 15.90921726 | W84: 6.864288056 | X84: 8.36681139 | Y84: 9.650090516 | AA84: =AA55-AA78-AA81 -> 68.97717575 | AB84: =SUM(U84:Y84) -> 66.7121568

Sheet AER DRAFT inputs¦other
A10: =RIGHT(CELL("filename",A1),LEN(CELL("filename",A1))-FIND("]",CELL("filename",A1))) -> AER DRAFT inputs¦other
A12: inflation | C12: 2012 | D12: 2013 | E12: 2014 | F12: 2015 | G12: 2016 | H12: 2017 | I12: 2018 | J12: 2019 | K12: 2020 | L12: 2021 | M12: 2022
A13: Inflation index | B13: Base 2016/17 | C13: =D13/(1+C15) -> 0.9088995751 | D13: =E13/(1+D15) -> 0.9233020585 | E13: =F13/(1+E15) -> 0.94638461 | F13: =G13/(1+F15) -> 0.974113679 | G13: =H13/(1+G15) -> 0.987069391 | H13: 1 | I13: =H13*(1+I15) -> 1.02 | J13: =I13*(1+J15) -> 1.0404 | K13: =J13*(1+K15) -> 1.061208 | L13: =K13*(1+L15) -> 1.08243216 | M13: =L13*(1+M15) -> 1.104080803
A14: Inflation index | B14: Base 2011/12 | C14: 1 | D14: =C14*(1+C15)^(10/12) -> 1.013187725 | E14: =D14*(1+D15) -> 1.038517418 | F14: =E14*(1+E15) -> 1.068945978 | G14: =F14*(1+F15) -> 1.08316296 | H14: =G14*(1+G15) -> 1.097352395
A15: CPI | C15: 0.01584606678 | D15: 0.025 | E15: 0.0293 | F15: 0.0133 | G15: 0.0131 | H15: 0.02 | I15: =H15 -> 0.02 | J15: =I15 -> 0.02 | K15: =J15 -> 0.02 | L15: =K15 -> 0.02 | M15: =L15 -> 0.02
A17: Asset Classes | C17: Inflation index updated to reflect RFM
A18: Original Pipeline
A19: Pipelines
A20: Lytton lateral
A21: Peat Lateral
A22: Compressors
A23: Regulators and meters
A24: Easements
A25: Communications
A26: Other
A27: Capitalised AA costs
A28: Group IT
A29: SIB Capex
A30: PMA
A32: AER's Forecast Capex
A33: Forecast Capex | B33: $m 2011/12 | D33: =[4]Input!G163 -> 3.9934 | E33: =[4]Input!H163 -> 4.4608 | F33: =[4]Input!I163 -> 3.330225 | G33: =[4]Input!J163 -> 3.543425 | H33: =[4]Input!K163 -> 2.983775
A34: Forecast capex | B34: $m 2016/17 | D34: =D33/$C$13 -> 4.393664723 | E34: =E33/$C$13 -> 4.907912955 | F34: =F33/$C$13 -> 3.664018656 | G34: =G33/$C$13 -> 3.898588025 | H34: =H33/$C$13 -> 3.282843431
A35: Forecast Capex | B35: $m nominal | D35: =D33*D14 -> 4.04606386 | E35: =E33*E14 -> 4.632618498 | F35: 3.559830621 | G35: 3.838106711 | H35: 3.274252641
A37: Historic Projects
A38: Aquarium Passage
A39: Flood Damage
A40: Bi direction
A41: Integrity Upgrade
A42: Clear SCADA
A43: RBP Looping
A44: FC and RTU upgrade
A45: Toowoomba Station Upgrade
A46: Access Arrangement
A48: Forecast Projects
A49: Urban Risk Reduction
A50: Pipeline Integrity Management
A51: Toowoomba Crossing
A52: Dalby Turbine Overhaul
A53: Applications and Renewals
A54: Infrastructure Renewals

Sheet AER DRAFT Input¦Historic
J15: aa asset class
B16: 13 | C16: 14 | D16: 15 | E16: 16 | F16: Total | G16: Project | H16: Asset Type | I16: Original Pipeline | J16: Pipelines | K16: Compressors | L16: Regulators and meters | M16: Easements | N16: Communications | O16: Other | P16: Capitalised AA costs | Q16: Group IT | R16: SIB Capex | S16: PMA | T16: Total | U16: Dollars
A17: RBP11-SIB-18 REDBANK STN UPG | B17: 257390.48 | C17: 105462.91 | D17: 0 | E17: 0 | F17: =SUM(B17:E17) -> 362853.39 | G17: SIB | H17: Stay in Business | R17: 1 | T17: =SUM(I17:S17) -> 1 | U17: $2015/16
A18: RBP11-SIB-49 MV IMPACT MITIG | B18: -32218.95 | C18: 0 | D18: 0 | E18: 0 | F18: -32218.95 | G18: SIB | H18: Stay in Business | R18: 1 | T18: =SUM(I18:S18) -> 1 | U18: $2015/16
A19: RBP11-SIB-60 ALIGNMNT SHT/PI&D | B19: -2723 | C19: 0 | D19: 0 | E19: 0 | F19: -2723 | G19: SIB | H19: Stay in Business | R19: 1 | T19: 1 | U19: $2015/16
A20: RBP Access Arrangement Capex | B20: 70875.35 | C20: 0 | D20: 0 | E20: 0 | F20: 70875.35 | G20: Access Arrangement | H20: Stay in Business | P20: 1 | T20: 1 | U20: $2015/16
A21: RBP12-SIB-06 Upgrade Flow Comp | B21: 2166.3 | C21: -22172.8 | D21: 0 | E21: 0 | F21: -20006.5 | G21: SIB | H21: Stay in Business | R21: 1 | T21: 1 | U21: $2015/16
A22: RBP12-SIB-05 Upgrade Flow Comp | B22: 6498.9 | C22: -33013.4 | D22: 0 | E22: 0 | F22: -26514.5 | G22: SIB | H22: Stay in Business | R22: 1 | T22: 1 | U22: $2015/16
A23: RBP EXP - LOOPING STAGE 1 | B23: 1345832.28 | C23: 2363015.22 | D23: 18579.01 | E23: 0 | F23: 3727426.51 | G23: RBP Looping | H23: Expansion/Extension | J23: 1 | T23: 1 | U23: $2015/16
A24: RBP EXP - ELLENGROVE STATION | B24: 2611.42 | C24: 0 | D24: 0 | E24: 0 | F24: 2611.42 | G24: RBP Looping | H24: Expansion/Extension | J24: 1 | T24: 1 | U24: $2015/16
A25: RBP EXP - MAOP UPGRADE | B25: 588644.61 | C25: -615 | D25: 0 | E25: 0 | F25: 588029.61 | G25: RBP Looping | H25: Expansion/Extension | J25: 1 | T25: 1 | U25: $2015/16
A26: RBP Exp - Dalby Compressor St | B26: 143241.7 | C26: 23529.89 | D26: 0.01 | E26: 0 | F26: 166771.6 | G26: RBP Looping | H26: Expansion/Extension | K26: 1 | T26: 1 | U26: $2015/16
A27: RBP Coating Refurbishment | B27: 27525 | C27: 0 | D27: 0 | E27: 0 | F27: 27525 | G27: Pipeline Integrity Management | H27: Replacement | I27: 1 | T27: 1 | U27: $2015/16
A28: UMG SCADA Server Relocation | B28: -6286.35 | C28: 0 | D28: 0 | E28: 0 | F28: -6286.35 | G28: SIB | H28: Stay in Business | R28: 1 | T28: 1 | U28: $2015/16
A29: RBP11-SIB-47 ACQUIRE EASEMENTS | B29: -39743.07 | C29: 0 | D29: 0 | E29: 0 | F29: -39743.07 | G29: SIB | H29: Stay in Business | M29: 1 | T29: 1 | U29: $2015/16
A30: NAT13-SIB-01 IDMT PHASE 2 QLD | B30: 99351.99 | C30: -80329.54 | D30: 0 | E30: 0 | F30: 19022.45 | G30: Pipeline Integrity Management | H30: Stay in Business | R30: 1 | T30: 1 | U30: $2015/16
A31: RBP BLACKSTONE POWER STATION | B31: -63081.5 | C31: 0 | D31: 0 | E31: 0 | F31: -63081.5 | G31: SIB | H31: Stay in Business | R31: 1 | T31: 1 | U31: $2015/16
A32: ELLENGROVE FILTER DOOR UPGRADE | B32: 161 | C32: 0 | D32: 0 | E32: 0 | F32: 161 | G32: SIB | H32: Stay in Business | R32: 1 | T32: 1 | U32: $2015/16
A33: RBP13-SIB-08 RBP Coating Rfb | B33: 20344.4 | C33: -20344.4 | D33: 0 | E33: 0 | F33: =SUM(B33:E33) -> 0 | G33: Pipeline Integrity Management | H33: Replacement | I33: 1 | T33: 1 | U33: $2015/16
A34: RBP13-SIB-06 RTU Upgrades | B34: 26836 | C34: 442393.4 | D34: -2476.76 | E34: 0 | F34: 466752.64 | G34: FC and RTU upgrade | H34: Stay in Business | R34: 1 | T34: 1 | U34: $2015/16
A35: RBP13-SIB-04 UPDATE P&ID's | B35: 49208.9 | C35: 0 | D35: 0 | E35: 0 | F35: 49208.9 | G35: SIB | H35: Stay in Business | R35: 1 | T35: 1 | U35: $2015/16
A36: RBP13-SIB-17 TWMBA VEHC ENTRY | B36: 52271.32 | C36: 0 | D36: 0 | E36: 0 | F36: 52271.32 | G36: SIB | H36: Stay in Business | R36: 1 | T36: 1 | U36: $2015/16
A37: RBP13-SIB-03 VEHC MITIGATION | B37: 86009.38 | C37: 149504.91 | D37: 0 | E37: 0 | F37: 235514.29 | G37: SIB | H37: Stay in Business | R37: 1 | T37: 1 | U37: $2015/16
A38: RBP13-SIB-02 Haz Area Rect | B38: 98788.45 | C38: 335297.9 | D38: 74211.15 | E38: 93930.29 | F38: 602227.79 | G38: SIB | H38: Stay in Business | R38: 1 | T38: 1 | U38: $2015/16
A39: RBP14-SIB-62 TELEMETRY UPGRADE | B39: 0 | C39: 197333.05 | D39: -197333.05 | E39: 0 | F39: =SUM(B39:E39) -> 0 | G39: SIB | H39: Stay in Business | I39: 1 | T39: 1 | U39: $2015/16
A40: CONDAMINE BDF UPGRADE | B40: 0 | C40: 43537.43 | D40: 0 | E40: 0 | F40: 43537.43 | G40: SIB | H40: Stay in Business | R40: 1 | T40: 1 | U40: $2015/16
A41: QLD14-SIB-01 QLD Clear SCADA | B41: 0 | C41: 398043.28 | D41: 548753.95 | E41: 0 | F41: =SUM(B41:E41) -> 946797.23 | G41: Clear SCADA | H41: Stay in Business | R41: 1 | T41: 1 | U41: $2015/16
A42: RBP14-SIB-82 MG MAOP SEP | B42: 0 | C42: 13929.34 | D42: 4403 | E42: -18332.34 | F42: 0 | G42: SIB | H42: Stay in Business | R42: 1 | T42: 1 | U42: $2015/16
A43: RBP14-SIB-90 Murarrie Erosion | B43: 0 | C43: 7364 | D43: -6591 | E43: -773 | F43: 0 | G43: SIB | H43: Stay in Business | R43: 1 | T43: 1 | U43: $2015/16
A44: RBP15-SIB-04 FIRE SUP FEED | B44: 0 | C44: 0 | D44: 4949.3 | E44: 48634.47 | F44: 53583.77 | G44: SIB | H44: Stay in Business | R44: 1 | T44: 1 | U44: $2015/16
A45: RBP15-SIB-03 AS4853 UPGRADE | B45: 0 | C45: 0 | D45: 3979.9 | E45: -3979.9 | F45: 0 | G45: SIB | H45: Stay in Business | R45: 1 | T45: 1 | U45: $2015/16
A46: RBP15-SIB-07 CP Telemetry | B46: 0 | C46: 0 | D46: 287636.65 | E46: 243228.77 | F46: 530865.42 | G46: Pipeline Integrity Management | H46: Replacement | I46: 1 | T46: 1 | U46: $2015/16
A47: RBP15-SIB-61 WEST MINOR ASSETS | B47: 0 | C47: 0 | D47: 14696.49 | E47: 4422.95 | F47: 19119.44 | G47: SIB | H47: Stay in Business | R47: 1 | T47: 1 | U47: $2015/16
A48: RBP15-SIB-24 SANDY CK MODS | B48: 0 | C48: 0 | D48: 28018.2 | E48: 1380.6 | F48: 29398.8 | G48: SIB | H48: Stay in Business | R48: 1 | T48: 1 | U48: $2015/16
A49: RBP15-SIB-25 PV Upgrade Prog | B49: 0 | C49: 0 | D49: 76698.18 | E49: 74763.65 | F49: 151461.83 | G49: SIB | H49: Stay in Business | R49: 1 | T49: 1 | U49: $2015/16
A50: RBP15-SIB-82 3P Risk Reduct | B50: 0 | C50: 0 | D50: 89229.4 | E50: -60247.6 | F50: 28981.8 | G50: SIB | H50: Stay in Business | R50: 1 | T50: 1 | U50: $2015/16
A51: RBP15-SIB-61 EAST MINOR ASSETS | B51: 0 | C51: 0 | D51: 12816.4 | E51: 4400.95 | F51: 17217.35 | G51: SIB | H51: Stay in Business | R51: 1 | T51: 1 | U51: $2015/16
A52: RBP15-SIB-27 RBP Type B Gas Co | B52: 0 | C52: 0 | D52: 31198.88 | E52: 0 | F52: 31198.88 | G52: SIB | H52: Stay in Business | R52: 1 | T52: 1 | U52: $2015/16
A53: RBP15-SIB-61 CNTRL MINOR ASSET | B53: 0 | C53: 0 | D53: 39948.16 | E53: 0 | F53: 39948.16 | G53: SIB | H53: Stay in Business | R53: 1 | T53: 1 | U53: $2015/16
A54: RBP15-SIB-41 DN250 INTEG PROG | B54: 0 | C54: 0 | D54: 23686.4 | E54: -5.5 | F54: 23680.9 | G54: Pipeline Integrity Management | H54: Replacement | I54: 1 | T54: 1 | U54: $2015/16
A55: East Coast Clear SCADA License | B55: 0 | C55: 0 | D55: 20260.24 | E55: 0 | F55: 20260.24 | G55: SIB | H55: Stay in Business | R55: 1 | T55: 1 | U55: $2015/16
A56: RBP16-SIB-28 SWNBANK MLV STUDY | B56: 0 | C56: 0 | D56: 0 | E56: 594657.32 | F56: 594657.32 | G56: SIB | H56: Stay in Business | R56: 1 | T56: 1 | U56: $2015/16
A57: RBP METRO ISOLATION FEED | B57: 0 | C57: 0 | D57: 0 | E57: 14263.26 | F57: 14263.26 | G57: SIB | H57: Stay in Business | I57: 1 | T57: 1 | U57: $2015/16
A58: RBP16-SIB-47 DN300 EMAT ILI | B58: 0 | C58: 0 | D58: 0 | E58: 823889.76 | F58: 823889.76 | G58: Pipeline Integrity Management | H58: Stay in Business | I58: 1 | T58: 1 | U58: $2015/16
A59: QLD 3D LASER PL SCANNER | B59: 0 | C59: 0 | D59: 0 | E59: 141023.41 | F59: 141023.41 | G59: Pipeline Integrity Management | H59: Stay in Business | I59: 1 | T59: 1 | U59: $2015/16
A60: RBP16-SIB-22 SCOTIA/WR VENT EX | B60: 0 | C60: 0 | D60: 0 | E60: 12768.91 | F60: 12768.91 | G60: SIB | H60: Stay in Business | R60: 1 | T60: 1 | U60: $2015/16
A61: RBP16-SIB RISK MITIGATION FEED | B61: 0 | C61: 0 | D61: 0 | E61: 240096.01 | F61: 240096.01 | G61: SIB | H61: Stay in Business | I61: 1 | T61: 1 | U61: $2015/16
A62: RBP Emergency Pipe Storage | B62: 0 | C62: 0 | D62: 0 | E62: 138117 | F62: 138117 | G62: SIB | H62: Stay in Business | R62: 1 | T62: 1 | U62: $2015/16
A63: RBP13-SIB-05 RBP 10' ILI | B63: 106611.85 | C63: 836870.81 | D63: 746612.08 | E63: 13164.16 | F63: 1703258.9 | G63: Pipeline Integrity Management | H63: Stay in Business | I63: 1 | T63: 1 | U63: $2015/16
A64: RBP16-SIB-49 VEHICLE MITIGATE | B64: 0 | C64: 47701.04 | D64: 35668.92 | E64: 419628.54 | F64: 502998.5 | G64: SIB | H64: Stay in Business | R64: 1 | T64: 1 | U64: $2015/16
A65: RBP11-SIB-17 TWMBA STN UPGRADE | B65: 56110.01 | C65: 409980.34 | D65: 830888.95 | E65: 0 | F65: 1296979.3 | G65: Toowoomba station upgrade | H65: Stay in Business | R65: 1 | T65: 1 | U65: $2015/16
A66: RBP13-SIB-01 RBP CP UPGRADES | B66: 90490.44 | C66: 550 | D66: 0 | E66: 0 | F66: 91040.44 | G66: Pipeline Integrity Management | H66: Replacement | I66: 1 | T66: 1 | U66: $2015/16
A67: RBP14-SIB-08 COATING REFURB | B67: 0 | C67: 399638.97 | D67: -1840 | E67: 0 | F67: 397798.97 | G67: Pipeline Integrity Management | H67: Replacement | I67: 1 | T67: 1 | U67: $2015/16
A68: RBP14-SIB-61 RBP CP UPGRADES | B68: 0 | C68: 931641.84 | D68: -1789.97 | E68: -466160.99 | F68: 463690.88 | G68: Pipeline Integrity Management | H68: Replacement | I68: 1 | T68: 1 | U68: $2015/16
A69: RBP15-SIB-01 FC & RTU UPGRADE | B69: 0 | C69: 0 | D69: 533992.57 | E69: 102168.29 | F69: 636160.86 | G69: FC and RTU upgrade | H69: Stay in Business | R69: 1 | T69: 1 | U69: $2015/16
A70: RBP15-SIB-29 TWMBA DN250 MLV | B70: 0 | C70: 0 | D70: 383747.1 | E70: -2225.6 | F70: 381521.5 | G70: SIB | H70: Stay in Business | I70: 1 | T70: 1 | U70: $2015/16
A71: RBP15-SIB-42 RBP CP UPGRADES | B71: 0 | C71: 0 | D71: 147597.06 | E71: 937211.03 | F71: 1084808.09 | G71: Pipeline Integrity Management | H71: Replacement | I71: 1 | T71: 1 | U71: $2015/16
A72: TWMBA Escarpment Geo Testing | B72: 0 | C72: 0 | D72: 10829.22 | E72: 186018.18 | F72: 196847.4 | G72: SIB | H72: Stay in Business | R72: 1 | T72: 1 | U72: $2015/16
A73: RBP Murarrie MS Sea Wall | B73: 0 | C73: 0 | D73: 293579.22 | E73: 168083.28 | F73: 461662.5 | G73: SIB | H73: Stay in Business | R73: 1 | T73: 1 | U73: $2015/16
A74: RBP METRO LOOPING STAGE 2 | B74: 842856.25 | C74: 17091.56 | D74: 0 | E74: 0 | F74: 859947.81 | G74: RBP Looping | H74: Expansion/Extension | J74: 1 | T74: 1 | U74: $2015/16
A75: RBP MINOR TOOLS & EQUIP FY13 | B75: 147011.79 | C75: -6139 | D75: 0 | E75: 0 | F75: 140872.79 | G75: SIB | H75: Stay in Business | R75: 1 | T75: 1 | U75: $2015/16
A76: RBP13-SIB-14 EASEMENT ACQ | B76: 71954.3 | C76: 4679.07 | D76: 612 | E76: 0 | F76: 77245.37 | G76: Pipeline Integrity Management | H76: Replacement | M76: 1 | T76: 1 | U76: $2015/16
A77: RBP AQUARIUM PASSAGE | B77: 203407.42 | C77: 606152.13 | D77: 1120198.13 | E77: 0 | F77: 1929757.68 | G77: ='inputs¦other'!A38 -> Aquarium Passage | H77: Replacement | R77: 1 | T77: 1 | U77: $2015/16
A78: RBP EAST MINOR TOOLS FY14 | B78: 0 | C78: 58187.67 | D78: 0 | E78: 0 | F78: 58187.67 | G78: SIB | H78: Stay in Business | R78: 1 | T78: 1 | U78: $2015/16
A79: RBP CENTRAL MINOR TOOLS FY14 | B79: 0 | C79: 55531.93 | D79: 0 | E79: 0 | F79: 55531.93 | G79: SIB | H79: Stay in Business | R79: 1 | T79: 1 | U79: $2015/16
A80: RBP14-SIB-63 LOOP CNTRL UPG | B80: 0 | C80: 64165.76 | D80: 0 | E80: 0 | F80: 64165.76 | G80: SIB | H80: Stay in Business | J80: 1 | T80: 1 | U80: $2015/16
A81: RBP14-SIB-14 YULEBA LAND | B81: 0 | C81: 5066.65 | D81: 0 | E81: 0 | F81: 5066.65 | G81: SIB | H81: Stay in Business | M81: 1 | T81: 1 | U81: $2015/16
A82: RBP WEST MINOR TOOLS FY14 | B82: 0 | C82: 18043 | D82: 0 | E82: 0 | F82: 18043 | G82: SIB | H82: Stay in Business | R82: 1 | T82: =SUM(I82:S82) -> 1 | U82: $2015/16
A83: RBP Integrity Upgrade Project | B83: 0 | C83: 0 | D83: 1080254.66 | E83: 0 | F83: 1080254.66 | G83: Pipeline Integrity Management | H83: Replacement | I83: 1 | T83: 1 | U83: $2015/16
A84: RBP Bi-Directional Flow | B84: 0 | C84: 0 | D84: 7545195.78 | E84: 614017.58 | F84: 8159213.36 | G84: Bi direction | H84: Stay in Business | J84: 1 | T84: 1 | U84: $2015/16
A85: Roma to Brisbane Digups Stag1 | B85: 0 | C85: 0 | D85: 0 | E85: 3701897.67 | F85: 3701897.67 | G85: Pipeline Integrity Management | H85: Replacement | I85: 1 | T85: 1 | U85: $2015/16
A86: RBP16-SIB-84 AB EASEMENT ACQ | B86: 0 | C86: 0 | D86: 0 | E86: 74928.14 | F86: 74928.14 | G86: SIB | H86: Stay in Business | M86: 1 | T86: 1 | U86: $2015/16
A87: RBP Access Arrangement FY17 | B87: 0 | C87: 0 | D87: 0 | E87: 58008.08 | F87: 58008.08 | G87: Access Arrangement | H87: Stay in Business | P87: 1 | T87: 1 | U87: $2015/16
A88: RBP16-SIB CP DATA COLLECTION | B88: 0 | C88: 0 | D88: 0 | E88: 50946.05 | F88: 50946.05 | G88: SIB | H88: Stay in Business | R88: 1 | T88: 1 | U88: $2015/16
A89: Marburg Range | B89: 0 | C89: 0 | E89: 0 | F89: 0 | G89: Flood Damage | H89: Stay in Business | I89: 0.5 | J89: 0.5 | T89: 1 | U89: $2015/16
A90: Flood damage | C90: 0 | D90: 0 | E90: 0 | F90: 0 | G90: Flood Damage | H90: Stay in Business | J90: 0.6266931587 | R90: 0.3733068413 | T90: 1 | U90: $2015/16
A91: Flood Damage | B91: 0 | E91: 0 | F91: 0 | G91: Flood Damage | H91: Stay in Business | I91: 0.5 | J91: 0.5 | T91: 1 | U91: $2015/16
A92: Toowoomba Escarpment | B92: 0 | E92: 0 | F92: 0 | G92: Flood Damage | H92: Stay in Business | I92: 0.5 | J92: 0.5 | T92: 1 | U92: $2015/16
A93: Corporate Assets | B93: 1292236.067 | C93: 1146777.46 | D93: 2284029.771 | E93: 1571910.78 | F93: 6294954.077 | G93: SIB | H93: Stay in Business | Q93: 1 | T93: 1 | U93: $2015/16
A94: Major Excavations | B94: 237675.49 | C94: 207537.05 | D94: 1225644.88 | E94: 14455 | F94: 1685312.42 | G94: Pipeline Integrity Management | H94: Replacement | I94: 1 | T94: 1 | U94: $2015/16
A95: Capitalised to other entitites | B95: -2000 | C95: 0 | D95: 0 | E95: 0 | F95: -2000 | G95: SIB | H95: Stay in Business | O95: 0 | R95: 1 | T95: 1 | U95: $2015/16
A96: Other | B96: 0 | C96: 0 | D96: 0 | E96: 96402.62 | F96: 96402.62 | G96: SIB | H96: Stay in Business | R96: 1 | T96: 1 | U96: $2015/16
A97: Clear SCADA licence | B97: 0 | C97: 0 | D97: 0 | E97: -20260.24 | F97: -20260.24 | G97: SIB | H97: Stay in Business | R97: 1 | T97: 1 | U97: $2015/16
A98: Capital Contribution | B98: 0 | D98: 0 | E98: 0 | F98: -95218.24 | G98: SIB | H98: Stay in Business | I98: 1 | T98: 1 | U98: $2015/16
A101: Total | B101: =SUM(B17:B100) -> 5780058.227 | C101: =SUM(C17:C100) -> 8726412.47 | D101: =SUM(D17:D100) -> 17307884.88 | E101: =SUM(E17:E100) -> 9872431.58 | F101: =SUM(F17:F100) -> 41591568.92

Sheet AER DRAFT Input¦Forecast
L15: aa asset class
B16: 17 | C16: 18 | D16: 19 | E16: 20 | F16: 21 | G16: 22 | H16: Total | I16: Driver | J16: Project | K16: Original Pipeline | L16: Pipelines | M16: Compressors | N16: Regulators and meters | O16: Easements | P16: Communications | Q16: Other | R16: Capitalised AA costs | S16: Group IT | T16: SIB Capex | U16: PMA | V16: Total | W16: Dollars
A17: ALARM RATIONALISATION | B17: 28.54574563 | C17: 0 | D17: 0 | E17: 0 | F17: 0 | G17: 0 | H17: =SUM(B17:G17) -> 28.54574563 | I17: Stay in Business | J17: Stay in business | T17: 1 | V17: 1 | W17: $2016/17
A18: ANODE BED EASEMENTS PROGRAM | B18: 214.83 | C18: 219.945 | D18: 225.06 | E18: 230.175 | F18: 235.29 | G18: 240.405 | H18: =SUM(B18:G18) -> 1365.705 | I18: Replacement | J18: ='inputs¦other'!A50 -> Pipeline Integrity Management | K18: 0.5 | L18: 0.5 | V18: 1 | W18: $2015/16
A19: Condamine River Strain Excavation | B19: 0 | C19: 204.6 | D19: 0 | E19: 0 | F19: 0 | G19: 0 | H19: 204.6 | I19: Stay in Business | J19: Stay in business | K19: 1 | V19: 1 | W19: $2015/16
A20: DN250 INTEGRITY UPGRADE PROGRAM | B20: 5012.7 | C20: 3034.564435 | D20: 4057.150478 | E20: 3706.787176 | F20: 3249.555251 | G20: 3739.656421 | H20: 22800.41376 | I20: Replacement | J20: ='inputs¦other'!A50 -> Pipeline Integrity Management | K20: 1 | V20: 1 | W20: $2015/16
A21: Gas Measurement Upgrade - including shades | B21: 0 | C21: 0 | D21: 0 | E21: 51.15 | F21: 51.15 | G21: 0 | H21: 102.3 | I21: Stay in Business | J21: Stay in business | T21: 1 | V21: 1 | W21: $2015/16
A22: GIBSON ISLAND E/I REVIEW FEED | B22: 10.23 | C22: 0 | D22: 0 | E22: 0 | F22: 0 | G22: 0 | H22: 10.23 | I22: Stay in Business | J22: Stay in business | T22: 1 | V22: 1 | W22: $2015/16
A23: Gibson Island Pressure Vessel platforms | B23: 0 | C23: 0 | D23: 0 | E23: 81.84 | F23: 0 | G23: 0 | H23: 81.84 | I23: Stay in Business | J23: Stay in business | N23: 1 | V23: 1 | W23: $2015/16
A24: Laser Scanner for Feature Assessment | B24: 0 | C24: 0 | D24: 0 | E24: 0 | F24: 153.45 | G24: 0 | H24: 153.45 | I24: Replacement | J24: ='inputs¦other'!A50 -> Pipeline Integrity Management | K24: 0.5 | L24: 0.5 | V24: 1 | W24: $2015/16
A25: LOSS OF SUPPLY DESIGN REVIEW | B25: 8.563723688 | C25: 0 | D25: 0 | E25: 0 | F25: 0 | G25: 0 | H25: 8.563723688 | I25: Stay in Business | J25: Stay in business | T25: 1 | V25: 1 | W25: $2015/16
A26: METER PERFORMANCE PROGRAM FEED | B26: 0 | C26: 5.709149125 | D26: 0 | E26: 0 | F26: 0 | G26: 0 | H26: 5.709149125 | I26: Stay in Business | J26: Stay in business | N26: 1 | V26: 1 | W26: $2015/16
A27: PEAT lateral cleaning pigging | B27: 15.345 | C27: 0 | D27: 0 | E27: 0 | F27: 0 | G27: 0 | H27: 15.345 | I27: Stay in Business | J27: Stay in business | T27: 1 | V27: 1 | W27: $2015/16
A28: PEAT LATERAL ILI - DN250 | B28: 0 | C28: 0 | D28: 0 | E28: 143.22 | F28: 0 | G28: 0 | H28: 143.22 | I28: Replacement | J28: ='inputs¦other'!A50 -> Pipeline Integrity Management | L28: 1 | V28: 1 | W28: $2015/16
A29: PEAT LATERAL LIQUIDS REMOVAL | B29: 0 | C29: 306.9 | D29: 0 | E29: 0 | F29: 0 | G29: 0 | H29: 306.9 | I29: Stay in Business | J29: Stay in business | L29: 1 | V29: 1 | W29: $2015/16
A30: PIPELINE REPAIR & EXCAVATION PROGRAM (unplanned) | B30: 102.3 | C30: 102.3 | D30: 102.3 | E30: 102.3 | F30: 102.3 | G30: 0 | H30: 511.5 | I30: Stay in Business | J30: Stay in business | T30: 1 | V30: 1 | W30: $2015/16
A31: Portable Slug Catcher - DN400 | B31: 228.365965 | C31: 0 | D31: 0 | E31: 0 | F31: 0 | G31: 0 | H31: 228.365965 | I31: Stay in Business | J31: Stay in business | L31: 1 | V31: 1 | W31: $2015/16
A32: QLD OPERATIONS SIB FUNDING | B32: 119.8921316 | C32: 114.1829825 | D32: 114.1829825 | E32: 114.1829825 | F32: 114.1829825 | G32: 114.1829825 | H32: 690.8070442 | I32: Stay in Business | J32: Stay in business | T32: 1 | V32: 1 | W32: $2015/16
A33: RBP - Station painting program | B33: 81.84 | C33: 81.84 | D33: 81.84 | E33: 81.84 | F33: 81.84 | G33: 81.84 | H33: 491.04 | I33: Stay in Business | J33: Stay in business | T33: 1 | V33: 1 | W33: $2015/16
A34: RBP - TYPE B GAS COMPLIANCE UPGRADES | B34: 25.575 | C34: 112.53 | D34: 112.53 | E34: 0 | F34: 0 | G34: 0 | H34: 250.635 | I34: Stay in Business | J34: Stay in business | T34: 1 | V34: 1 | W34: $2015/16
A35: RBP & PEAT ISOLATION PLAN UPGRADES | B35: 102.3 | C35: 102.3 | D35: 102.3 | E35: 0 | F35: 0 | G35: 0 | H35: 306.9 | I35: Stay in Business | J35: Stay in business | T35: 1 | V35: 1 | W35: $2015/16
A36: RBP- AS4853 ELECTRICAL HAZARD UPGRADES | B36: 0 | C36: 122.76 | D36: 0 | E36: 0 | F36: 0 | G36: 0 | H36: 122.76 | I36: Stay in Business | J36: Stay in business | T36: 1 | V36: 1 | W36: $2015/16
A37: RBP CE Lateral ILI - DN400 | B37: 0 | C37: 0 | D37: 10.23 | E37: 194.37 | F37: 0 | G37: 0 | H37: 204.6 | I37: Replacement | J37: ='inputs¦other'!A50 -> Pipeline Integrity Management | L37: 1 | V37: 1 | W37: $2015/16
A38: RBP Cleaning Program (DN400) | B38: 16.368 | C38: 0 | D38: 0 | E38: 0 | F38: 0 | G38: 0 | H38: 16.368 | I38: Stay in Business | J38: Stay in business | T38: 1 | V38: 1 | W38: $2015/16
A39: RBP CP TELEMETRY UPGRADE | B39: 153.45 | C39: 153.45 | D39: 153.45 | E39: 153.45 | F39: 153.45 | G39: 0 | H39: 767.25 | I39: Replacement | J39: ='inputs¦other'!A50 -> Pipeline Integrity Management | K39: 0.5 | L39: 0.5 | V39: 1 | W39: $2015/16
A40: RBP CP UPGRADE PROGRAM | B40: 643.467 | C40: 656.766 | D40: 662.904 | E40: 662.904 | F40: 662.904 | G40: 662.904 | H40: 3951.849 | I40: Replacement | J40: ='inputs¦other'!A50 -> Pipeline Integrity Management | K40: 0.5 | L40: 0.5 | V40: 1 | W40: $2015/16
A41: RBP DN400 Supply Offtakes | B41: 0 | C41: 0 | D41: 255.75 | E41: 0 | F41: 102.3 | G41: 0 | H41: 358.05 | I41: Stay in Business | J41: Stay in business | T41: 1 | V41: 1 | W41: $2015/16
A42: RBP HA RECTIFICATION | B42: 153.45 | C42: 51.15 | D42: 0 | E42: 0 | F42: 0 | G42: 102.3 | H42: 306.9 | I42: Stay in Business | J42: Stay in business | T42: 1 | V42: 1 | W42: $2015/16
A43: RBP LOOPING ILI - DN400 | B43: 0 | C43: 0 | D43: 0 | E43: 0 | F43: 1841.4 | G43: 0 | H43: 1841.4 | I43: Replacement | J43: ='inputs¦other'!A50 -> Pipeline Integrity Management | L43: 1 | V43: 1 | W43: $2015/16
A44: RBP LYTTON LATERAL ILI - DN200 | B44: 5.115 | C44: 143.22 | D44: 0 | E44: 0 | F44: 0 | G44: 0 | H44: 148.335 | I44: Replacement | J44: ='inputs¦other'!A50 -> Pipeline Integrity Management | L44: 1 | V44: 1 | W44: $2015/16
A45: RBP MAINLINE ILI PROGRAM - DN250 | B45: 0 | C45: 0 | D45: 1534.5 | E45: 0 | F45: 0 | G45: 0 | H45: 1534.5 | I45: Replacement | J45: ='inputs¦other'!A50 -> Pipeline Integrity Management | K45: 1 | V45: 1 | W45: $2015/16
A46: RBP METRO (ORIGINAL) ILI - DN200 | B46: 0 | C46: 61.38 | D46: 0 | E46: 0 | F46: 0 | G46: 0 | H46: 61.38 | I46: Replacement | J46: ='inputs¦other'!A50 -> Pipeline Integrity Management | K46: 1 | V46: 1 | W46: $2015/16
A47: RBP METRO ILI - DN300 | B47: 225.06 | C47: 0 | D47: 0 | E47: 0 | F47: 0 | G47: 225.06 | H47: 450.12 | I47: Replacement | J47: ='inputs¦other'!A50 -> Pipeline Integrity Management | K47: 1 | V47: 1 | W47: $2015/16
A48: RBP METRO LOOP ILI - DN400 | B48: 0 | C48: 0 | D48: 122.76 | E48: 0 | F48: 0 | G48: 0 | H48: 122.76 | I48: Replacement | J48: ='inputs¦other'!A50 -> Pipeline Integrity Management | L48: 1 | V48: 1 | W48: $2015/16
A49: RBP REPLACEMENT SPOOLS FOR DN250 CHECK VALVES | B49: 10.23 | C49: 0 | D49: 0 | E49: 0 | F49: 0 | G49: 0 | H49: 10.23 | I49: Stay in Business | J49: Stay in business | T49: 1 | V49: 1 | W49: $2015/16
A50: RBP RISK MITIGATION - FEED and IMPLEMENTATION | B50: 8184 | C50: 1687.95 | D50: 306.9 | E50: 306.9 | F50: 306.9 | G50: 306.9 | H50: 11099.55 | I50: Stay in Business | J50: ='inputs¦other'!A49 -> Urban Risk Reduction | K50: 1 | V50: 1 | W50: $2015/16
A51: RBP S20 Decommissioned Compressor Removal | B51: 0 | C51: 102.3 | D51: 102.3 | E51: 0 | F51: 0 | G51: 0 | H51: 204.6 | I51: Stay in Business | J51: Stay in business | M51: 1 | V51: 1 | W51: $2015/16
A52: RBP SCC EMAT ILI - DN300 | B52: 0 | C52: 0 | D52: 0 | E52: 0 | F52: 0 | G52: 920.7 | H52: 920.7 | I52: Replacement | J52: ='inputs¦other'!A50 -> Pipeline Integrity Management | K52: 1 | V52: 1 | W52: $2015/16
A53: RBP SCCMP EMAT ILI - DN250 | B53: 0 | C53: 1841.4 | D53: 1227.6 | E53: 0 | F53: 0 | G53: 0 | H53: 3069 | I53: Replacement | J53: ='inputs¦other'!A50 -> Pipeline Integrity Management | K53: 1 | V53: 1 | W53: $2015/16
A54: RBP SCRAPER TRAP MODIFICATIONS | B54: 0 | C54: 204.6 | D54: 204.6 | E54: 0 | F54: 0 | G54: 0 | H54: 409.2 | I54: Replacement | J54: ='inputs¦other'!A50 -> Pipeline Integrity Management | K54: 0.5 | L54: 0.5 | V54: 1 | W54: $2015/16
A55: RBP STATION FIRE SUPRESSION UPGRADES - BELLBIRD PARK | B55: 0 | C55: 0 | D55: 0 | E55: 76.725 | F55: 0 | G55: 0 | H55: 76.725 | I55: Stay in Business | J55: Stay in business | T55: 1 | V55: 1 | W55: $2015/16
A56: RBP STATION UPGRADES - HAZOP & Other | B56: 163.68 | C56: 312.015 | D56: 312.015 | E56: 102.3 | F56: 102.3 | G56: 0 | H56: 992.31 | I56: Stay in Business | J56: Stay in business | T56: 1 | V56: 1 | W56: $2015/16
A57: SCOTIA / WOODROYD VENT EXTENSION | B57: 0 | C57: 30.69 | D57: 0 | E57: 0 | F57: 0 | G57: 0 | H57: 30.69 | I57: Stay in Business | J57: Stay in business | K57: 1 | V57: 1 | W57: $2015/16
A58: SIS demand/test tracking system | B58: 0 | C58: 28.54574563 | D58: 0 | E58: 0 | F58: 0 | G58: 0 | H58: 28.54574563 | I58: Stay in Business | J58: Stay in business | T58: 1 | V58: 1 | W58: $2015/16
A59: SIS improvement program FEED and Implementation | B59: 28.54574563 | C59: 0 | D59: 0 | E59: 0 | F59: 0 | G59: 0 | H59: 28.54574563 | I59: Stay in Business | J59: Stay in business | T59: 1 | V59: 1 | W59: $2015/16
A60: SMS Reviews - QLD | B60: 5.709149125 | C60: 0 | D60: 0 | E60: 0 | F60: 0 | G60: 0 | H60: 5.709149125 | I60: Stay in Business | J60: Stay in business | T60: 1 | V60: 1 | W60: $2015/16
A61: SWANBANK ISOLATION VALVE | B61: 51.15 | C61: 0 | D61: 0 | E61: 0 | F61: 0 | G61: 0 | H61: 51.15 | I61: Stay in Business | J61: Stay in business | T61: 1 | V61: 1 | W61: $2015/16
A62: TOOWOOMBA DN250 RAIL CROSSING | B62: 0 | C62: 11253 | D62: 3580.5 | E62: 0 | F62: 0 | G62: 0 | H62: 14833.5 | I62: Stay in Business | J62: ='inputs¦other'!A51 -> Toowoomba Crossing | K62: 0.5 | L62: 0.5 | V62: 1 | W62: $2015/16
A63: TOOWOOMBA RANGE SLOPE MONITORING WORKS | B63: 306.9 | C63: 664.95 | D63: 0 | E63: 0 | F63: 0 | G63: 0 | H63: 971.85 | I63: Stay in Business | J63: ='inputs¦other'!A51 -> Toowoomba Crossing | K63: 0.5 | L63: 0.5 | V63: 1 | W63: $2015/16
A64: Toowoomba Slope Management | B64: 0 | C64: 0 | D64: 0 | E64: 0 | F64: 0 | G64: 0 | H64: 0 | I64: Stay in Business | J64: Stay in business | K64: 0.5 | L64: 0.5 | V64: 1 | W64: $2015/16
A65: TOOWOOMBA STATION HEATER INSTALLATION | B65: 0 | C65: 255.75 | D65: 0 | E65: 0 | F65: 0 | G65: 0 | H65: 255.75 | I65: Stay in Business | J65: Stay in business | N65: 1 | V65: 1 | W65: $2015/16
A66: Turbine overhauls - Dalby | B66: 0 | C66: 0 | D66: 0 | E66: 0 | F66: 0 | H66: 0 | I66: Stay in Business | J66: ='inputs¦other'!A52 -> Dalby Turbine Overhaul | M66: 1 | V66: 1 | W66: $2015/16
A67: Applications and Renewals | B67: 0 | C67: 425.728837 | D67: 531.8525471 | E67: 425.728837 | F67: 531.8525471 | G67: 425.728837 | H67: 2340.891605 | I67: Stay in Business | J67: Applications and Renewals | S67: 1 | V67: 1 | W67: $2014/15
A68: Infrastructure Renewals | B68: 0 | C68: 138.8246208 | D68: 46.27487359 | E68: 46.27487359 | F68: 46.27487359 | G68: 0 | H68: 277.6492415 | I68: Stay in Business | J68: Infrastructure Renewals | S68: 1 | V68: 1 | W68: $2014/15
A69: AA Costs | B69: 911.856697 | C69: 72.50548305 | D69: 0 | E69: 0 | F69: 59.34226584 | G69: 911.856697 | H69: 1955.561143 | I69: Stay in Business | J69: Access Arrangement | R69: 1 | V69: 1 | W69: $2015/16
A70: Remote Vehicle Comms - Journey Management | B70: 1.810130338 | C70: 0 | D70: 0 | E70: 0 | F70: 0 | G70: 0 | H70: 1.810130338 | I70: Stay in Business | J70: Stay in business | S70: 1 | V70: 1 | W70: $2015/16
A71: Satellite Strategy | B71: 97.00597542 | C71: 0 | D71: 0 | E71: 0 | F71: 0 | G71: 0 | H71: 97.00597542 | I71: Stay in Business | J71: Stay in business | S71: 1 | V71: 1 | W71: $2015/16
A72: Enterprise Content Management | B72: 290.264327 | C72: 0 | D72: 0 | E72: 0 | F72: 0 | G72: 0 | H72: 290.264327 | I72: Stay in Business | J72: Stay in business | S72: 1 | V72: 1 | W72: $2015/16
A73: APA Grid - Energy Components Upgrade | B73: 155.1809735 | C73: 0 | D73: 0 | E73: 0 | F73: 0 | G73: 0 | H73: 155.1809735 | I73: Stay in Business | J73: Stay in business | S73: 1 | V73: 1 | W73: $2015/16
A74: Hyperion Upgrade to v 11-1-2-4 | B74: 42.65522595 | C74: 0 | D74: 0 | E74: 0 | F74: 0 | G74: 0 | H74: 42.65522595 | I74: Stay in Business | J74: Stay in business | S74: 1 | V74: 1 | W74: $2015/16
A75: APA Grid Services Initiatives Program | B75: 50.80077426 | C75: 0 | D75: 0 | E75: 0 | F75: 0 | G75: 0 | H75: 50.80077426 | I75: Stay in Business | J75: Stay in business | S75: 1 | V75: 1 | W75: $2015/16
A76: APA Grid Extend | B76: 487.0510788 | C76: 108.1047808 | D76: 0 | E76: 0 | F76: 0 | G76: 0 | H76: 595.1558596 | I76: Stay in Business | J76: Stay in business | S76: 1 | V76: 1 | W76: $2015/16
A77: BI - Transmission Dashboard | B77: 59.53282413 | C77: 0 | D77: 0 | E77: 0 | F77: 0 | G77: 0 | H77: 59.53282413 | I77: Stay in Business | J77: Stay in business | S77: 1 | V77: 1 | W77: $2015/16
A78: HR Systems Refresh | B78: 53.62864042 | C78: 283.7966408 | D78: 3.566732725 | E78: 0 | F78: 0 | G78: 0 | H78: 340.992014 | I78: Stay in Business | J78: Stay in business | S78: 1 | V78: 1 | W78: $2015/16
A79: SharePoint Upgrade | B79: 63.7289976 | C79: 42.46786638 | D79: 0 | E79: 0 | F79: 0 | G79: 0 | H79: 106.196864 | I79: Stay in Business | J79: Stay in business | S79: 1 | V79: 1 | W79: $2015/16
A80: SQL Server Upgrade | B80: 56.64354062 | C80: 3.710756647 | D80: 0 | E80: 0 | F80: 0 | G80: 0 | H80: 60.35429727 | I80: Stay in Business | J80: Stay in business | S80: 1 | V80: 1 | W80: $2015/16
A81: Upgrade Enterprise OSI PI Historian | B81: 14.7624742 | C81: 0.200414647 | D81: 0 | E81: 0 | F81: 0 | G81: 0 | H81: 14.96288885 | I81: Stay in Business | J81: Stay in business | S81: 1 | V81: 1 | W81: $2015/16
A82: Hazardous Area Platform | B82: 16.40143094 | C82: 94.84112208 | D82: 0 | E82: 0 | F82: 0 | G82: 0 | H82: =SUM(B82:G82) -> 111.242553 | I82: Stay in Business | J82: Stay in business | S82: 1 | V82: 1 | W82: $2015/16
A83: Form Digitisation Project | B83: 10.27603143 | C83: 77.75513396 | D83: 0 | E83: 0 | F83: 0 | G83: 0 | H83: 88.03116538 | I83: Stay in Business | J83: Stay in business | S83: 1 | V83: 1 | W83: $2015/16
A84: Enterprise Asset Management Upgrade FY18 | B84: 8.109880209 | C84: 166.190606 | D84: 0 | E84: 0 | F84: 0 | G84: 0 | H84: 174.3004862 | I84: Stay in Business | J84: Stay in business | S84: 1 | V84: 1 | W84: $2015/16
A85: PPM Refresh | B85: 1.457981843 | C85: 51.107897 | D85: 0 | E85: 0 | F85: 0 | G85: 0 | H85: 52.56587884 | I85: Stay in Business | J85: Stay in business | S85: 1 | V85: 1 | W85: $2015/16
A86: BizTalk System Upgrade FY18 | B86: 0 | C86: 48.19203685 | D86: 0 | E86: 0 | F86: 0 | G86: 0 | H86: 48.19203685 | I86: Stay in Business | J86: Stay in business | S86: 1 | V86: 1 | W86: $2015/16
A87: Automated Testing Tool | B87: 0 | C87: 25.66815403 | D87: 0 | E87: 0 | F87: 0 | G87: 0 | H87: 25.66815403 | I87: Stay in Business | J87: Stay in business | S87: 1 | V87: 1 | W87: $2015/16
A88: Oracle eBS Upgrade to v12 2 | B88: 0 | C88: 55.84659843 | D88: 0 | E88: 0 | F88: 0 | G88: 0 | H88: 55.84659843 | I88: Stay in Business | J88: Stay in business | S88: 1 | V88: 1 | W88: $2015/16
A89: CRM Upgrade | B89: 0 | C89: 40.91905045 | D89: 0 | E89: 0 | F89: 0 | G89: 0 | H89: 40.91905045 | I89: Stay in Business | J89: Stay in business | S89: 1 | V89: 1 | W89: $2015/16
A90: X-Info Aware Version 2 | B90: 0 | C90: 18.62552923 | D90: 0 | E90: 0 | F90: 0 | G90: 0 | H90: 18.62552923 | I90: Stay in Business | J90: Stay in business | S90: 1 | V90: 1 | W90: $2015/16
A91: ID Procurement Data | B91: 0 | C91: 17.64693964 | D91: 0.9574080772 | E91: 0 | F91: 0 | G91: 0 | H91: 18.60434771 | I91: Stay in Business | J91: Stay in business | S91: 1 | V91: 1 | W91: $2015/16
A92: Upgrade Enterprise OSI PI Historian 2017 | B92: 1.079369416 | C92: 7.818948343 | D92: 0 | E92: 0 | F92: 0 | G92: 0 | H92: 8.898317759 | I92: Stay in Business | J92: Stay in business | S92: 1 | V92: 1 | W92: $2015/16
A93: Supplier Qualification and Compliance | B93: 0 | C93: 6.825279514 | D93: 7.533719835 | E93: 0 | F93: 0 | G93: 0 | H93: 14.35899935 | I93: Stay in Business | J93: Stay in business | S93: 1 | V93: 1 | W93: $2015/16
A94: BizTalk System Upgrade FY20 | B94: 0 | C94: 0 | D94: 0 | E94: 12.24420558 | F94: 0 | G94: 0 | H94: 12.24420558 | I94: Stay in Business | J94: Stay in business | S94: 1 | V94: 1 | W94: $2015/16
A95: Enterprise Asset Management Upgrade FY21 | B95: 0 | C95: 0 | D95: 0 | E95: 7.143156909 | F95: 57.2347211 | G95: 0 | H95: 64.377878 | I95: Stay in Business | J95: Stay in business | S95: 1 | V95: 1 | W95: $2015/16
A99: Total | B99: =SUM(B17:B95) -> 18219.85881 | C99: 23541.57501 | D99: 13859.05774 | E99: =SUM(E17:E95) -> 6499.535232 | F99: 7851.726642 | G99: 7731.533938 | H99: 77703.28737

Sheet AER DRAFT Outputs│Tables
A10: =RIGHT(CELL("filename",A1),LEN(CELL("filename",A1))-FIND("]",CELL("filename",A1))) -> AER DRAFT Outputs│Tables
A11: Proposed capex and draft decision - based on AER adjusted inflation ('AER DRAFT inputs|other' worksheet)
AB12: Gross Capex
A13: Capex by project ($m nominal) | N13: Capex by project ($m real 2016/17) | AB13: Draft Decision ($2016/17)
A14: Project name | C14: 2013 | D14: 2014 | E14: 2015 | F14: 2016 | G14: 2017 | H14: 2018 | I14: 2019 | J14: 2020 | K14: 2021 | L14: 2022 | N14: Project name | P14: 2013 | Q14: 2014 | R14: 2015 | S14: 2016 | T14: 2017 | U14: 2018 | V14: 2019 | W14: 2020 | X14: 2021 | Y14: 2022 | AB14: Current | AC14: Forecast
A15: ='inputs¦other'!A38 -> Aquarium Passage | B15: $m nominal | C15: =SUMIF('AER DRAFT Input¦Historic'!$G$17:$G$98,$A15,'AER DRAFT Input¦Historic'!B$17:B$98)/1000000 -> 0.20340742 | D15: =SUMIF('AER DRAFT Input¦Historic'!$G$17:$G$98,$A15,'AER DRAFT Input¦Historic'!C$17:C$98)/1000000 -> 0.60615213 | E15: =SUMIF('AER DRAFT Input¦Historic'!$G$17:$G$98,$A15,'AER DRAFT Input¦Historic'!D$17:D$98)/1000000 -> 1.12019813 | F15: =SUMIF('AER DRAFT Input¦Historic'!$G$17:$G$98,$A15,'AER DRAFT Input¦Historic'!E$17:E$98)/1000000 -> 0 | G15: =SUMIF('AER DRAFT Input¦Forecast'!$J$17:$J$95,$A15,'AER DRAFT Input¦Forecast'!B$17:B$95)/1000*'AER DRAFT inputs¦other'!H$13 -> 0 | H15: =SUMIF('AER DRAFT Input¦Forecast'!$J$17:$J$95,$A15,'AER DRAFT Input¦Forecast'!C$17:C$95)/1000*'AER DRAFT inputs¦other'!I$13 -> 0 | I15: =SUMIF('AER DRAFT Input¦Forecast'!$J$17:$J$95,$A15,'AER DRAFT Input¦Forecast'!D$17:D$95)/1000*'AER DRAFT inputs¦other'!J$13 -> 0 | J15: =SUMIF('AER DRAFT Input¦Forecast'!$J$17:$J$95,$A15,'AER DRAFT Input¦Forecast'!E$17:E$95)/1000*'AER DRAFT inputs¦other'!K$13 -> 0 | K15: =SUMIF('AER DRAFT Input¦Forecast'!$J$17:$J$95,$A15,'AER DRAFT Input¦Forecast'!F$17:F$95)/1000*'AER DRAFT inputs¦other'!L$13 -> 0 | L15: =SUMIF('AER DRAFT Input¦Forecast'!$J$17:$J$95,$A15,'AER DRAFT Input¦Forecast'!G$17:G$95)/1000*'AER DRAFT inputs¦other'!M$13 -> 0 | N15: =A15 -> Aquarium Passage | O15: $m real 2016/17 | P15: =C15/'AER DRAFT inputs¦other'!D$13 -> 0.2203043068 | Q15: =D15/'AER DRAFT inputs¦other'!E$13 -> 0.6404923787 | R15: =E15/'AER DRAFT inputs¦other'!F$13 -> 1.149966533 | S15: =F15/'AER DRAFT inputs¦other'!G$13 -> 0 | T15: =G15/'AER DRAFT inputs¦other'!H$13 -> 0 | U15: =H15/'AER DRAFT inputs¦other'!I$13 -> 0 | V15: =I15/'AER DRAFT inputs¦other'!J$13 -> 0 | W15: =J15/'AER DRAFT inputs¦other'!K$13 -> 0 | X15: =K15/'AER DRAFT inputs¦other'!L$13 -> 0 | Y15: =L15/'AER DRAFT inputs¦other'!M$13 -> 0 | AB15: =SUM(P15:T15) -> 2.010763218 | AC15: =SUM(U15:Y15) -> 0
A16: ='inputs¦other'!A39 -> Flood Damage | B16: $m nominal | C16: =SUMIF('AER DRAFT Input¦Historic'!$G$17:$G$98,$A16,'AER DRAFT Input¦Historic'!B$17:B$98)/1000000 -> 0 | D16: =SUMIF('AER DRAFT Input¦Historic'!$G$17:$G$98,$A16,'AER DRAFT Input¦Historic'!C$17:C$98)/1000000 -> 0 | E16: =SUMIF('AER DRAFT Input¦Historic'!$G$17:$G$98,$A16,'AER DRAFT Input¦Historic'!D$17:D$98)/1000000 -> 0 | F16: =SUMIF('AER DRAFT Input¦Historic'!$G$17:$G$98,$A16,'AER DRAFT Input¦Historic'!E$17:E$98)/1000000 -> 0 | G16: =SUMIF('AER DRAFT Input¦Forecast'!$J$17:$J$95,$A16,'AER DRAFT Input¦Forecast'!B$17:B$95)/1000*'AER DRAFT inputs¦other'!H$13 -> 0 | H16: =SUMIF('AER DRAFT Input¦Forecast'!$J$17:$J$95,$A16,'AER DRAFT Input¦Forecast'!C$17:C$95)/1000*'AER DRAFT inputs¦other'!I$13 -> 0 | I16: =SUMIF('AER DRAFT Input¦Forecast'!$J$17:$J$95,$A16,'AER DRAFT Input¦Forecast'!D$17:D$95)/1000*'AER DRAFT inputs¦other'!J$13 -> 0 | J16: =SUMIF('AER DRAFT Input¦Forecast'!$J$17:$J$95,$A16,'AER DRAFT Input¦Forecast'!E$17:E$95)/1000*'AER DRAFT inputs¦other'!K$13 -> 0 | K16: =SUMIF('AER DRAFT Input¦Forecast'!$J$17:$J$95,$A16,'AER DRAFT Input¦Forecast'!F$17:F$95)/1000*'AER DRAFT inputs¦other'!L$13 -> 0 | L16: =SUMIF('AER DRAFT Input¦Forecast'!$J$17:$J$95,$A16,'AER DRAFT Input¦Forecast'!G$17:G$95)/1000*'AER DRAFT inputs¦other'!M$13 -> 0 | N16: =A16 -> Flood Damage | O16: $m real 2016/17 | P16: =C16/'AER DRAFT inputs¦other'!D$13 -> 0 | Q16: =D16/'AER DRAFT inputs¦other'!E$13 -> 0 | R16: =E16/'AER DRAFT inputs¦other'!F$13 -> 0 | S16: =F16/'AER DRAFT inputs¦other'!G$13 -> 0 | T16: =G16/'AER DRAFT inputs¦other'!H$13 -> 0 | U16: =H16/'AER DRAFT inputs¦other'!I$13 -> 0 | V16: =I16/'AER DRAFT inputs¦other'!J$13 -> 0 | W16: =J16/'AER DRAFT inputs¦other'!K$13 -> 0 | X16: =K16/'AER DRAFT inputs¦other'!L$13 -> 0 | Y16: =L16/'AER DRAFT inputs¦other'!M$13 -> 0 | AB16: 0 | AC16: =SUM(U16:Y16) -> 0
A17: ='inputs¦other'!A40 -> Bi direction | B17: $m nominal | C17: =SUMIF('AER DRAFT Input¦Historic'!$G$17:$G$98,$A17,'AER DRAFT Input¦Historic'!B$17:B$98)/1000000 -> 0 | D17: =SUMIF('AER DRAFT Input¦Historic'!$G$17:$G$98,$A17,'AER DRAFT Input¦Historic'!C$17:C$98)/1000000 -> 0 | E17: =SUMIF('AER DRAFT Input¦Historic'!$G$17:$G$98,$A17,'AER DRAFT Input¦Historic'!D$17:D$98)/1000000 -> 7.54519578 | F17: =SUMIF('AER DRAFT Input¦Historic'!$G$17:$G$98,$A17,'AER DRAFT Input¦Historic'!E$17:E$98)/1000000 -> 0.61401758 | G17: =SUMIF('AER DRAFT Input¦Forecast'!$J$17:$J$95,$A17,'AER DRAFT Input¦Forecast'!B$17:B$95)/1000*'AER DRAFT inputs¦other'!H$13 -> 0 | H17: =SUMIF('AER DRAFT Input¦Forecast'!$J$17:$J$95,$A17,'AER DRAFT Input¦Forecast'!C$17:C$95)/1000*'AER DRAFT inputs¦other'!I$13 -> 0 | I17: =SUMIF('AER DRAFT Input¦Forecast'!$J$17:$J$95,$A17,'AER DRAFT Input¦Forecast'!D$17:D$95)/1000*'AER DRAFT inputs¦other'!J$13 -> 0 | J17: =SUMIF('AER DRAFT Input¦Forecast'!$J$17:$J$95,$A17,'AER DRAFT Input¦Forecast'!E$17:E$95)/1000*'AER DRAFT inputs¦other'!K$13 -> 0 | K17: =SUMIF('AER DRAFT Input¦Forecast'!$J$17:$J$95,$A17,'AER DRAFT Input¦Forecast'!F$17:F$95)/1000*'AER DRAFT inputs¦other'!L$13 -> 0 | L17: =SUMIF('AER DRAFT Input¦Forecast'!$J$17:$J$95,$A17,'AER DRAFT Input¦Forecast'!G$17:G$95)/1000*'AER DRAFT inputs¦other'!M$13 -> 0 | N17: Bi direction | O17: $m real 2016/17 | P17: =C17/'AER DRAFT inputs¦other'!D$13 -> 0 | Q17: =D17/'AER DRAFT inputs¦other'!E$13 -> 0 | R17: =E17/'AER DRAFT inputs¦other'!F$13 -> 7.745703548 | S17: =F17/'AER DRAFT inputs¦other'!G$13 -> 0.6220612103 | T17: =G17/'AER DRAFT inputs¦other'!H$13 -> 0 | U17: =H17/'AER DRAFT inputs¦other'!I$13 -> 0 | V17: =I17/'AER DRAFT inputs¦other'!J$13 -> 0 | W17: =J17/'AER DRAFT inputs¦other'!K$13 -> 0 | X17: =K17/'AER DRAFT inputs¦other'!L$13 -> 0 | Y17: =L17/'AER DRAFT inputs¦other'!M$13 -> 0 | AB17: 8.367764758 | AC17: 0
A18: ='inputs¦other'!A42 -> Clear SCADA | B18: $m nominal | C18: =SUMIF('AER DRAFT Input¦Historic'!$G$17:$G$98,$A18,'AER DRAFT Input¦Historic'!B$17:B$98)/1000000 -> 0 | D18: =SUMIF('AER DRAFT Input¦Historic'!$G$17:$G$98,$A18,'AER DRAFT Input¦Historic'!C$17:C$98)/1000000 -> 0.39804328 | E18: =SUMIF('AER DRAFT Input¦Historic'!$G$17:$G$98,$A18,'AER DRAFT Input¦Historic'!D$17:D$98)/1000000 -> 0.54875395 | F18: =SUMIF('AER DRAFT Input¦Historic'!$G$17:$G$98,$A18,'AER DRAFT Input¦Historic'!E$17:E$98)/1000000 -> 0 | G18: =SUMIF('AER DRAFT Input¦Forecast'!$J$17:$J$95,$A18,'AER DRAFT Input¦Forecast'!B$17:B$95)/1000*'AER DRAFT inputs¦other'!H$13 -> 0 | H18: =SUMIF('AER DRAFT Input¦Forecast'!$J$17:$J$95,$A18,'AER DRAFT Input¦Forecast'!C$17:C$95)/1000*'AER DRAFT inputs¦other'!I$13 -> 0 | I18: =SUMIF('AER DRAFT Input¦Forecast'!$J$17:$J$95,$A18,'AER DRAFT Input¦Forecast'!D$17:D$95)/1000*'AER DRAFT inputs¦other'!J$13 -> 0 | J18: =SUMIF('AER DRAFT Input¦Forecast'!$J$17:$J$95,$A18,'AER DRAFT Input¦Forecast'!E$17:E$95)/1000*'AER DRAFT inputs¦other'!K$13 -> 0 | K18: =SUMIF('AER DRAFT Input¦Forecast'!$J$17:$J$95,$A18,'AER DRAFT Input¦Forecast'!F$17:F$95)/1000*'AER DRAFT inputs¦other'!L$13 -> 0 | L18: =SUMIF('AER DRAFT Input¦Forecast'!$J$17:$J$95,$A18,'AER DRAFT Input¦Forecast'!G$17:G$95)/1000*'AER DRAFT inputs¦other'!M$13 -> 0 | N18: Clear SCADA | O18: $m real 2016/17 | P18: =C18/'AER DRAFT inputs¦other'!D$13 -> 0 | Q18: =D18/'AER DRAFT inputs¦other'!E$13 -> 0.4205935682 | R18: =E18/'AER DRAFT inputs¦other'!F$13 -> 0.5633366637 | S18: =F18/'AER DRAFT inputs¦other'!G$13 -> 0 | T18: =G18/'AER DRAFT inputs¦other'!H$13 -> 0 | U18: =H18/'AER DRAFT inputs¦other'!I$13 -> 0 | V18: =I18/'AER DRAFT inputs¦other'!J$13 -> 0 | W18: =J18/'AER DRAFT inputs¦other'!K$13 -> 0 | X18: =K18/'AER DRAFT inputs¦other'!L$13 -> 0 | Y18: =L18/'AER DRAFT inputs¦other'!M$13 -> 0 | AB18: 0.9839302319 | AC18: 0
A19: ='inputs¦other'!A43 -> RBP Looping | B19: $m nominal | C19: =SUMIF('AER DRAFT Input¦Historic'!$G$17:$G$98,$A19,'AER DRAFT Input¦Historic'!B$17:B$98)/1000000 -> 2.92318626 | D19: =SUMIF('AER DRAFT Input¦Historic'!$G$17:$G$98,$A19,'AER DRAFT Input¦Historic'!C$17:C$98)/1000000 -> 2.40302167 | E19: =SUMIF('AER DRAFT Input¦Historic'!$G$17:$G$98,$A19,'AER DRAFT Input¦Historic'!D$17:D$98)/1000000 -> 0.01857902 | F19: =SUMIF('AER DRAFT Input¦Historic'!$G$17:$G$98,$A19,'AER DRAFT Input¦Historic'!E$17:E$98)/1000000 -> 0 | G19: =SUMIF('AER DRAFT Input¦Forecast'!$J$17:$J$95,$A19,'AER DRAFT Input¦Forecast'!B$17:B$95)/1000*'AER DRAFT inputs¦other'!H$13 -> 0 | H19: =SUMIF('AER DRAFT Input¦Forecast'!$J$17:$J$95,$A19,'AER DRAFT Input¦Forecast'!C$17:C$95)/1000*'AER DRAFT inputs¦other'!I$13 -> 0 | I19: =SUMIF('AER DRAFT Input¦Forecast'!$J$17:$J$95,$A19,'AER DRAFT Input¦Forecast'!D$17:D$95)/1000*'AER DRAFT inputs¦other'!J$13 -> 0 | J19: =SUMIF('AER DRAFT Input¦Forecast'!$J$17:$J$95,$A19,'AER DRAFT Input¦Forecast'!E$17:E$95)/1000*'AER DRAFT inputs¦other'!K$13 -> 0 | K19: =SUMIF('AER DRAFT Input¦Forecast'!$J$17:$J$95,$A19,'AER DRAFT Input¦Forecast'!F$17:F$95)/1000*'AER DRAFT inputs¦other'!L$13 -> 0 | L19: =SUMIF('AER DRAFT Input¦Forecast'!$J$17:$J$95,$A19,'AER DRAFT Input¦Forecast'!G$17:G$95)/1000*'AER DRAFT inputs¦other'!M$13 -> 0 | N19: RBP Looping | O19: $m real 2016/17 | P19: =C19/'AER DRAFT inputs¦other'!D$13 -> 3.166012935 | Q19: =D19/'AER DRAFT inputs¦other'!E$13 -> 2.539159708 | R19: =E19/'AER DRAFT inputs¦other'!F$13 -> 0.01907274315 | S19: =F19/'AER DRAFT inputs¦other'!G$13 -> 0 | T19: =G19/'AER DRAFT inputs¦other'!H$13 -> 0 | U19: =H19/'AER DRAFT inputs¦other'!I$13 -> 0 | V19: =I19/'AER DRAFT inputs¦other'!J$13 -> 0 | W19: =J19/'AER DRAFT inputs¦other'!K$13 -> 0 | X19: =K19/'AER DRAFT inputs¦other'!L$13 -> 0 | Y19: =L19/'AER DRAFT inputs¦other'!M$13 -> 0 | AB19: 5.724245386 | AC19: 0
A20: ='inputs¦other'!A44 -> FC and RTU upgrade | B20: $m nominal | C20: =SUMIF('AER DRAFT Input¦Historic'!$G$17:$G$98,$A20,'AER DRAFT Input¦Historic'!B$17:B$98)/1000000 -> 0.026836 | D20: =SUMIF('AER DRAFT Input¦Historic'!$G$17:$G$98,$A20,'AER DRAFT Input¦Historic'!C$17:C$98)/1000000 -> 0.4423934 | E20: =SUMIF('AER DRAFT Input¦Historic'!$G$17:$G$98,$A20,'AER DRAFT Input¦Historic'!D$17:D$98)/1000000 -> 0.53151581 | F20: =SUMIF('AER DRAFT Input¦Historic'!$G$17:$G$98,$A20,'AER DRAFT Input¦Historic'!E$17:E$98)/1000000 -> 0.10216829 | G20: =SUMIF('AER DRAFT Input¦Forecast'!$J$17:$J$95,$A20,'AER DRAFT Input¦Forecast'!B$17:B$95)/1000*'AER DRAFT inputs¦other'!H$13 -> 0 | H20: =SUMIF('AER DRAFT Input¦Forecast'!$J$17:$J$95,$A20,'AER DRAFT Input¦Forecast'!C$17:C$95)/1000*'AER DRAFT inputs¦other'!I$13 -> 0 | I20: =SUMIF('AER DRAFT Input¦Forecast'!$J$17:$J$95,$A20,'AER DRAFT Input¦Forecast'!D$17:D$95)/1000*'AER DRAFT inputs¦other'!J$13 -> 0 | J20: =SUMIF('AER DRAFT Input¦Forecast'!$J$17:$J$95,$A20,'AER DRAFT Input¦Forecast'!E$17:E$95)/1000*'AER DRAFT inputs¦other'!K$13 -> 0 | K20: =SUMIF('AER DRAFT Input¦Forecast'!$J$17:$J$95,$A20,'AER DRAFT Input¦Forecast'!F$17:F$95)/1000*'AER DRAFT inputs¦other'!L$13 -> 0 | L20: =SUMIF('AER DRAFT Input¦Forecast'!$J$17:$J$95,$A20,'AER DRAFT Input¦Forecast'!G$17:G$95)/1000*'AER DRAFT inputs¦other'!M$13 -> 0 | N20: FC and RTU upgrade | O20: $m real 2016/17 | P20: =C20/'AER DRAFT inputs¦other'!D$13 -> 0.02906524442 | Q20: =D20/'AER DRAFT inputs¦other'!E$13 -> 0.4674562491 | R20: =E20/'AER DRAFT inputs¦other'!F$13 -> 0.5456404334 | S20: =F20/'AER DRAFT inputs¦other'!G$13 -> 0.1035066946 | T20: =G20/'AER DRAFT inputs¦other'!H$13 -> 0 | U20: =H20/'AER DRAFT inputs¦other'!I$13 -> 0 | V20: =I20/'AER DRAFT inputs¦other'!J$13 -> 0 | W20: =J20/'AER DRAFT inputs¦other'!K$13 -> 0 | X20: =K20/'AER DRAFT inputs¦other'!L$13 -> 0 | Y20: =L20/'AER DRAFT inputs¦other'!M$13 -> 0 | AB20: 1.145668622 | AC20: 0
A21: ='inputs¦other'!A45 -> Toowoomba Station Upgrade | B21: $m nominal | C21: =SUMIF('AER DRAFT Input¦Historic'!$G$17:$G$98,$A21,'AER DRAFT Input¦Historic'!B$17:B$98)/1000000 -> 0.05611001 | D21: =SUMIF('AER DRAFT Input¦Historic'!$G$17:$G$98,$A21,'AER DRAFT Input¦Historic'!C$17:C$98)/1000000 -> 0.40998034 | E21: =SUMIF('AER DRAFT Input¦Historic'!$G$17:$G$98,$A21,'AER DRAFT Input¦Historic'!D$17:D$98)/1000000 -> 0.83088895 | F21: =SUMIF('AER DRAFT Input¦Historic'!$G$17:$G$98,$A21,'AER DRAFT Input¦Historic'!E$17:E$98)/1000000 -> 0 | G21: =SUMIF('AER DRAFT Input¦Forecast'!$J$17:$J$95,$A21,'AER DRAFT Input¦Forecast'!B$17:B$95)/1000*'AER DRAFT inputs¦other'!H$13 -> 0 | H21: =SUMIF('AER DRAFT Input¦Forecast'!$J$17:$J$95,$A21,'AER DRAFT Input¦Forecast'!C$17:C$95)/1000*'AER DRAFT inputs¦other'!I$13 -> 0 | I21: =SUMIF('AER DRAFT Input¦Forecast'!$J$17:$J$95,$A21,'AER DRAFT Input¦Forecast'!D$17:D$95)/1000*'AER DRAFT inputs¦other'!J$13 -> 0 | J21: =SUMIF('AER DRAFT Input¦Forecast'!$J$17:$J$95,$A21,'AER DRAFT Input¦Forecast'!E$17:E$95)/1000*'AER DRAFT inputs¦other'!K$13 -> 0 | K21: =SUMIF('AER DRAFT Input¦Forecast'!$J$17:$J$95,$A21,'AER DRAFT Input¦Forecast'!F$17:F$95)/1000*'AER DRAFT inputs¦other'!L$13 -> 0 | L21: =SUMIF('AER DRAFT Input¦Forecast'!$J$17:$J$95,$A21,'AER DRAFT Input¦Forecast'!G$17:G$95)/1000*'AER DRAFT inputs¦other'!M$13 -> 0 | N21: Toowoomba Station Upgrade | O21: $m real 2016/17 | P21: =C21/'AER DRAFT inputs¦other'!D$13 -> 0.06077102231 | Q21: =D21/'AER DRAFT inputs¦other'!E$13 -> 0.4332068967 | R21: =E21/'AER DRAFT inputs¦other'!F$13 -> 0.8529691841 | S21: =F21/'AER DRAFT inputs¦other'!G$13 -> 0 | T21: =G21/'AER DRAFT inputs¦other'!H$13 -> 0 | U21: =H21/'AER DRAFT inputs¦other'!I$13 -> 0 | V21: =I21/'AER DRAFT inputs¦other'!J$13 -> 0 | W21: =J21/'AER DRAFT inputs¦other'!K$13 -> 0 | X21: =K21/'AER DRAFT inputs¦other'!L$13 -> 0 | Y21: =L21/'AER DRAFT inputs¦other'!M$13 -> 0 | AB21: 1.346947103 | AC21: 0
A22: ='inputs¦other'!A46 -> Access Arrangement | B22: $m nominal | C22: =SUMIF('AER DRAFT Input¦Historic'!$G$17:$G$98,$A22,'AER DRAFT Input¦Historic'!B$17:B$98)/1000000 -> 0.07087535 | D22: =SUMIF('AER DRAFT Input¦Historic'!$G$17:$G$98,$A22,'AER DRAFT Input¦Historic'!C$17:C$98)/1000000 -> 0 | E22: =SUMIF('AER DRAFT Input¦Historic'!$G$17:$G$98,$A22,'AER DRAFT Input¦Historic'!D$17:D$98)/1000000 -> 0 | F22: =SUMIF('AER DRAFT Input¦Historic'!$G$17:$G$98,$A22,'AER DRAFT Input¦Historic'!E$17:E$98)/1000000 -> 0.05800808 | G22: =SUMIF('AER DRAFT Input¦Forecast'!$J$17:$J$95,$A22,'AER DRAFT Input¦Forecast'!B$17:B$95)/1000*'AER DRAFT inputs¦other'!H$13 -> 0.911856697 | H22: =SUMIF('AER DRAFT Input¦Forecast'!$J$17:$J$95,$A22,'AER DRAFT Input¦Forecast'!C$17:C$95)/1000*'AER DRAFT inputs¦other'!I$13 -> 0.07395559271 | I22: =SUMIF('AER DRAFT Input¦Forecast'!$J$17:$J$95,$A22,'AER DRAFT Input¦Forecast'!D$17:D$95)/1000*'AER DRAFT inputs¦other'!J$13 -> 0 | J22: =SUMIF('AER DRAFT Input¦Forecast'!$J$17:$J$95,$A22,'AER DRAFT Input¦Forecast'!E$17:E$95)/1000*'AER DRAFT inputs¦other'!K$13 -> 0 | K22: =SUMIF('AER DRAFT Input¦Forecast'!$J$17:$J$95,$A22,'AER DRAFT Input¦Forecast'!F$17:F$95)/1000*'AER DRAFT inputs¦other'!L$13 -> 0.06423397699 | L22: =SUMIF('AER DRAFT Input¦Forecast'!$J$17:$J$95,$A22,'AER DRAFT Input¦Forecast'!G$17:G$95)/1000*'AER DRAFT inputs¦other'!M$13 -> 1.006763474 | N22: Access Arrangement | O22: $m real 2016/17 | P22: =C22/'AER DRAFT inputs¦other'!D$13 -> 0.07676290695 | Q22: =D22/'AER DRAFT inputs¦other'!E$13 -> 0 | R22: =E22/'AER DRAFT inputs¦other'!F$13 -> 0 | S22: =F22/'AER DRAFT inputs¦other'!G$13 -> 0.05876798585 | T22: =G22/'AER DRAFT inputs¦other'!H$13 -> 0.911856697 | U22: =H22/'AER DRAFT inputs¦other'!I$13 -> 0.07250548305 | V22: =I22/'AER DRAFT inputs¦other'!J$13 -> 0 | W22: =J22/'AER DRAFT inputs¦other'!K$13 -> 0 | X22: =K22/'AER DRAFT inputs¦other'!L$13 -> 0.05934226584 | Y22: =L22/'AER DRAFT inputs¦other'!M$13 -> 0.911856697 | AB22: 1.04738759 | AC22: 1.043704446
A23: Stay in business | B23: $m nominal | C23: =SUMIF('AER DRAFT Input¦Historic'!$G$17:$G$98,"SIB",'AER DRAFT Input¦Historic'!B$17:B$98)/1000000 -> 1.845689717 | D23: =SUMIF('AER DRAFT Input¦Historic'!$G$17:$G$98,"SIB",'AER DRAFT Input¦Historic'!C$17:C$98)/1000000 -> 2.18657785 | E23: =SUMIF('AER DRAFT Input¦Historic'!$G$17:$G$98,"SIB",'AER DRAFT Input¦Historic'!D$17:D$98)/1000000 -> 3.204339481 | F23: =SUMIF('AER DRAFT Input¦Historic'!$G$17:$G$98,"SIB",'AER DRAFT Input¦Historic'!E$17:E$98)/1000000 -> 3.68953432 | G23: =SUMIF('AER DRAFT Input¦Forecast'!$J$17:$J$95,$A23,'AER DRAFT Input¦Forecast'!B$17:B$95)/1000*'AER DRAFT inputs¦other'!H$13 -> 2.562480117 | H23: =SUMIF('AER DRAFT Input¦Forecast'!$J$17:$J$95,$A23,'AER DRAFT Input¦Forecast'!C$17:C$95)/1000*'AER DRAFT inputs¦other'!I$13 -> 3.042956445 | I23: =SUMIF('AER DRAFT Input¦Forecast'!$J$17:$J$95,$A23,'AER DRAFT Input¦Forecast'!D$17:D$95)/1000*'AER DRAFT inputs¦other'!J$13 -> 1.243564987 | J23: =SUMIF('AER DRAFT Input¦Forecast'!$J$17:$J$95,$A23,'AER DRAFT Input¦Forecast'!E$17:E$95)/1000*'AER DRAFT inputs¦other'!K$13 -> 0.6682695739 | K23: =SUMIF('AER DRAFT Input¦Forecast'!$J$17:$J$95,$A23,'AER DRAFT Input¦Forecast'!F$17:F$95)/1000*'AER DRAFT inputs¦other'!L$13 -> 0.661699118 | L23: =SUMIF('AER DRAFT Input¦Forecast'!$J$17:$J$95,$A23,'AER DRAFT Input¦Forecast'!G$17:G$95)/1000*'AER DRAFT inputs¦other'!M$13 -> 0.3293726781 | N23: Stay in business | O23: $m real 2016/17 | P23: =C23/'AER DRAFT inputs¦other'!D$13 -> 1.999009641 | Q23: =D23/'AER DRAFT inputs¦other'!E$13 -> 2.310453728 | R23: =E23/'AER DRAFT inputs¦other'!F$13 -> 3.289492335 | S23: =F23/'AER DRAFT inputs¦other'!G$13 -> 3.73786722 | T23: =G23/'AER DRAFT inputs¦other'!H$13 -> 2.562480117 | U23: =H23/'AER DRAFT inputs¦other'!I$13 -> 2.983290632 | V23: =I23/'AER DRAFT inputs¦other'!J$13 -> 1.195275843 | W23: =J23/'AER DRAFT inputs¦other'!K$13 -> 0.629725345 | X23: =K23/'AER DRAFT inputs¦other'!L$13 -> 0.6113077036 | Y23: =L23/'AER DRAFT inputs¦other'!M$13 -> 0.2983229825 | AB23: 13.89930304 | AC23: 5.717922506
A24: ='inputs¦other'!A49 -> Urban Risk Reduction | B24: $m nominal | C24: =SUMIF('AER DRAFT Input¦Historic'!$G$17:$G$98,$A24,'AER DRAFT Input¦Historic'!B$17:B$98)/1000000 -> 0 | D24: =SUMIF('AER DRAFT Input¦Historic'!$G$17:$G$98,$A24,'AER DRAFT Input¦Historic'!C$17:C$98)/1000000 -> 0 | E24: =SUMIF('AER DRAFT Input¦Historic'!$G$17:$G$98,$A24,'AER DRAFT Input¦Historic'!D$17:D$98)/1000000 -> 0 | F24: =SUMIF('AER DRAFT Input¦Historic'!$G$17:$G$98,$A24,'AER DRAFT Input¦Historic'!E$17:E$98)/1000000 -> 0 | G24: =SUMIF('AER DRAFT Input¦Forecast'!$J$17:$J$95,$A24,'AER DRAFT Input¦Forecast'!B$17:B$95)/1000*'AER DRAFT inputs¦other'!H$13 -> 8.184 | H24: =SUMIF('AER DRAFT Input¦Forecast'!$J$17:$J$95,$A24,'AER DRAFT Input¦Forecast'!C$17:C$95)/1000*'AER DRAFT inputs¦other'!I$13 -> 1.721709 | I24: =SUMIF('AER DRAFT Input¦Forecast'!$J$17:$J$95,$A24,'AER DRAFT Input¦Forecast'!D$17:D$95)/1000*'AER DRAFT inputs¦other'!J$13 -> 0.31929876 | J24: =SUMIF('AER DRAFT Input¦Forecast'!$J$17:$J$95,$A24,'AER DRAFT Input¦Forecast'!E$17:E$95)/1000*'AER DRAFT inputs¦other'!K$13 -> 0.3256847352 | K24: =SUMIF('AER DRAFT Input¦Forecast'!$J$17:$J$95,$A24,'AER DRAFT Input¦Forecast'!F$17:F$95)/1000*'AER DRAFT inputs¦other'!L$13 -> 0.3321984299 | L24: =SUMIF('AER DRAFT Input¦Forecast'!$J$17:$J$95,$A24,'AER DRAFT Input¦Forecast'!G$17:G$95)/1000*'AER DRAFT inputs¦other'!M$13 -> 0.3388423985 | N24: Urban Risk Reduction | O24: $m real 2016/17 | P24: =C24/'AER DRAFT inputs¦other'!D$13 -> 0 | Q24: =D24/'AER DRAFT inputs¦other'!E$13 -> 0 | R24: =E24/'AER DRAFT inputs¦other'!F$13 -> 0 | S24: =F24/'AER DRAFT inputs¦other'!G$13 -> 0 | T24: =G24/'AER DRAFT inputs¦other'!H$13 -> 8.184 | U24: =H24/'AER DRAFT inputs¦other'!I$13 -> 1.68795 | V24: =I24/'AER DRAFT inputs¦other'!J$13 -> 0.3069 | W24: =J24/'AER DRAFT inputs¦other'!K$13 -> 0.3069 | X24: =K24/'AER DRAFT inputs¦other'!L$13 -> 0.3069 | Y24: =L24/'AER DRAFT inputs¦other'!M$13 -> 0.3069 | AB24: 8.184 | AC24: 2.91555
A25: ='inputs¦other'!A50 -> Pipeline Integrity Management | B25: $m nominal | C25: =SUMIF('AER DRAFT Input¦Historic'!$G$17:$G$98,$A25,'AER DRAFT Input¦Historic'!B$17:B$98)/1000000 -> 0.65395347 | D25: =SUMIF('AER DRAFT Input¦Historic'!$G$17:$G$98,$A25,'AER DRAFT Input¦Historic'!C$17:C$98)/1000000 -> 2.2802438 | E25: =SUMIF('AER DRAFT Input¦Historic'!$G$17:$G$98,$A25,'AER DRAFT Input¦Historic'!D$17:D$98)/1000000 -> 3.50841376 | F25: =SUMIF('AER DRAFT Input¦Historic'!$G$17:$G$98,$A25,'AER DRAFT Input¦Historic'!E$17:E$98)/1000000 -> 5.40870331 | G25: =SUMIF('AER DRAFT Input¦Forecast'!$J$17:$J$95,$A25,'AER DRAFT Input¦Forecast'!B$17:B$95)/1000*'AER DRAFT inputs¦other'!H$13 -> 6.254622 | H25: =SUMIF('AER DRAFT Input¦Forecast'!$J$17:$J$95,$A25,'AER DRAFT Input¦Forecast'!C$17:C$95)/1000*'AER DRAFT inputs¦other'!I$13 -> 6.441631944 | I25: =SUMIF('AER DRAFT Input¦Forecast'!$J$17:$J$95,$A25,'AER DRAFT Input¦Forecast'!D$17:D$95)/1000*'AER DRAFT inputs¦other'!J$13 -> 8.529463958 | J25: =SUMIF('AER DRAFT Input¦Forecast'!$J$17:$J$95,$A25,'AER DRAFT Input¦Forecast'!E$17:E$95)/1000*'AER DRAFT inputs¦other'!K$13 -> 5.402510361 | K25: =SUMIF('AER DRAFT Input¦Forecast'!$J$17:$J$95,$A25,'AER DRAFT Input¦Forecast'!F$17:F$95)/1000*'AER DRAFT inputs¦other'!L$13 -> 6.815046191 | L25: =SUMIF('AER DRAFT Input¦Forecast'!$J$17:$J$95,$A25,'AER DRAFT Input¦Forecast'!G$17:G$95)/1000*'AER DRAFT inputs¦other'!M$13 -> 6.391220613 | N25: Pipeline Integrity Management | O25: $m real 2016/17 | P25: =C25/'AER DRAFT inputs¦other'!D$13 -> 0.7082768461 | Q25: =D25/'AER DRAFT inputs¦other'!E$13 -> 2.409426121 | R25: =E25/'AER DRAFT inputs¦other'!F$13 -> 3.601647154 | S25: =F25/'AER DRAFT inputs¦other'!G$13 -> 5.479557323 | T25: =G25/'AER DRAFT inputs¦other'!H$13 -> 6.254622 | U25: =H25/'AER DRAFT inputs¦other'!I$13 -> 6.315325435 | V25: =I25/'AER DRAFT inputs¦other'!J$13 -> 8.198254478 | W25: =J25/'AER DRAFT inputs¦other'!K$13 -> 5.090906176 | X25: =K25/'AER DRAFT inputs¦other'!L$13 -> 6.296049251 | Y25: =L25/'AER DRAFT inputs¦other'!M$13 -> 5.788725421 | AB25: 18.45352944 | AC25: =SUM(U25:Y25) -> 31.68926076
A26: ='inputs¦other'!A51 -> Toowoomba Crossing | B26: $m nominal | C26: =SUMIF('AER DRAFT Input¦Historic'!$G$17:$G$98,$A26,'AER DRAFT Input¦Historic'!B$17:B$98)/1000000 -> 0 | D26: =SUMIF('AER DRAFT Input¦Historic'!$G$17:$G$98,$A26,'AER DRAFT Input¦Historic'!C$17:C$98)/1000000 -> 0 | E26: =SUMIF('AER DRAFT Input¦Historic'!$G$17:$G$98,$A26,'AER DRAFT Input¦Historic'!D$17:D$98)/1000000 -> 0 | F26: =SUMIF('AER DRAFT Input¦Historic'!$G$17:$G$98,$A26,'AER DRAFT Input¦Historic'!E$17:E$98)/1000000 -> 0 | G26: =SUMIF('AER DRAFT Input¦Forecast'!$J$17:$J$95,$A26,'AER DRAFT Input¦Forecast'!B$17:B$95)/1000*'AER DRAFT inputs¦other'!H$13 -> 0.3069 | H26: =SUMIF('AER DRAFT Input¦Forecast'!$J$17:$J$95,$A26,'AER DRAFT Input¦Forecast'!C$17:C$95)/1000*'AER DRAFT inputs¦other'!I$13 -> 12.156309 | I26: =SUMIF('AER DRAFT Input¦Forecast'!$J$17:$J$95,$A26,'AER DRAFT Input¦Forecast'!D$17:D$95)/1000*'AER DRAFT inputs¦other'!J$13 -> 3.7251522 | J26: =SUMIF('AER DRAFT Input¦Forecast'!$J$17:$J$95,$A26,'AER DRAFT Input¦Forecast'!E$17:E$95)/1000*'AER DRAFT inputs¦other'!K$13 -> 0 | K26: =SUMIF('AER DRAFT Input¦Forecast'!$J$17:$J$95,$A26,'AER DRAFT Input¦Forecast'!F$17:F$95)/1000*'AER DRAFT inputs¦other'!L$13 -> 0 | L26: =SUMIF('AER DRAFT Input¦Forecast'!$J$17:$J$95,$A26,'AER DRAFT Input¦Forecast'!G$17:G$95)/1000*'AER DRAFT inputs¦other'!M$13 -> 0 | N26: Toowoomba Crossing | O26: $m real 2016/17 | P26: =C26/'AER DRAFT inputs¦other'!D$13 -> 0 | Q26: =D26/'AER DRAFT inputs¦other'!E$13 -> 0 | R26: =E26/'AER DRAFT inputs¦other'!F$13 -> 0 | S26: =F26/'AER DRAFT inputs¦other'!G$13 -> 0 | T26: =G26/'AER DRAFT inputs¦other'!H$13 -> 0.3069 | U26: =H26/'AER DRAFT inputs¦other'!I$13 -> 11.91795 | V26: =I26/'AER DRAFT inputs¦other'!J$13 -> 3.5805 | W26: =J26/'AER DRAFT inputs¦other'!K$13 -> 0 | X26: =K26/'AER DRAFT inputs¦other'!L$13 -> 0 | Y26: =L26/'AER DRAFT inputs¦other'!M$13 -> 0 | AB26: 0.3069 | AC26: 15.49845
A27: ='inputs¦other'!A52 -> Dalby Turbine Overhaul | B27: $m nominal | C27: =SUMIF('AER DRAFT Input¦Historic'!$G$17:$G$98,$A27,'AER DRAFT Input¦Historic'!B$17:B$98)/1000000 -> 0 | D27: =SUMIF('AER DRAFT Input¦Historic'!$G$17:$G$98,$A27,'AER DRAFT Input¦Historic'!C$17:C$98)/1000000 -> 0 | E27: =SUMIF('AER DRAFT Input¦Historic'!$G$17:$G$98,$A27,'AER DRAFT Input¦Historic'!D$17:D$98)/1000000 -> 0 | F27: =SUMIF('AER DRAFT Input¦Historic'!$G$17:$G$98,$A27,'AER DRAFT Input¦Historic'!E$17:E$98)/1000000 -> 0 | G27: =SUMIF('AER DRAFT Input¦Forecast'!$J$17:$J$95,$A27,'AER DRAFT Input¦Forecast'!B$17:B$95)/1000*'AER DRAFT inputs¦other'!H$13 -> 0 | H27: =SUMIF('AER DRAFT Input¦Forecast'!$J$17:$J$95,$A27,'AER DRAFT Input¦Forecast'!C$17:C$95)/1000*'AER DRAFT inputs¦other'!I$13 -> 0 | I27: =SUMIF('AER DRAFT Input¦Forecast'!$J$17:$J$95,$A27,'AER DRAFT Input¦Forecast'!D$17:D$95)/1000*'AER DRAFT inputs¦other'!J$13 -> 0 | J27: =SUMIF('AER DRAFT Input¦Forecast'!$J$17:$J$95,$A27,'AER DRAFT Input¦Forecast'!E$17:E$95)/1000*'AER DRAFT inputs¦other'!K$13 -> 0 | K27: =SUMIF('AER DRAFT Input¦Forecast'!$J$17:$J$95,$A27,'AER DRAFT Input¦Forecast'!F$17:F$95)/1000*'AER DRAFT inputs¦other'!L$13 -> 0 | L27: =SUMIF('AER DRAFT Input¦Forecast'!$J$17:$J$95,$A27,'AER DRAFT Input¦Forecast'!G$17:G$95)/1000*'AER DRAFT inputs¦other'!M$13 -> 0 | N27: Dalby Turbine Overhaul | O27: $m real 2016/17 | P27: =C27/'AER DRAFT inputs¦other'!D$13 -> 0 | Q27: =D27/'AER DRAFT inputs¦other'!E$13 -> 0 | R27: =E27/'AER DRAFT inputs¦other'!F$13 -> 0 | S27: =F27/'AER DRAFT inputs¦other'!G$13 -> 0 | T27: =G27/'AER DRAFT inputs¦other'!H$13 -> 0 | U27: =H27/'AER DRAFT inputs¦other'!I$13 -> 0 | V27: =I27/'AER DRAFT inputs¦other'!J$13 -> 0 | W27: =J27/'AER DRAFT inputs¦other'!K$13 -> 0 | X27: =K27/'AER DRAFT inputs¦other'!L$13 -> 0 | Y27: =L27/'AER DRAFT inputs¦other'!M$13 -> 0 | AB27: 0 | AC27: 0
A28: ='inputs¦other'!A53 -> Applications and Renewals | B28: $m nominal | C28: =SUMIF('AER DRAFT Input¦Historic'!$G$17:$G$98,$A28,'AER DRAFT Input¦Historic'!B$17:B$98)/1000000 -> 0 | D28: =SUMIF('AER DRAFT Input¦Historic'!$G$17:$G$98,$A28,'AER DRAFT Input¦Historic'!C$17:C$98)/1000000 -> 0 | E28: =SUMIF('AER DRAFT Input¦Historic'!$G$17:$G$98,$A28,'AER DRAFT Input¦Historic'!D$17:D$98)/1000000 -> 0 | F28: =SUMIF('AER DRAFT Input¦Historic'!$G$17:$G$98,$A28,'AER DRAFT Input¦Historic'!E$17:E$98)/1000000 -> 0 | G28: =SUMIF('AER DRAFT Input¦Forecast'!$J$17:$J$95,$A28,'AER DRAFT Input¦Forecast'!B$17:B$95)/1000*'AER DRAFT inputs¦other'!H$13 -> 0 | H28: =SUMIF('AER DRAFT Input¦Forecast'!$J$17:$J$95,$A28,'AER DRAFT Input¦Forecast'!C$17:C$95)/1000*'AER DRAFT inputs¦other'!I$13 -> 0.4342434138 | I28: =SUMIF('AER DRAFT Input¦Forecast'!$J$17:$J$95,$A28,'AER DRAFT Input¦Forecast'!D$17:D$95)/1000*'AER DRAFT inputs¦other'!J$13 -> 0.55333939 | J28: =SUMIF('AER DRAFT Input¦Forecast'!$J$17:$J$95,$A28,'AER DRAFT Input¦Forecast'!E$17:E$95)/1000*'AER DRAFT inputs¦other'!K$13 -> 0.4517868477 | K28: =SUMIF('AER DRAFT Input¦Forecast'!$J$17:$J$95,$A28,'AER DRAFT Input¦Forecast'!F$17:F$95)/1000*'AER DRAFT inputs¦other'!L$13 -> 0.5756943014 | L28: =SUMIF('AER DRAFT Input¦Forecast'!$J$17:$J$95,$A28,'AER DRAFT Input¦Forecast'!G$17:G$95)/1000*'AER DRAFT inputs¦other'!M$13 -> 0.4700390363 | N28: Applications and Renewals | O28: $m real 2016/17 | P28: =C28/'AER DRAFT inputs¦other'!D$13 -> 0 | Q28: =D28/'AER DRAFT inputs¦other'!E$13 -> 0 | R28: =E28/'AER DRAFT inputs¦other'!F$13 -> 0 | S28: =F28/'AER DRAFT inputs¦other'!G$13 -> 0 | T28: =G28/'AER DRAFT inputs¦other'!H$13 -> 0 | U28: =H28/'AER DRAFT inputs¦other'!I$13 -> 0.425728837 | V28: =I28/'AER DRAFT inputs¦other'!J$13 -> 0.5318525471 | W28: =J28/'AER DRAFT inputs¦other'!K$13 -> 0.425728837 | X28: =K28/'AER DRAFT inputs¦other'!L$13 -> 0.5318525471 | Y28: =L28/'AER DRAFT inputs¦other'!M$13 -> 0.425728837 | AB28: 0 | AC28: 2.340891605
A29: ='inputs¦other'!A54 -> Infrastructure Renewals | B29: $m nominal | C29: =SUMIF('AER DRAFT Input¦Historic'!$G$17:$G$98,$A29,'AER DRAFT Input¦Historic'!B$17:B$98)/1000000 -> 0 | D29: =SUMIF('AER DRAFT Input¦Historic'!$G$17:$G$98,$A29,'AER DRAFT Input¦Historic'!C$17:C$98)/1000000 -> 0 | E29: =SUMIF('AER DRAFT Input¦Historic'!$G$17:$G$98,$A29,'AER DRAFT Input¦Historic'!D$17:D$98)/1000000 -> 0 | F29: =SUMIF('AER DRAFT Input¦Historic'!$G$17:$G$98,$A29,'AER DRAFT Input¦Historic'!E$17:E$98)/1000000 -> 0 | G29: =SUMIF('AER DRAFT Input¦Forecast'!$J$17:$J$95,$A29,'AER DRAFT Input¦Forecast'!B$17:B$95)/1000*'AER DRAFT inputs¦other'!H$13 -> 0 | H29: =SUMIF('AER DRAFT Input¦Forecast'!$J$17:$J$95,$A29,'AER DRAFT Input¦Forecast'!C$17:C$95)/1000*'AER DRAFT inputs¦other'!I$13 -> 0.1416011132 | I29: =SUMIF('AER DRAFT Input¦Forecast'!$J$17:$J$95,$A29,'AER DRAFT Input¦Forecast'!D$17:D$95)/1000*'AER DRAFT inputs¦other'!J$13 -> 0.04814437848 | J29: =SUMIF('AER DRAFT Input¦Forecast'!$J$17:$J$95,$A29,'AER DRAFT Input¦Forecast'!E$17:E$95)/1000*'AER DRAFT inputs¦other'!K$13 -> 0.04910726605 | K29: =SUMIF('AER DRAFT Input¦Forecast'!$J$17:$J$95,$A29,'AER DRAFT Input¦Forecast'!F$17:F$95)/1000*'AER DRAFT inputs¦other'!L$13 -> 0.05008941137 | L29: =SUMIF('AER DRAFT Input¦Forecast'!$J$17:$J$95,$A29,'AER DRAFT Input¦Forecast'!G$17:G$95)/1000*'AER DRAFT inputs¦other'!M$13 -> 0 | N29: Infrastructure Renewals | O29: $m real 2016/17 | P29: =C29/'AER DRAFT inputs¦other'!D$13 -> 0 | Q29: =D29/'AER DRAFT inputs¦other'!E$13 -> 0 | R29: =E29/'AER DRAFT inputs¦other'!F$13 -> 0 | S29: =F29/'AER DRAFT inputs¦other'!G$13 -> 0 | T29: =G29/'AER DRAFT inputs¦other'!H$13 -> 0 | U29: =H29/'AER DRAFT inputs¦other'!I$13 -> 0.1388246208 | V29: =I29/'AER DRAFT inputs¦other'!J$13 -> 0.04627487359 | W29: =J29/'AER DRAFT inputs¦other'!K$13 -> 0.04627487359 | X29: =K29/'AER DRAFT inputs¦other'!L$13 -> 0.04627487359 | Y29: =L29/'AER DRAFT inputs¦other'!M$13 -> 0 | AB29: 0 | AC29: 0.2776492415
A30: Total | B30: $m nominal | C30: =SUM(C15:C29) -> 5.780058227 | D30: 8.72641247 | E30: 17.30788488 | F30: 9.87243158 | G30: =SUM(G15:G29) -> 18.21985881 | H30: =SUM(H15:H29) -> 24.01240651 | I30: 14.41896367 | J30: 6.897358784 | K30: 8.498961428 | L30: 8.5362382 | N30: Total | P30: =SUM(P15:P29) -> 6.260202902 | Q30: 9.22078865 | R30: 17.76782859 | S30: 10.00176043 | T30: 18.21985881 | U30: 23.54157501 | V30: 13.85905774 | W30: =SUM(W15:W29) -> 6.499535232 | X30: 7.851726642 | Y30: 7.731533938 | AB30: =SUM(AB15:AB29) -> 61.47043939 | AC30: =SUM(AC15:AC29) -> 59.48342856
A32: Total Inputs | C32: ='AER DRAFT Input¦Historic'!B101/1000000 -> 5.780058227 | D32: ='AER DRAFT Input¦Historic'!C101/1000000 -> 8.72641247 | E32: ='AER DRAFT Input¦Historic'!D101/1000000 -> 17.30788488 | F32: ='AER DRAFT Input¦Historic'!E101/1000000 -> 9.87243158 | G32: ='AER DRAFT Input¦Forecast'!B99/1000*'AER DRAFT inputs¦other'!H$13 -> 18.21985881 | H32: ='AER DRAFT Input¦Forecast'!C99/1000*'AER DRAFT inputs¦other'!I$13 -> 24.01240651 | I32: ='AER DRAFT Input¦Forecast'!D99/1000*'AER DRAFT inputs¦other'!J$13 -> 14.41896367 | J32: ='AER DRAFT Input¦Forecast'!E99/1000*'AER DRAFT inputs¦other'!K$13 -> 6.897358784 | K32: ='AER DRAFT Input¦Forecast'!F99/1000*'AER DRAFT inputs¦other'!L$13 -> 8.498961428 | L32: ='AER DRAFT Input¦Forecast'!G99/1000*'AER DRAFT inputs¦other'!M$13 -> 8.5362382 | N32: Total Inputs | P32: ='AER DRAFT Input¦Historic'!B101/'AER DRAFT inputs¦other'!D13/1000000 -> 6.260202902 | Q32: ='AER DRAFT Input¦Historic'!C101/'AER DRAFT inputs¦other'!E13/1000000 -> 9.22078865 | R32: ='AER DRAFT Input¦Historic'!D101/'AER DRAFT inputs¦other'!F13/1000000 -> 17.76782859 | S32: ='AER DRAFT Input¦Historic'!E101/'AER DRAFT inputs¦other'!G13/1000000 -> 10.00176043 | T32: ='AER DRAFT Input¦Forecast'!B99/1000 -> 18.21985881 | U32: ='AER DRAFT Input¦Forecast'!C99/1000 -> 23.54157501 | V32: ='AER DRAFT Input¦Forecast'!D99/1000 -> 13.85905774 | W32: ='AER DRAFT Input¦Forecast'!E99/1000 -> 6.499535232 | X32: ='AER DRAFT Input¦Forecast'!F99/1000 -> 7.851726642 | Y32: ='AER DRAFT Input¦Forecast'!G99/1000 -> 7.731533938
A33: Difference | C33: =C30-C32 -> 0 | D33: =D30-D32 -> 0 | E33: 0 | F33: 0 | G33: 0 | H33: 0 | I33: 0 | J33: 0 | K33: 0 | L33: 0 | N33: Difference | P33: =P30-P32 -> 0 | Q33: =Q30-Q32 -> 0 | R33: 0 | S33: 0 | T33: 0 | U33: 0 | V33: 0 | W33: 0 | X33: 0 | Y33: 0 | AB33: Gross Capex
AB34: Draft Decision ($2016/17)
A35: Asset Class | C35: =C14 -> 2013 | D35: 2014 | E35: 2015 | F35: 2016 | G35: 2017 | H35: 2018 | I35: 2019 | J35: 2020 | K35: 2021 | L35: 2022 | N35: Asset Class | P35: =P14 -> 2013 | Q35: 2014 | R35: 2015 | S35: 2016 | T35: 2017 | U35: 2018 | V35: 2019 | W35: 2020 | X35: 2021 | Y35: 2022 | AB35: Current | AC35: Forecast
A36: Original Pipeline | B36: =B30 -> $m nominal | C36: =SUMPRODUCT('AER DRAFT Input¦Historic'!$I$17:$I$98,'AER DRAFT Input¦Historic'!B$17:B$98)/1000000 -> 0.48264718 | D36: =SUMPRODUCT('AER DRAFT Input¦Historic'!$I$17:$I$98,'AER DRAFT Input¦Historic'!C$17:C$98)/1000000 -> 2.55322732 | E36: =SUMPRODUCT('AER DRAFT Input¦Historic'!$I$17:$I$98,'AER DRAFT Input¦Historic'!D$17:D$98)/1000000 -> 3.69421581 | F36: =SUMPRODUCT('AER DRAFT Input¦Historic'!$I$17:$I$98,'AER DRAFT Input¦Historic'!E$17:E$98)/1000000 -> 5.66083698 | G36: =SUMPRODUCT('AER DRAFT Input¦Forecast'!B$17:B$95,'AER DRAFT Input¦Forecast'!$K$17:$K$95)/1000*'AER DRAFT inputs¦other'!H13 -> 14.0810835 | H36: =SUMPRODUCT('AER DRAFT Input¦Forecast'!C$17:C$95,'AER DRAFT Input¦Forecast'!$K$17:$K$95)/1000*'AER DRAFT inputs¦other'!I13 -> 13.70567873 | I36: =SUMPRODUCT('AER DRAFT Input¦Forecast'!D$17:D$95,'AER DRAFT Input¦Forecast'!$K$17:$K$95)/1000*'AER DRAFT inputs¦other'!J13 -> 9.92479954 | J36: =SUMPRODUCT('AER DRAFT Input¦Forecast'!E$17:E$95,'AER DRAFT Input¦Forecast'!$K$17:$K$95)/1000*'AER DRAFT inputs¦other'!K13 -> 4.814649414 | K36: =SUMPRODUCT('AER DRAFT Input¦Forecast'!F$17:F$95,'AER DRAFT Input¦Forecast'!$K$17:$K$95)/1000*'AER DRAFT inputs¦other'!L13 -> 4.50183779 | L36: =SUMPRODUCT('AER DRAFT Input¦Forecast'!G$17:G$95,'AER DRAFT Input¦Forecast'!$K$17:$K$95)/1000*'AER DRAFT inputs¦other'!M13 -> 6.231399948 | N36: Original Pipeline | O36: =O29 -> $m real 2016/17 | P36: =C36/'AER DRAFT inputs¦other'!D$13 -> 0.5227402837 | Q36: =D36/'AER DRAFT inputs¦other'!E$13 -> 2.697874937 | R36: =E36/'AER DRAFT inputs¦other'!F$13 -> 3.792386751 | S36: =F36/'AER DRAFT inputs¦other'!G$13 -> 5.734993944 | T36: =G36/'AER DRAFT inputs¦other'!H$13 -> 14.0810835 | U36: =H36/'AER DRAFT inputs¦other'!I$13 -> 13.43693993 | V36: =I36/'AER DRAFT inputs¦other'!J$13 -> 9.539407478 | W36: =J36/'AER DRAFT inputs¦other'!K$13 -> 4.536951676 | X36: =K36/'AER DRAFT inputs¦other'!L$13 -> 4.159002251 | Y36: =L36/'AER DRAFT inputs¦other'!M$13 -> 5.643970921 | AB36: =SUM(P36:T36) -> 26.82907942 | AC36: =SUM(U36:Y36) -> 37.31627226
A37: Pipelines | B37: =B36 -> $m nominal | C37: =SUMPRODUCT('AER DRAFT Input¦Historic'!$J$17:$J$98,'AER DRAFT Input¦Historic'!B$17:B$98)/1000000 -> 2.77994456 | D37: =SUMPRODUCT('AER DRAFT Input¦Historic'!$J$17:$J$98,'AER DRAFT Input¦Historic'!C$17:C$98)/1000000 -> 2.44365754 | E37: =SUMPRODUCT('AER DRAFT Input¦Historic'!$J$17:$J$98,'AER DRAFT Input¦Historic'!D$17:D$98)/1000000 -> 7.56377479 | F37: =SUMPRODUCT('AER DRAFT Input¦Historic'!$J$17:$J$98,'AER DRAFT Input¦Historic'!E$17:E$98)/1000000 -> 0.61401758 | G37: =SUMPRODUCT('AER DRAFT Input¦Forecast'!B$17:B$95,'AER DRAFT Input¦Forecast'!$L$17:$L$95)/1000*'AER DRAFT inputs¦other'!H13 -> 0.892804465 | H37: =SUMPRODUCT('AER DRAFT Input¦Forecast'!C$17:C$95,'AER DRAFT Input¦Forecast'!$L$17:$L$95)/1000*'AER DRAFT inputs¦other'!I13 -> 7.16700501 | I37: =SUMPRODUCT('AER DRAFT Input¦Forecast'!D$17:D$95,'AER DRAFT Input¦Forecast'!$L$17:$L$95)/1000*'AER DRAFT inputs¦other'!J13 -> 2.649115379 | J37: =SUMPRODUCT('AER DRAFT Input¦Forecast'!E$17:E$95,'AER DRAFT Input¦Forecast'!$L$17:$L$95)/1000*'AER DRAFT inputs¦other'!K13 -> 0.9135456822 | K37: =SUMPRODUCT('AER DRAFT Input¦Forecast'!F$17:F$95,'AER DRAFT Input¦Forecast'!$L$17:$L$95)/1000*'AER DRAFT inputs¦other'!L13 -> 2.64540683 | L37: =SUMPRODUCT('AER DRAFT Input¦Forecast'!G$17:G$95,'AER DRAFT Input¦Forecast'!$L$17:$L$95)/1000*'AER DRAFT inputs¦other'!M13 -> 0.4986630631 | N37: Pipelines | O37: =O36 -> $m real 2016/17 | P37: =C37/'AER DRAFT inputs¦other'!D$13 -> 3.010872265 | Q37: =D37/'AER DRAFT inputs¦other'!E$13 -> 2.582097716 | R37: =E37/'AER DRAFT inputs¦other'!F$13 -> 7.764776281 | S37: =F37/'AER DRAFT inputs¦other'!G$13 -> 0.6220612103 | T37: =G37/'AER DRAFT inputs¦other'!H$13 -> 0.892804465 | U37: =H37/'AER DRAFT inputs¦other'!I$13 -> 7.0264755 | V37: =I37/'AER DRAFT inputs¦other'!J$13 -> 2.546247 | W37: =J37/'AER DRAFT inputs¦other'!K$13 -> 0.8608545 | X37: =K37/'AER DRAFT inputs¦other'!L$13 -> 2.443947 | Y37: =L37/'AER DRAFT inputs¦other'!M$13 -> 0.4516545 | AB37: =SUM(P37:T37) -> 14.87261194 | AC37: =SUM(U37:Y37) -> 13.3291785
A38: Compressors | B38: =B37 -> $m nominal | C38: =SUMPRODUCT('AER DRAFT Input¦Historic'!$K$17:$K$98,'AER DRAFT Input¦Historic'!B$17:B$98)/1000000 -> 0.1432417 | D38: =SUMPRODUCT('AER DRAFT Input¦Historic'!$K$17:$K$98,'AER DRAFT Input¦Historic'!C$17:C$98)/1000000 -> 0.02352989 | E38: =SUMPRODUCT('AER DRAFT Input¦Historic'!$K$17:$K$98,'AER DRAFT Input¦Historic'!D$17:D$98)/1000000 -> 1e-08 | F38: =SUMPRODUCT('AER DRAFT Input¦Historic'!$K$17:$K$98,'AER DRAFT Input¦Historic'!E$17:E$98)/1000000 -> 0 | G38: =SUMPRODUCT('AER DRAFT Input¦Forecast'!B$17:B$95,'AER DRAFT Input¦Forecast'!$M$17:$M$95)/1000*'AER DRAFT inputs¦other'!H13 -> 0 | H38: =SUMPRODUCT('AER DRAFT Input¦Forecast'!C$17:C$95,'AER DRAFT Input¦Forecast'!$M$17:$M$95)/1000*'AER DRAFT inputs¦other'!I13 -> 0.104346 | I38: =SUMPRODUCT('AER DRAFT Input¦Forecast'!D$17:D$95,'AER DRAFT Input¦Forecast'!$M$17:$M$95)/1000*'AER DRAFT inputs¦other'!J13 -> 0.10643292 | J38: =SUMPRODUCT('AER DRAFT Input¦Forecast'!E$17:E$95,'AER DRAFT Input¦Forecast'!$M$17:$M$95)/1000*'AER DRAFT inputs¦other'!K13 -> 0 | K38: =SUMPRODUCT('AER DRAFT Input¦Forecast'!F$17:F$95,'AER DRAFT Input¦Forecast'!$M$17:$M$95)/1000*'AER DRAFT inputs¦other'!L13 -> 0 | L38: =SUMPRODUCT('AER DRAFT Input¦Forecast'!G$17:G$95,'AER DRAFT Input¦Forecast'!$M$17:$M$95)/1000*'AER DRAFT inputs¦other'!M13 -> 0 | N38: Compressors | O38: =O37 -> $m real 2016/17 | P38: =C38/'AER DRAFT inputs¦other'!D$13 -> 0.15514067 | Q38: =D38/'AER DRAFT inputs¦other'!E$13 -> 0.02486292544 | R38: =E38/'AER DRAFT inputs¦other'!F$13 -> 1.02657423e-08 | S38: =F38/'AER DRAFT inputs¦other'!G$13 -> 0 | T38: =G38/'AER DRAFT inputs¦other'!H$13 -> 0 | U38: =H38/'AER DRAFT inputs¦other'!I$13 -> 0.1023 | V38: =I38/'AER DRAFT inputs¦other'!J$13 -> 0.1023 | W38: =J38/'AER DRAFT inputs¦other'!K$13 -> 0 | X38: =K38/'AER DRAFT inputs¦other'!L$13 -> 0 | Y38: =L38/'AER DRAFT inputs¦other'!M$13 -> 0 | AB38: 0.1800036057 | AC38: 0.2046
A39: Regulators and meters | B39: $m nominal | C39: =SUMPRODUCT('AER DRAFT Input¦Historic'!$L$17:$L$98,'AER DRAFT Input¦Historic'!B$17:B$98)/1000000 -> 0 | D39: =SUMPRODUCT('AER DRAFT Input¦Historic'!$L$17:$L$98,'AER DRAFT Input¦Historic'!C$17:C$98)/1000000 -> 0 | E39: =SUMPRODUCT('AER DRAFT Input¦Historic'!$L$17:$L$98,'AER DRAFT Input¦Historic'!D$17:D$98)/1000000 -> 0 | F39: =SUMPRODUCT('AER DRAFT Input¦Historic'!$L$17:$L$98,'AER DRAFT Input¦Historic'!E$17:E$98)/1000000 -> 0 | G39: =SUMPRODUCT('AER DRAFT Input¦Forecast'!B$17:B$95,'AER DRAFT Input¦Forecast'!$N$17:$N$95)/1000*'AER DRAFT inputs¦other'!H13 -> 0 | H39: =SUMPRODUCT('AER DRAFT Input¦Forecast'!C$17:C$95,'AER DRAFT Input¦Forecast'!$N$17:$N$95)/1000*'AER DRAFT inputs¦other'!I13 -> 0.2666883321 | I39: =SUMPRODUCT('AER DRAFT Input¦Forecast'!D$17:D$95,'AER DRAFT Input¦Forecast'!$N$17:$N$95)/1000*'AER DRAFT inputs¦other'!J13 -> 0 | J39: =SUMPRODUCT('AER DRAFT Input¦Forecast'!E$17:E$95,'AER DRAFT Input¦Forecast'!$N$17:$N$95)/1000*'AER DRAFT inputs¦other'!K13 -> 0.08684926272 | K39: =SUMPRODUCT('AER DRAFT Input¦Forecast'!F$17:F$95,'AER DRAFT Input¦Forecast'!$N$17:$N$95)/1000*'AER DRAFT inputs¦other'!L13 -> 0 | L39: =SUMPRODUCT('AER DRAFT Input¦Forecast'!G$17:G$95,'AER DRAFT Input¦Forecast'!$N$17:$N$95)/1000*'AER DRAFT inputs¦other'!M13 -> 0 | N39: Regulators and meters | O39: $m real 2016/17 | P39: =C39/'AER DRAFT inputs¦other'!D$13 -> 0 | Q39: =D39/'AER DRAFT inputs¦other'!E$13 -> 0 | R39: =E39/'AER DRAFT inputs¦other'!F$13 -> 0 | S39: =F39/'AER DRAFT inputs¦other'!G$13 -> 0 | T39: =G39/'AER DRAFT inputs¦other'!H$13 -> 0 | U39: =H39/'AER DRAFT inputs¦other'!I$13 -> 0.2614591491 | V39: =I39/'AER DRAFT inputs¦other'!J$13 -> 0 | W39: =J39/'AER DRAFT inputs¦other'!K$13 -> 0.08184 | X39: =K39/'AER DRAFT inputs¦other'!L$13 -> 0 | Y39: =L39/'AER DRAFT inputs¦other'!M$13 -> 0 | AB39: 0 | AC39: 0.3432991491
A40: Easements | B40: $m nominal | C40: =SUMPRODUCT('AER DRAFT Input¦Historic'!$M$17:$M$98,'AER DRAFT Input¦Historic'!B$17:B$98)/1000000 -> 0.03221123 | D40: =SUMPRODUCT('AER DRAFT Input¦Historic'!$M$17:$M$98,'AER DRAFT Input¦Historic'!C$17:C$98)/1000000 -> 0.00974572 | E40: =SUMPRODUCT('AER DRAFT Input¦Historic'!$M$17:$M$98,'AER DRAFT Input¦Historic'!D$17:D$98)/1000000 -> 0.000612 | F40: =SUMPRODUCT('AER DRAFT Input¦Historic'!$M$17:$M$98,'AER DRAFT Input¦Historic'!E$17:E$98)/1000000 -> 0.07492814 | G40: =SUMPRODUCT('AER DRAFT Input¦Forecast'!B$17:B$95,'AER DRAFT Input¦Forecast'!$O$17:$O$95)/1000*'AER DRAFT inputs¦other'!H13 -> 0 | H40: =SUMPRODUCT('AER DRAFT Input¦Forecast'!C$17:C$95,'AER DRAFT Input¦Forecast'!$O$17:$O$95)/1000*'AER DRAFT inputs¦other'!I13 -> 0 | I40: =SUMPRODUCT('AER DRAFT Input¦Forecast'!D$17:D$95,'AER DRAFT Input¦Forecast'!$O$17:$O$95)/1000*'AER DRAFT inputs¦other'!J13 -> 0 | J40: =SUMPRODUCT('AER DRAFT Input¦Forecast'!E$17:E$95,'AER DRAFT Input¦Forecast'!$O$17:$O$95)/1000*'AER DRAFT inputs¦other'!K13 -> 0 | K40: =SUMPRODUCT('AER DRAFT Input¦Forecast'!F$17:F$95,'AER DRAFT Input¦Forecast'!$O$17:$O$95)/1000*'AER DRAFT inputs¦other'!L13 -> 0 | L40: =SUMPRODUCT('AER DRAFT Input¦Forecast'!G$17:G$95,'AER DRAFT Input¦Forecast'!$O$17:$O$95)/1000*'AER DRAFT inputs¦other'!M13 -> 0 | N40: Easements | O40: $m real 2016/17 | P40: =C40/'AER DRAFT inputs¦other'!D$13 -> 0.03488699034 | Q40: =D40/'AER DRAFT inputs¦other'!E$13 -> 0.01029784286 | R40: =E40/'AER DRAFT inputs¦other'!F$13 -> 0.0006282634288 | S40: =F40/'AER DRAFT inputs¦other'!G$13 -> 0.07590969863 | T40: =G40/'AER DRAFT inputs¦other'!H$13 -> 0 | U40: =H40/'AER DRAFT inputs¦other'!I$13 -> 0 | V40: =I40/'AER DRAFT inputs¦other'!J$13 -> 0 | W40: =J40/'AER DRAFT inputs¦other'!K$13 -> 0 | X40: =K40/'AER DRAFT inputs¦other'!L$13 -> 0 | Y40: =L40/'AER DRAFT inputs¦other'!M$13 -> 0 | AB40: 0.1217227953 | AC40: 0
A41: Communications | B41: $m nominal | C41: =SUMPRODUCT('AER DRAFT Input¦Historic'!$N$17:$N$98,'AER DRAFT Input¦Historic'!B$17:B$98)/1000000 -> 0 | D41: =SUMPRODUCT('AER DRAFT Input¦Historic'!$N$17:$N$98,'AER DRAFT Input¦Historic'!C$17:C$98)/1000000 -> 0 | E41: =SUMPRODUCT('AER DRAFT Input¦Historic'!$N$17:$N$98,'AER DRAFT Input¦Historic'!D$17:D$98)/1000000 -> 0 | F41: =SUMPRODUCT('AER DRAFT Input¦Historic'!$N$17:$N$98,'AER DRAFT Input¦Historic'!E$17:E$98)/1000000 -> 0 | G41: =SUMPRODUCT('AER DRAFT Input¦Forecast'!B$17:B$95,'AER DRAFT Input¦Forecast'!$P$17:$P$95)/1000*'AER DRAFT inputs¦other'!H13 -> 0 | H41: =SUMPRODUCT('AER DRAFT Input¦Forecast'!C$17:C$95,'AER DRAFT Input¦Forecast'!$P$17:$P$95)/1000*'AER DRAFT inputs¦other'!I13 -> 0 | I41: =SUMPRODUCT('AER DRAFT Input¦Forecast'!D$17:D$95,'AER DRAFT Input¦Forecast'!$P$17:$P$95)/1000*'AER DRAFT inputs¦other'!J13 -> 0 | J41: =SUMPRODUCT('AER DRAFT Input¦Forecast'!E$17:E$95,'AER DRAFT Input¦Forecast'!$P$17:$P$95)/1000*'AER DRAFT inputs¦other'!K13 -> 0 | K41: =SUMPRODUCT('AER DRAFT Input¦Forecast'!F$17:F$95,'AER DRAFT Input¦Forecast'!$P$17:$P$95)/1000*'AER DRAFT inputs¦other'!L13 -> 0 | L41: =SUMPRODUCT('AER DRAFT Input¦Forecast'!G$17:G$95,'AER DRAFT Input¦Forecast'!$P$17:$P$95)/1000*'AER DRAFT inputs¦other'!M13 -> 0 | N41: Communications | O41: $m real 2016/17 | P41: =C41/'AER DRAFT inputs¦other'!D$13 -> 0 | Q41: =D41/'AER DRAFT inputs¦other'!E$13 -> 0 | R41: =E41/'AER DRAFT inputs¦other'!F$13 -> 0 | S41: =F41/'AER DRAFT inputs¦other'!G$13 -> 0 | T41: =G41/'AER DRAFT inputs¦other'!H$13 -> 0 | U41: =H41/'AER DRAFT inputs¦other'!I$13 -> 0 | V41: =I41/'AER DRAFT inputs¦other'!J$13 -> 0 | W41: =J41/'AER DRAFT inputs¦other'!K$13 -> 0 | X41: =K41/'AER DRAFT inputs¦other'!L$13 -> 0 | Y41: =L41/'AER DRAFT inputs¦other'!M$13 -> 0 | AB41: 0 | AC41: 0
A42: Other | B42: $m nominal | C42: =SUMPRODUCT('AER DRAFT Input¦Historic'!$O$17:$O$98,'AER DRAFT Input¦Historic'!B$17:B$98)/1000000 -> 0 | D42: =SUMPRODUCT('AER DRAFT Input¦Historic'!$O$17:$O$98,'AER DRAFT Input¦Historic'!C$17:C$98)/1000000 -> 0 | E42: =SUMPRODUCT('AER DRAFT Input¦Historic'!$O$17:$O$98,'AER DRAFT Input¦Historic'!D$17:D$98)/1000000 -> 0 | F42: =SUMPRODUCT('AER DRAFT Input¦Historic'!$O$17:$O$98,'AER DRAFT Input¦Historic'!E$17:E$98)/1000000 -> 0 | G42: =SUMPRODUCT('AER DRAFT Input¦Forecast'!B$17:B$95,'AER DRAFT Input¦Forecast'!$Q$17:$Q$95)/1000*'AER DRAFT inputs¦other'!H13 -> 0 | H42: =SUMPRODUCT('AER DRAFT Input¦Forecast'!C$17:C$95,'AER DRAFT Input¦Forecast'!$Q$17:$Q$95)/1000*'AER DRAFT inputs¦other'!I13 -> 0 | I42: =SUMPRODUCT('AER DRAFT Input¦Forecast'!D$17:D$95,'AER DRAFT Input¦Forecast'!$Q$17:$Q$95)/1000*'AER DRAFT inputs¦other'!J13 -> 0 | J42: =SUMPRODUCT('AER DRAFT Input¦Forecast'!E$17:E$95,'AER DRAFT Input¦Forecast'!$Q$17:$Q$95)/1000*'AER DRAFT inputs¦other'!K13 -> 0 | K42: =SUMPRODUCT('AER DRAFT Input¦Forecast'!F$17:F$95,'AER DRAFT Input¦Forecast'!$Q$17:$Q$95)/1000*'AER DRAFT inputs¦other'!L13 -> 0 | L42: =SUMPRODUCT('AER DRAFT Input¦Forecast'!G$17:G$95,'AER DRAFT Input¦Forecast'!$Q$17:$Q$95)/1000*'AER DRAFT inputs¦other'!M13 -> 0 | N42: Other | O42: $m real 2016/17 | P42: =C42/'AER DRAFT inputs¦other'!D$13 -> 0 | Q42: =D42/'AER DRAFT inputs¦other'!E$13 -> 0 | R42: =E42/'AER DRAFT inputs¦other'!F$13 -> 0 | S42: =F42/'AER DRAFT inputs¦other'!G$13 -> 0 | T42: =G42/'AER DRAFT inputs¦other'!H$13 -> 0 | U42: =H42/'AER DRAFT inputs¦other'!I$13 -> 0 | V42: =I42/'AER DRAFT inputs¦other'!J$13 -> 0 | W42: =J42/'AER DRAFT inputs¦other'!K$13 -> 0 | X42: =K42/'AER DRAFT inputs¦other'!L$13 -> 0 | Y42: =L42/'AER DRAFT inputs¦other'!M$13 -> 0 | AB42: 0 | AC42: 0
A43: Capitalised AA costs | B43: $m nominal | C43: =SUMPRODUCT('AER DRAFT Input¦Historic'!$P$17:$P$98,'AER DRAFT Input¦Historic'!B$17:B$98)/1000000 -> 0.07087535 | D43: =SUMPRODUCT('AER DRAFT Input¦Historic'!$P$17:$P$98,'AER DRAFT Input¦Historic'!C$17:C$98)/1000000 -> 0 | E43: =SUMPRODUCT('AER DRAFT Input¦Historic'!$P$17:$P$98,'AER DRAFT Input¦Historic'!D$17:D$98)/1000000 -> 0 | F43: =SUMPRODUCT('AER DRAFT Input¦Historic'!$P$17:$P$98,'AER DRAFT Input¦Historic'!E$17:E$98)/1000000 -> 0.05800808 | G43: =SUMPRODUCT('AER DRAFT Input¦Forecast'!B$17:B$95,'AER DRAFT Input¦Forecast'!$R$17:$R$95)/1000*'AER DRAFT inputs¦other'!H13 -> 0.911856697 | H43: =SUMPRODUCT('AER DRAFT Input¦Forecast'!C$17:C$95,'AER DRAFT Input¦Forecast'!$R$17:$R$95)/1000*'AER DRAFT inputs¦other'!I13 -> 0.07395559271 | I43: =SUMPRODUCT('AER DRAFT Input¦Forecast'!D$17:D$95,'AER DRAFT Input¦Forecast'!$R$17:$R$95)/1000*'AER DRAFT inputs¦other'!J13 -> 0 | J43: =SUMPRODUCT('AER DRAFT Input¦Forecast'!E$17:E$95,'AER DRAFT Input¦Forecast'!$R$17:$R$95)/1000*'AER DRAFT inputs¦other'!K13 -> 0 | K43: =SUMPRODUCT('AER DRAFT Input¦Forecast'!F$17:F$95,'AER DRAFT Input¦Forecast'!$R$17:$R$95)/1000*'AER DRAFT inputs¦other'!L13 -> 0.06423397699 | L43: =SUMPRODUCT('AER DRAFT Input¦Forecast'!G$17:G$95,'AER DRAFT Input¦Forecast'!$R$17:$R$95)/1000*'AER DRAFT inputs¦other'!M13 -> 1.006763474 | N43: Capitalised AA costs | O43: $m real 2016/17 | P43: =C43/'AER DRAFT inputs¦other'!D$13 -> 0.07676290695 | Q43: =D43/'AER DRAFT inputs¦other'!E$13 -> 0 | R43: =E43/'AER DRAFT inputs¦other'!F$13 -> 0 | S43: =F43/'AER DRAFT inputs¦other'!G$13 -> 0.05876798585 | T43: =G43/'AER DRAFT inputs¦other'!H$13 -> 0.911856697 | U43: =H43/'AER DRAFT inputs¦other'!I$13 -> 0.07250548305 | V43: =I43/'AER DRAFT inputs¦other'!J$13 -> 0 | W43: =J43/'AER DRAFT inputs¦other'!K$13 -> 0 | X43: =K43/'AER DRAFT inputs¦other'!L$13 -> 0.05934226584 | Y43: =L43/'AER DRAFT inputs¦other'!M$13 -> 0.911856697 | AB43: 1.04738759 | AC43: 1.043704446
A44: Group IT | B44: $m nominal | C44: =SUMPRODUCT('AER DRAFT Input¦Historic'!$Q$17:$Q$98,'AER DRAFT Input¦Historic'!B$17:B$98)/1000000 -> 1.292236067 | D44: =SUMPRODUCT('AER DRAFT Input¦Historic'!$Q$17:$Q$98,'AER DRAFT Input¦Historic'!C$17:C$98)/1000000 -> 1.14677746 | E44: =SUMPRODUCT('AER DRAFT Input¦Historic'!$Q$17:$Q$98,'AER DRAFT Input¦Historic'!D$17:D$98)/1000000 -> 2.284029771 | F44: =SUMPRODUCT('AER DRAFT Input¦Historic'!$Q$17:$Q$98,'AER DRAFT Input¦Historic'!E$17:E$98)/1000000 -> 1.57191078 | G44: =SUMPRODUCT('AER DRAFT Input¦Forecast'!B$17:B$95,'AER DRAFT Input¦Forecast'!$S$17:$S$95)/1000*'AER DRAFT inputs¦other'!H13 -> 1.410389656 | H44: =SUMPRODUCT('AER DRAFT Input¦Forecast'!C$17:C$95,'AER DRAFT Input¦Forecast'!$S$17:$S$95)/1000*'AER DRAFT inputs¦other'!I13 -> 1.646556637 | I44: =SUMPRODUCT('AER DRAFT Input¦Forecast'!D$17:D$95,'AER DRAFT Input¦Forecast'!$S$17:$S$95)/1000*'AER DRAFT inputs¦other'!J13 -> 0.6140287667 | J44: =SUMPRODUCT('AER DRAFT Input¦Forecast'!E$17:E$95,'AER DRAFT Input¦Forecast'!$S$17:$S$95)/1000*'AER DRAFT inputs¦other'!K13 -> 0.5214681379 | K44: =SUMPRODUCT('AER DRAFT Input¦Forecast'!F$17:F$95,'AER DRAFT Input¦Forecast'!$S$17:$S$95)/1000*'AER DRAFT inputs¦other'!L13 -> 0.6877364155 | L44: =SUMPRODUCT('AER DRAFT Input¦Forecast'!G$17:G$95,'AER DRAFT Input¦Forecast'!$S$17:$S$95)/1000*'AER DRAFT inputs¦other'!M13 -> 0.4700390363 | N44: Group IT | O44: $m real 2016/17 | P44: =C44/'AER DRAFT inputs¦other'!D$13 -> 1.399581052 | Q44: =D44/'AER DRAFT inputs¦other'!E$13 -> 1.211745677 | R44: =E44/'AER DRAFT inputs¦other'!F$13 -> 2.344726103 | S44: =F44/'AER DRAFT inputs¦other'!G$13 -> 1.592502811 | T44: =G44/'AER DRAFT inputs¦other'!H$13 -> 1.410389656 | U44: =H44/'AER DRAFT inputs¦other'!I$13 -> 1.614271213 | V44: =I44/'AER DRAFT inputs¦other'!J$13 -> 0.5901852813 | W44: =J44/'AER DRAFT inputs¦other'!K$13 -> 0.4913910731 | X44: =K44/'AER DRAFT inputs¦other'!L$13 -> 0.6353621418 | Y44: =L44/'AER DRAFT inputs¦other'!M$13 -> 0.425728837 | AB44: 7.9589453 | AC44: 3.756938546
A45: SIB Capex | B45: $m nominal | C45: =SUMPRODUCT('AER DRAFT Input¦Historic'!$R$17:$R$98,'AER DRAFT Input¦Historic'!B$17:B$98)/1000000 -> 0.97890214 | D45: =SUMPRODUCT('AER DRAFT Input¦Historic'!$R$17:$R$98,'AER DRAFT Input¦Historic'!C$17:C$98)/1000000 -> 2.54947454 | E45: =SUMPRODUCT('AER DRAFT Input¦Historic'!$R$17:$R$98,'AER DRAFT Input¦Historic'!D$17:D$98)/1000000 -> 3.7652525 | F45: =SUMPRODUCT('AER DRAFT Input¦Historic'!$R$17:$R$98,'AER DRAFT Input¦Historic'!E$17:E$98)/1000000 -> 1.89273002 | G45: =SUMPRODUCT('AER DRAFT Input¦Forecast'!B$17:B$95,'AER DRAFT Input¦Forecast'!$T$17:$T$95)/1000*'AER DRAFT inputs¦other'!H13 -> 0.9237244957 | H45: =SUMPRODUCT('AER DRAFT Input¦Forecast'!C$17:C$95,'AER DRAFT Input¦Forecast'!$T$17:$T$95)/1000*'AER DRAFT inputs¦other'!I13 -> 1.048176203 | I45: =SUMPRODUCT('AER DRAFT Input¦Forecast'!D$17:D$95,'AER DRAFT Input¦Forecast'!$T$17:$T$95)/1000*'AER DRAFT inputs¦other'!J13 -> 1.124587069 | J45: =SUMPRODUCT('AER DRAFT Input¦Forecast'!E$17:E$95,'AER DRAFT Input¦Forecast'!$T$17:$T$95)/1000*'AER DRAFT inputs¦other'!K13 -> 0.560846287 | K45: =SUMPRODUCT('AER DRAFT Input¦Forecast'!F$17:F$95,'AER DRAFT Input¦Forecast'!$T$17:$T$95)/1000*'AER DRAFT inputs¦other'!L13 -> 0.5997464153 | L45: =SUMPRODUCT('AER DRAFT Input¦Forecast'!G$17:G$95,'AER DRAFT Input¦Forecast'!$T$17:$T$95)/1000*'AER DRAFT inputs¦other'!M13 -> 0.3293726781 | N45: SIB Capex | O45: $m real 2016/17 | P45: =C45/'AER DRAFT inputs¦other'!D$13 -> 1.060218734 | Q45: =D45/'AER DRAFT inputs¦other'!E$13 -> 2.693909551 | R45: =E45/'AER DRAFT inputs¦other'!F$13 -> 3.865311186 | S45: =F45/'AER DRAFT inputs¦other'!G$13 -> 1.917524783 | T45: =G45/'AER DRAFT inputs¦other'!H$13 -> 0.9237244957 | U45: =H45/'AER DRAFT inputs¦other'!I$13 -> 1.027623728 | V45: =I45/'AER DRAFT inputs¦other'!J$13 -> 1.080917983 | W45: =J45/'AER DRAFT inputs¦other'!K$13 -> 0.5284979825 | X45: =K45/'AER DRAFT inputs¦other'!L$13 -> 0.5540729825 | Y45: =L45/'AER DRAFT inputs¦other'!M$13 -> 0.2983229825 | AB45: 10.46068875 | AC45: 3.489435658
A46: PMA | B46: $m nominal | C46: =SUMPRODUCT('AER DRAFT Input¦Historic'!$S$17:$S$98,'AER DRAFT Input¦Historic'!B$17:B$98)/1000000 -> 0 | D46: =SUMPRODUCT('AER DRAFT Input¦Historic'!$S$17:$S$98,'AER DRAFT Input¦Historic'!C$17:C$98)/1000000 -> 0 | E46: =SUMPRODUCT('AER DRAFT Input¦Historic'!$S$17:$S$98,'AER DRAFT Input¦Historic'!D$17:D$98)/1000000 -> 0 | F46: =SUMPRODUCT('AER DRAFT Input¦Historic'!$S$17:$S$98,'AER DRAFT Input¦Historic'!E$17:E$98)/1000000 -> 0 | G46: =SUMPRODUCT('AER DRAFT Input¦Forecast'!B$17:B$95,'AER DRAFT Input¦Forecast'!$U$17:$U$95)/1000*'AER DRAFT inputs¦other'!H13 -> 0 | H46: =SUMPRODUCT('AER DRAFT Input¦Forecast'!C$17:C$95,'AER DRAFT Input¦Forecast'!$U$17:$U$95)/1000*'AER DRAFT inputs¦other'!I13 -> 0 | I46: =SUMPRODUCT('AER DRAFT Input¦Forecast'!D$17:D$95,'AER DRAFT Input¦Forecast'!$U$17:$U$95)/1000*'AER DRAFT inputs¦other'!J13 -> 0 | J46: =SUMPRODUCT('AER DRAFT Input¦Forecast'!E$17:E$95,'AER DRAFT Input¦Forecast'!$U$17:$U$95)/1000*'AER DRAFT inputs¦other'!K13 -> 0 | K46: =SUMPRODUCT('AER DRAFT Input¦Forecast'!F$17:F$95,'AER DRAFT Input¦Forecast'!$U$17:$U$95)/1000*'AER DRAFT inputs¦other'!L13 -> 0 | L46: =SUMPRODUCT('AER DRAFT Input¦Forecast'!G$17:G$95,'AER DRAFT Input¦Forecast'!$U$17:$U$95)/1000*'AER DRAFT inputs¦other'!M13 -> 0 | N46: PMA | O46: $m real 2016/17 | P46: =C46/'AER DRAFT inputs¦other'!D$13 -> 0 | Q46: =D46/'AER DRAFT inputs¦other'!E$13 -> 0 | R46: =E46/'AER DRAFT inputs¦other'!F$13 -> 0 | S46: =F46/'AER DRAFT inputs¦other'!G$13 -> 0 | T46: =G46/'AER DRAFT inputs¦other'!H$13 -> 0 | U46: =H46/'AER DRAFT inputs¦other'!I$13 -> 0 | V46: =I46/'AER DRAFT inputs¦other'!J$13 -> 0 | W46: =J46/'AER DRAFT inputs¦other'!K$13 -> 0 | X46: =K46/'AER DRAFT inputs¦other'!L$13 -> 0 | Y46: =L46/'AER DRAFT inputs¦other'!M$13 -> 0 | AB46: 0 | AC46: 0
A47: Total | B47: $m nominal | C47: =SUM(C36:C46) -> 5.780058227 | D47: =SUM(D36:D46) -> 8.72641247 | E47: 17.30788488 | F47: 9.87243158 | G47: 18.21985881 | H47: 24.01240651 | I47: 14.41896367 | J47: 6.897358784 | K47: 8.498961428 | L47: 8.5362382 | N47: Total | O47: $m real 2016/17 | P47: =SUM(P36:P46) -> 6.260202902 | Q47: =SUM(Q36:Q46) -> 9.22078865 | R47: 17.76782859 | S47: 10.00176043 | T47: 18.21985881 | U47: 23.54157501 | V47: 13.85905774 | W47: 6.499535232 | X47: 7.851726642 | Y47: 7.731533938 | AB47: =SUM(AB36:AB46) -> 61.47043939 | AC47: =SUM(AC36:AC46) -> 59.48342856
A49: Check | C49: =C47=C30 -> TRUE | D49: TRUE | E49: TRUE | F49: TRUE | G49: =G47=G30 -> TRUE | H49: =H47=H30 -> TRUE | I49: TRUE | J49: TRUE | K49: TRUE | L49: TRUE | N49: Check | P49: =P47=P32 -> TRUE | Q49: =Q47=Q32 -> TRUE | R49: TRUE | S49: TRUE | T49: TRUE | U49: TRUE | V49: TRUE | W49: =W47=W32 -> FALSE | X49: TRUE | Y49: =Y47=Y32 -> TRUE | AB49: Gross Capex
AB50: Draft Decision ($2016/17)
A51: Driver | C51: =C35 -> 2013 | D51: =D35 -> 2014 | E51: 2015 | F51: 2016 | G51: 2017 | H51: 2018 | I51: 2019 | J51: 2020 | K51: 2021 | L51: 2022 | N51: Driver | P51: =P35 -> 2013 | Q51: =Q35 -> 2014 | R51: 2015 | S51: 2016 | T51: 2017 | U51: 2018 | V51: 2019 | W51: 2020 | X51: 2021 | Y51: 2022 | AB51: Current | AC51: Forecast
A52: Expansion/Extension | B52: =B47 -> $m nominal | C52: =SUMIF('AER DRAFT Input¦Historic'!$H$17:$H$98,$A52,'AER DRAFT Input¦Historic'!B$17:B$98)/1000000 -> 2.92318626 | D52: =SUMIF('AER DRAFT Input¦Historic'!$H$17:$H$98,$A52,'AER DRAFT Input¦Historic'!C$17:C$98)/1000000 -> 2.40302167 | E52: =SUMIF('AER DRAFT Input¦Historic'!$H$17:$H$98,$A52,'AER DRAFT Input¦Historic'!D$17:D$98)/1000000 -> 0.01857902 | F52: =SUMIF('AER DRAFT Input¦Historic'!$H$17:$H$98,$A52,'AER DRAFT Input¦Historic'!E$17:E$98)/1000000 -> 0 | G52: =SUMIF('AER DRAFT Input¦Forecast'!$I$17:$I$95,$A52,'AER DRAFT Input¦Forecast'!B$17:B$95)/1000*'AER DRAFT inputs¦other'!H$13 -> 0 | H52: =SUMIF('AER DRAFT Input¦Forecast'!$I$17:$I$95,$A52,'AER DRAFT Input¦Forecast'!C$17:C$95)/1000*'AER DRAFT inputs¦other'!I$13 -> 0 | I52: =SUMIF('AER DRAFT Input¦Forecast'!$I$17:$I$95,$A52,'AER DRAFT Input¦Forecast'!D$17:D$95)/1000*'AER DRAFT inputs¦other'!J$13 -> 0 | J52: =SUMIF('AER DRAFT Input¦Forecast'!$I$17:$I$95,$A52,'AER DRAFT Input¦Forecast'!E$17:E$95)/1000*'AER DRAFT inputs¦other'!K$13 -> 0 | K52: =SUMIF('AER DRAFT Input¦Forecast'!$I$17:$I$95,$A52,'AER DRAFT Input¦Forecast'!F$17:F$95)/1000*'AER DRAFT inputs¦other'!L$13 -> 0 | L52: =SUMIF('AER DRAFT Input¦Forecast'!$I$17:$I$95,$A52,'AER DRAFT Input¦Forecast'!G$17:G$95)/1000*'AER DRAFT inputs¦other'!M$13 -> 0 | N52: Expansion/Extension | O52: =O47 -> $m real 2016/17 | P52: =SUMIF('AER DRAFT Input¦Historic'!$H$17:$H$98,$N52,'AER DRAFT Input¦Historic'!B$17:B$98)/1000000/'AER DRAFT inputs¦other'!D$13 -> 3.166012935 | Q52: =SUMIF('AER DRAFT Input¦Historic'!$H$17:$H$98,$N52,'AER DRAFT Input¦Historic'!C$17:C$98)/1000000/'AER DRAFT inputs¦other'!E$13 -> 2.539159708 | R52: =SUMIF('AER DRAFT Input¦Historic'!$H$17:$H$98,$N52,'AER DRAFT Input¦Historic'!D$17:D$98)/1000000/'AER DRAFT inputs¦other'!F$13 -> 0.01907274315 | S52: =SUMIF('AER DRAFT Input¦Historic'!$H$17:$H$98,$N52,'AER DRAFT Input¦Historic'!E$17:E$98)/1000000/'AER DRAFT inputs¦other'!G$13 -> 0 | T52: =T19 -> 0 | U52: 0 | V52: 0 | W52: 0 | X52: 0 | Y52: 0 | AB52: =SUM(P52:T52) -> 5.724245386 | AC52: =SUM(U52:Y52) -> 0
A53: Replacement | B53: =B52 -> $m nominal | C53: =SUMIF('AER DRAFT Input¦Historic'!$H$17:$H$98,$A53,'AER DRAFT Input¦Historic'!B$17:B$98)/1000000 -> 0.65139705 | D53: =SUMIF('AER DRAFT Input¦Historic'!$H$17:$H$98,$A53,'AER DRAFT Input¦Historic'!C$17:C$98)/1000000 -> 2.12985466 | E53: =SUMIF('AER DRAFT Input¦Historic'!$H$17:$H$98,$A53,'AER DRAFT Input¦Historic'!D$17:D$98)/1000000 -> 3.88199981 | F53: =SUMIF('AER DRAFT Input¦Historic'!$H$17:$H$98,$A53,'AER DRAFT Input¦Historic'!E$17:E$98)/1000000 -> 4.43062598 | G53: =SUMIF('AER DRAFT Input¦Forecast'!$I$17:$I$95,$A53,'AER DRAFT Input¦Forecast'!B$17:B$95)/1000*'AER DRAFT inputs¦other'!H$13 -> 6.254622 | H53: =SUMIF('AER DRAFT Input¦Forecast'!$I$17:$I$95,$A53,'AER DRAFT Input¦Forecast'!C$17:C$95)/1000*'AER DRAFT inputs¦other'!I$13 -> 6.441631944 | I53: =SUMIF('AER DRAFT Input¦Forecast'!$I$17:$I$95,$A53,'AER DRAFT Input¦Forecast'!D$17:D$95)/1000*'AER DRAFT inputs¦other'!J$13 -> 8.529463958 | J53: =SUMIF('AER DRAFT Input¦Forecast'!$I$17:$I$95,$A53,'AER DRAFT Input¦Forecast'!E$17:E$95)/1000*'AER DRAFT inputs¦other'!K$13 -> 5.402510361 | K53: =SUMIF('AER DRAFT Input¦Forecast'!$I$17:$I$95,$A53,'AER DRAFT Input¦Forecast'!F$17:F$95)/1000*'AER DRAFT inputs¦other'!L$13 -> 6.815046191 | L53: =SUMIF('AER DRAFT Input¦Forecast'!$I$17:$I$95,$A53,'AER DRAFT Input¦Forecast'!G$17:G$95)/1000*'AER DRAFT inputs¦other'!M$13 -> 6.391220613 | N53: Replacement | O53: =O52 -> $m real 2016/17 | P53: =SUMIF('AER DRAFT Input¦Historic'!$H$17:$H$98,$N53,'AER DRAFT Input¦Historic'!B$17:B$98)/1000000/'AER DRAFT inputs¦other'!D$13 -> 0.7055080664 | Q53: =SUMIF('AER DRAFT Input¦Historic'!$H$17:$H$98,$N53,'AER DRAFT Input¦Historic'!C$17:C$98)/1000000/'AER DRAFT inputs¦other'!E$13 -> 2.250517007 | R53: =SUMIF('AER DRAFT Input¦Historic'!$H$17:$H$98,$N53,'AER DRAFT Input¦Historic'!D$17:D$98)/1000000/'AER DRAFT inputs¦other'!F$13 -> 3.985160966 | S53: =SUMIF('AER DRAFT Input¦Historic'!$H$17:$H$98,$N53,'AER DRAFT Input¦Historic'!E$17:E$98)/1000000/'AER DRAFT inputs¦other'!G$13 -> 4.48866718 | T53: =T25 -> 6.254622 | U53: 6.315325435 | V53: 8.198254478 | W53: 5.090906176 | X53: 6.296049251 | Y53: 5.788725421 | AB53: =SUM(P53:T53) -> 17.68447522 | AC53: =SUM(U53:Y53) -> 31.68926076
A54: Stay in business | B54: =B53 -> $m nominal | C54: =SUMIF('AER DRAFT Input¦Historic'!$H$17:$H$98,$A54,'AER DRAFT Input¦Historic'!B$17:B$98)/1000000 -> 2.205474917 | D54: =SUMIF('AER DRAFT Input¦Historic'!$H$17:$H$98,$A54,'AER DRAFT Input¦Historic'!C$17:C$98)/1000000 -> 4.19353614 | E54: =SUMIF('AER DRAFT Input¦Historic'!$H$17:$H$98,$A54,'AER DRAFT Input¦Historic'!D$17:D$98)/1000000 -> 13.40730605 | F54: =SUMIF('AER DRAFT Input¦Historic'!$H$17:$H$98,$A54,'AER DRAFT Input¦Historic'!E$17:E$98)/1000000 -> 5.4418056 | G54: =SUMIF('AER DRAFT Input¦Forecast'!$I$17:$I$95,$A54,'AER DRAFT Input¦Forecast'!B$17:B$95)/1000*'AER DRAFT inputs¦other'!H$13 -> 11.96523681 | H54: =SUMIF('AER DRAFT Input¦Forecast'!$I$17:$I$95,$A54,'AER DRAFT Input¦Forecast'!C$17:C$95)/1000*'AER DRAFT inputs¦other'!I$13 -> 17.57077456 | I54: =SUMIF('AER DRAFT Input¦Forecast'!$I$17:$I$95,$A54,'AER DRAFT Input¦Forecast'!D$17:D$95)/1000*'AER DRAFT inputs¦other'!J$13 -> 5.889499716 | J54: =SUMIF('AER DRAFT Input¦Forecast'!$I$17:$I$95,$A54,'AER DRAFT Input¦Forecast'!E$17:E$95)/1000*'AER DRAFT inputs¦other'!K$13 -> 1.494848423 | K54: =SUMIF('AER DRAFT Input¦Forecast'!$I$17:$I$95,$A54,'AER DRAFT Input¦Forecast'!F$17:F$95)/1000*'AER DRAFT inputs¦other'!L$13 -> 1.683915238 | L54: =SUMIF('AER DRAFT Input¦Forecast'!$I$17:$I$95,$A54,'AER DRAFT Input¦Forecast'!G$17:G$95)/1000*'AER DRAFT inputs¦other'!M$13 -> 2.145017587 | N54: Stay in business | O54: =O53 -> $m real 2016/17 | P54: =SUMIF('AER DRAFT Input¦Historic'!$H$17:$H$98,$N54,'AER DRAFT Input¦Historic'!B$17:B$98)/1000000/'AER DRAFT inputs¦other'!D$13 -> 2.388681901 | Q54: =SUMIF('AER DRAFT Input¦Historic'!$H$17:$H$98,$N54,'AER DRAFT Input¦Historic'!C$17:C$98)/1000000/'AER DRAFT inputs¦other'!E$13 -> 4.431111934 | R54: =SUMIF('AER DRAFT Input¦Historic'!$H$17:$H$98,$N54,'AER DRAFT Input¦Historic'!D$17:D$98)/1000000/'AER DRAFT inputs¦other'!F$13 -> 13.76359489 | S54: =SUMIF('AER DRAFT Input¦Historic'!$H$17:$H$98,$N54,'AER DRAFT Input¦Historic'!E$17:E$98)/1000000/'AER DRAFT inputs¦other'!G$13 -> 5.513093253 | T54: =T47-SUM(T52:T53) -> 11.96523681 | U54: 17.22624957 | V54: 5.660803264 | W54: 1.408629056 | X54: 1.55567739 | Y54: 1.942808516 | AB54: 38.06171879 | AC54: =SUM(U54:Y54) -> 27.7941678
A55: Total | B55: =B54 -> $m nominal | C55: =SUM(C52:C54) -> 5.780058227 | D55: =SUM(D52:D54) -> 8.72641247 | E55: 17.30788488 | F55: 9.87243158 | G55: =SUM(G52:G54) -> 18.21985881 | H55: =SUM(H52:H54) -> 24.01240651 | I55: 14.41896367 | J55: 6.897358784 | K55: 8.498961428 | L55: 8.5362382 | N55: Total | O55: =O54 -> $m real 2016/17 | P55: =SUM(P52:P54) -> 6.260202902 | Q55: =SUM(Q52:Q54) -> 9.22078865 | R55: 17.76782859 | S55: 10.00176043 | T55: =SUM(T52:T54) -> 18.21985881 | U55: =SUM(U52:U54) -> 23.54157501 | V55: 13.85905774 | W55: 6.499535232 | X55: 7.851726642 | Y55: 7.731533938 | AB55: =SUM(AB52:AB54) -> 61.47043939 | AC55: =SUM(AC52:AC54) -> 59.48342856
A57: Check | C57: =C55=C47 -> TRUE | D57: =D55=D47 -> TRUE | E57: TRUE | F57: TRUE | G57: TRUE | H57: TRUE | I57: TRUE | J57: TRUE | K57: TRUE | L57: TRUE | N57: Check | P57: =P55=P47 -> TRUE | Q57: =Q55=Q47 -> TRUE | R57: TRUE | S57: TRUE | T57: TRUE | U57: TRUE | V57: TRUE | W57: TRUE | X57: TRUE | Y57: TRUE
A59: AER Forecast by Driver | C59: =C51 -> 2013 | D59: =D51 -> 2014 | E59: 2015 | F59: 2016 | G59: 2017 | N59: =A59 -> AER Forecast by Driver | P59: =P51 -> 2013 | Q59: =Q51 -> 2014 | R59: 2015 | S59: 2016 | T59: 2017
A60: =A52 -> Expansion/Extension | B60: =B52 -> $m nominal | C60: 0 | D60: 0 | E60: 0 | F60: 0 | G60: 0 | N60: =N52 -> Expansion/Extension | O60: =O52 -> $m real 2016/17 | P60: 0 | Q60: 0 | R60: 0 | S60: 0 | T60: 0
A61: =A53 -> Replacement | B61: =B53 -> $m nominal | C61: 0 | D61: 0 | E61: 0 | F61: 0 | G61: 0 | N61: =N53 -> Replacement | O61: =O53 -> $m real 2016/17 | P61: 0 | Q61: 0 | R61: 0 | S61: 0 | T61: 0
A62: =A54 -> Stay in business | B62: $m nominal | C62: ='AER DRAFT inputs¦other'!D35 -> 4.04606386 | D62: ='AER DRAFT inputs¦other'!E35 -> 4.632618498 | E62: ='AER DRAFT inputs¦other'!F35 -> 3.559830621 | F62: ='AER DRAFT inputs¦other'!G35 -> 3.838106711 | G62: ='AER DRAFT inputs¦other'!H35 -> 3.274252641 | N62: =N54 -> Stay in business | O62: $m real 2016/17 | P62: ='AER DRAFT inputs¦other'!D34 -> 4.393664723 | Q62: ='AER DRAFT inputs¦other'!E34 -> 4.907912955 | R62: ='AER DRAFT inputs¦other'!F34 -> 3.664018656 | S62: ='AER DRAFT inputs¦other'!G34 -> 3.898588025 | T62: ='AER DRAFT inputs¦other'!H34 -> 3.282843431
A63: =A55 -> Total | B63: $m nominal | C63: =SUM(C60:C62) -> 4.04606386 | D63: =SUM(D60:D62) -> 4.632618498 | E63: =SUM(E60:E62) -> 3.559830621 | F63: =SUM(F60:F62) -> 3.838106711 | G63: =SUM(G60:G62) -> 3.274252641 | N63: =N55 -> Total | O63: $m real 2016/17 | P63: =SUM(P60:P62) -> 4.393664723 | Q63: =SUM(Q60:Q62) -> 4.907912955 | R63: 3.664018656 | S63: 3.898588025 | T63: 3.282843431
A65: Difference | C65: =C59 -> 2013 | D65: =D59 -> 2014 | E65: 2015 | F65: 2016 | G65: 2017 | N65: Difference | P65: =P59 -> 2013 | Q65: =Q59 -> 2014 | R65: 2015 | S65: 2016 | T65: 2017
A66: =A60 -> Expansion/Extension | B66: =B60 -> $m nominal | C66: =C52-C60 -> 2.92318626 | D66: =D52-D60 -> 2.40302167 | E66: 0.01857902 | F66: 0 | G66: 0 | N66: =N60 -> Expansion/Extension | O66: =O60 -> $m real 2016/17 | P66: =P52-P60 -> 3.166012935 | Q66: =Q52-Q60 -> 2.539159708 | R66: 0.01907274315 | S66: 0 | T66: 0
A67: =A61 -> Replacement | B67: $m nominal | C67: =C53-C61 -> 0.65139705 | D67: 2.12985466 | E67: 3.88199981 | F67: 4.43062598 | G67: 6.254622 | N67: =N61 -> Replacement | O67: $m real 2016/17 | P67: =P53-P61 -> 0.7055080664 | Q67: 2.250517007 | R67: 3.985160966 | S67: 4.48866718 | T67: 6.254622
A68: Stay in business | B68: $m nominal | C68: =C54-C62 -> -1.840588944 | D68: -0.4390823582 | E68: 9.84747543 | F68: 1.603698889 | G68: 8.690984173 | N68: Stay in business | O68: $m real 2016/17 | P68: =P54-P62 -> -2.004982822 | Q68: -0.4768010209 | R68: 10.09957623 | S68: 1.614505228 | T68: 8.682393382
A69: Total | B69: $m nominal | C69: =SUM(C66:C68) -> 1.733994366 | D69: =SUM(D66:D68) -> 4.093793972 | E69: 13.74805426 | F69: 6.034324869 | G69: 14.94560617 | N69: Total | O69: $m real 2016/17 | P69: =SUM(P66:P68) -> 1.86653818 | Q69: =SUM(Q66:Q68) -> 4.312875694 | R69: 14.10380994 | S69: 6.103172408 | T69: 14.93701538
AB71: Net Capex
AB72: Draft Decision ($2016/17)
A73: Asset disposals | C73: 2013 | D73: 2014 | E73: 2015 | F73: 2016 | G73: 2017 | H73: 2018 | I73: 2019 | J73: 2020 | K73: 2021 | L73: 2022 | N73: Asset disposals | P73: 2013 | Q73: 2014 | R73: 2015 | S73: 2016 | T73: 2017 | U73: 2018 | V73: 2019 | W73: 2020 | X73: 2021 | Y73: 2022 | AB73: Current | AC73: Forecast
A74: Motor vehicle disposals | B74: =B69 -> $m nominal | C74: 0.10868118 | D74: 0.06679468 | E74: 0.04084031 | F74: 0 | G74: 0 | N74: Motor vehicle disposals | O74: =O69 -> $m real 2016/17 | P74: =C74/'AER DRAFT inputs¦other'!D13 -> 0.1177092361 | Q74: =D74/'AER DRAFT inputs¦other'!E13 -> 0.07057878932 | R74: =E74/'AER DRAFT inputs¦other'!F13 -> 0.04192560979 | S74: =F74/'AER DRAFT inputs¦other'!G13 -> 0 | T74: =G74/'AER DRAFT inputs¦other'!H13 -> 0 | AB74: =SUM(P74:T74) -> 0.2302136352 | AC74: =SUM(U74:Y74) -> 0
A76: Contributions | C76: 2013 | D76: 2014 | E76: 2015 | F76: 2016 | G76: 2017 | H76: 2018 | I76: 2019 | J76: 2020 | K76: 2021 | L76: 2022 | N76: Contributions | P76: 2013 | Q76: 2014 | R76: 2015 | S76: 2016 | T76: 2017 | U76: 2018 | V76: 2019 | W76: 2020 | X76: 2021 | Y76: 2022 | AB76: Current | AC76: Forecast
A77: Capital contributions | B77: $m nominal | D77: =95218.24/1000000 -> 0.09521824 | N77: Capital contributions | O77: $m nominal | P77: =C77/'AER DRAFT inputs¦other'!D13 -> 0 | Q77: =D77/'AER DRAFT inputs¦other'!E13 -> 0.1006126251 | R77: =E77/'AER DRAFT inputs¦other'!F13 -> 0 | S77: =F77/'AER DRAFT inputs¦other'!G13 -> 0 | T77: =G77/'AER DRAFT inputs¦other'!H13 -> 0 | AB77: =SUM(P77:T77) -> 0.1006126251 | AC77: =SUM(U77:Y77) -> 0
A79: Total net capex | C79: 2013 | D79: 2014 | E79: 2015 | F79: 2016 | G79: 2017 | H79: 2018 | I79: 2019 | J79: 2020 | K79: 2021 | L79: 2022 | N79: Total net capex | P79: 2013 | Q79: 2014 | R79: 2015 | S79: 2016 | T79: 2017 | U79: 2018 | V79: 2019 | W79: 2020 | X79: 2021 | Y79: 2022 | AB79: Current | AC79: Forecast
A80: Total net capex | B80: $m nominal | C80: =C55-C74-C77 -> 5.671377047 | D80: =D55-D74-D77 -> 8.56439955 | E80: =E55-E74-E77 -> 17.26704457 | F80: 9.87243158 | G80: 18.21985881 | H80: 24.01240651 | I80: 14.41896367 | J80: 6.897358784 | K80: 8.498961428 | L80: 8.5362382 | N80: Total net capex | O80: $m nominal | P80: =P55-P74-P77 -> 6.142493666 | Q80: =Q55-Q74-Q77 -> 9.049597235 | R80: =R55-R74-R77 -> 17.72590298 | S80: =S55-S74-S77 -> 10.00176043 | T80: =T55-T74-T77 -> 18.21985881 | U80: 23.54157501 | V80: 13.85905774 | W80: 6.499535232 | X80: 7.851726642 | Y80: 7.731533938 | AB80: =SUM(P80:T80) -> 61.13961313 | AC80: =SUM(U80:Y80) -> 59.48342856
